Body Name,Body,Service Division Label,Service Division Code,Organisational Unit,Expenditure Category,Expenditure Code,CIPFA detailed expediture type,CIPFA detailed expediture code,Narrative,Date,Transaction number,Net Amount,Capital and Revenue,Supplier Name,Supplier ID,,
Chorley Borough Council,http://statistics.data.gov.uk/id/local-authority/30UE,Economic Development,1096,Commercial Services,Professional Fees,40063,Services,5027,To provide Architectural services as described in the CBC scope of work and 3DG fee proposal 02.09.20,03/03/2021,0153753,"4,012.50",Revenue,3DG Design Ltd,80861,,
Chorley Borough Council,http://statistics.data.gov.uk/id/local-authority/30UE,Unapportionable Central OHeads,1009,Commercial Services,General Repairs - Reactive,20004,Repairs Maintenance & Alts,5005,Jubilee park Wall repairs,12/03/2021,0152643,725.00,Revenue,Adlington Dry Stone Walling,63372,,
Chorley Borough Council,http://statistics.data.gov.uk/id/local-authority/30UE,Democratic Represent and  Mgnt,1007,Policy & Governance,Grants To Other Organisations,40127,Grants and Subscriptions,5031,Councillor community grant,12/03/2021,0154071,300.00,Revenue,Adlington Scout Group,16844,,
Chorley Borough Council,http://statistics.data.gov.uk/id/local-authority/30UE,Central Support Services,1009,Commercial Services,Survey Expenses,40069,Services,5027,"The Indoor Air Quality Plan (IAQP), Post-construction testing - based on a review of the floor plans. Alker Lane",05/03/2021,0153876,580.00,Revenue,Air Quality Plan Limited,80254,,
Chorley Borough Council,http://statistics.data.gov.uk/id/local-authority/30UE,Central Support Services,1009,Commercial Services,Professional Fees,40063,Services,5027,Indoor air quality plan.,05/03/2021,0153877,580.00,Revenue,Air Quality Plan Limited,80254,,
Chorley Borough Council,http://statistics.data.gov.uk/id/local-authority/30UE,Economic Development,1096,Commercial Services,Exhibitions & Special Events,40158,Miscellaneous Expenses,5034,"Choose Chorley Webinars - 2 sessions Blogging, SM Analytics",17/03/2021,0154253,500.00,Revenue,Alex McCann - Altrincham HQ,81286,,
Chorley Borough Council,http://statistics.data.gov.uk/id/local-authority/30UE,Unapportionable Central OHeads,1009,Customer & Digital,Bank Charges,40151,Miscellaneous Expenses,5034,ad fee,05/03/2021,0153816,10.00,Revenue,Allpay Net Ltd,17242,,
Chorley Borough Council,http://statistics.data.gov.uk/id/local-authority/30UE,Unapportionable Central OHeads,1009,Customer & Digital,Bank Charges,40151,Miscellaneous Expenses,5034,post office,05/03/2021,0153816,156.87,Revenue,Allpay Net Ltd,17242,,
Chorley Borough Council,http://statistics.data.gov.uk/id/local-authority/30UE,Central Support Services,1009,Customer & Digital,Bank Charges,40151,Miscellaneous Expenses,5034,paypoint,05/03/2021,0153816,113.20,Revenue,Allpay Net Ltd,17242,,
Chorley Borough Council,http://statistics.data.gov.uk/id/local-authority/30UE,Central Support Services,1009,Customer & Digital,Bank Charges,40151,Miscellaneous Expenses,5034,webconn,05/03/2021,0153816,46.00,Revenue,Allpay Net Ltd,17242,,
Chorley Borough Council,http://statistics.data.gov.uk/id/local-authority/30UE,Corporate Management,1008,Policy & Governance,Car Leasing Payment,14100,Direct Employee Expenses,5001,VIN REDACTED,26/03/2021,0154563,331.80,Revenue,Alphabet (Uk) Fleet Management Ltd,16651,,
Chorley Borough Council,http://statistics.data.gov.uk/id/local-authority/30UE,Corporate Management,1008,Policy & Governance,Car Leasing Payment,14100,Direct Employee Expenses,5001,vat,26/03/2021,0154563,29.40,Revenue,Alphabet (Uk) Fleet Management Ltd,16651,,
Chorley Borough Council,http://statistics.data.gov.uk/id/local-authority/30UE,Control Accounts,Control,Policy & Governance,Manual Control Account,00001,Balance Sheet,Balance,-vat,26/03/2021,0154563,-29.40,Revenue,Alphabet (Uk) Fleet Management Ltd,16651,,
Chorley Borough Council,http://statistics.data.gov.uk/id/local-authority/30UE,Development Control,1091,Policy & Governance,Car Leasing Payment,14100,Direct Employee Expenses,5001,VIN REDACTED,26/03/2021,0154563,226.52,Revenue,Alphabet (Uk) Fleet Management Ltd,16651,,
Chorley Borough Council,http://statistics.data.gov.uk/id/local-authority/30UE,Development Control,1091,Policy & Governance,Car Leasing Payment,14100,Direct Employee Expenses,5001,vat,26/03/2021,0154563,19.18,Revenue,Alphabet (Uk) Fleet Management Ltd,16651,,
Chorley Borough Council,http://statistics.data.gov.uk/id/local-authority/30UE,Control Accounts,Control,Policy & Governance,Manual Control Account,00001,Balance Sheet,Balance,-vat,26/03/2021,0154563,-19.18,Revenue,Alphabet (Uk) Fleet Management Ltd,16651,,
Chorley Borough Council,http://statistics.data.gov.uk/id/local-authority/30UE,Recreation & Sport,1037,Commercial Services,Planned Maintenance,20006,Repairs Maintenance & Alts,5005,Clayton Green Action 1 Completion Date: 04/02/21 @ 11:45:00 install dualcom radio,10/03/2021,0153989,350.00,Revenue,Amalgamated Ltd,78289,,
Chorley Borough Council,http://statistics.data.gov.uk/id/local-authority/30UE,Central Support Services,1009,Commercial Services,Burglar Alarms & Security Systems,20075,Fixtures and Fittings,5010,Intruder / Access systems PPM Blanket,12/03/2021,0154000,524.24,Revenue,Amalgamated Ltd,78289,,
Chorley Borough Council,http://statistics.data.gov.uk/id/local-authority/30UE,Recreation & Sport,1037,Commercial Services,Planned Maintenance,20006,Repairs Maintenance & Alts,5005,All Seasons Install duacom radio for intruder system,10/03/2021,0154002,350.00,Revenue,Amalgamated Ltd,78289,,
Chorley Borough Council,http://statistics.data.gov.uk/id/local-authority/30UE,Democratic Represent and  Mgnt,1007,Commercial Services,Planned Maintenance,20006,Repairs Maintenance & Alts,5005,Brinscall baths Install dualcom radio,12/03/2021,0154005,350.00,Revenue,Amalgamated Ltd,78289,,
Chorley Borough Council,http://statistics.data.gov.uk/id/local-authority/30UE,Recreation & Sport,1037,Commercial Services,Planned Maintenance,20006,Repairs Maintenance & Alts,5005,All Seasons Fire Alarm maintenance charge and consumables,12/03/2021,0154007,360.96,Revenue,Amalgamated Ltd,78289,,
Chorley Borough Council,http://statistics.data.gov.uk/id/local-authority/30UE,Democratic Represent and  Mgnt,1007,Commercial Services,General Repairs - Reactive,20004,Repairs Maintenance & Alts,5005,"wetside foyer by toilets - unable to test, wetside entrance - foyer side difficult to reset, Cafe kitchen fire exit - difficult to reset",12/03/2021,0154010,296.51,Revenue,Amalgamated Ltd,78289,,
Chorley Borough Council,http://statistics.data.gov.uk/id/local-authority/30UE,Unapportionable Central OHeads,1009,Commercial Services,Fire Alarms,20072,Fixtures and Fittings,5010,Fire systems PPM Blanket,12/03/2021,0154028,400.40,Revenue,Amalgamated Ltd,78289,,
Chorley Borough Council,http://statistics.data.gov.uk/id/local-authority/30UE,Capital,Capital,Commercial Services,Other Contractor,03012,Capital Expenditure,Capital,cctv system installation works in the coach house shop,12/03/2021,0154136,993.87,Capital,Amalgamated Ltd,78289,,
Chorley Borough Council,http://statistics.data.gov.uk/id/local-authority/30UE,Central Support Services,1009,Customer & Digital,Computer Software-Additional,40102,Communication and Computing,5028,Amazon AWS web services - 718576685325 Cloud charges Nov 2019- March 2020,12/03/2021,0154133,"1,996.15",Revenue,Amazon Web Services EMEA SARL,80604,,
Chorley Borough Council,http://statistics.data.gov.uk/id/local-authority/30UE,Democratic Represent and  Mgnt,1007,Policy & Governance,Grants To Other Organisations,40127,Grants and Subscriptions,5031,councillor comm grant,26/03/2021,0154137,300.00,Revenue,Anderton St Joseph`s Scout Group,81848,,
Chorley Borough Council,http://statistics.data.gov.uk/id/local-authority/30UE,Central Support Services,1009,Early Intervention,Impounded Dogs Costs,40207,Miscellaneous Expenses,5034,Kennelling of strays and retainer,17/03/2021,0154138,595.20,Revenue,Animal Wardens Ltd,80965,,
Chorley Borough Council,http://statistics.data.gov.uk/id/local-authority/30UE,Corporate Management,1008,Chief Executive,Employee Related Insurance,18003,Indirect Employee Expenses,5002,Casualty Combined liability Policy 2021- Travelers Insurance including IPT,05/03/2021,0153254,"209,412.61",Revenue,Aon UK Limited Accounts Division,76559,,
Chorley Borough Council,http://statistics.data.gov.uk/id/local-authority/30UE,Unapportionable Central OHeads,1009,Policy & Governance,IT Software - Annual Licences,40101,Communication and Computing,5028,"DataSafe Annual charge for software maintenance, iConnect Hosted (Site) - (10k file upload cap) Annual charge for software maint",29/03/2021,0154697,"1,924.00",Revenue,APT,17305,,
Chorley Borough Council,http://statistics.data.gov.uk/id/local-authority/30UE,Unapportionable Central OHeads,1009,Policy & Governance,Car Leasing Payment,14100,Direct Employee Expenses,5001,VIN REDACTED,17/03/2021,0153937,"2,713.68",Revenue,Arnold Clark Finance Ltd,20685,,
Chorley Borough Council,http://statistics.data.gov.uk/id/local-authority/30UE,Unapportionable Central OHeads,1009,Policy & Governance,Car Leasing Payment,14100,Direct Employee Expenses,5001,vat,17/03/2021,0153937,238.67,Revenue,Arnold Clark Finance Ltd,20685,,
Chorley Borough Council,http://statistics.data.gov.uk/id/local-authority/30UE,Control Accounts,Control,Policy & Governance,Manual Control Account,00001,Balance Sheet,Balance,-vat,17/03/2021,0153937,-238.67,Revenue,Arnold Clark Finance Ltd,20685,,
Chorley Borough Council,http://statistics.data.gov.uk/id/local-authority/30UE,Central Support Services,1009,Policy & Governance,Car Leasing Payment,14100,Direct Employee Expenses,5001,VIN REDACTED,03/03/2021,0153243,"2,902.89",Revenue,Arval UK Ltd,18240,,
Chorley Borough Council,http://statistics.data.gov.uk/id/local-authority/30UE,Central Support Services,1009,Policy & Governance,Car Leasing Payment,14100,Direct Employee Expenses,5001,vat,03/03/2021,0153243,255.71,Revenue,Arval UK Ltd,18240,,
Chorley Borough Council,http://statistics.data.gov.uk/id/local-authority/30UE,Control Accounts,Control,Policy & Governance,Manual Control Account,00001,Balance Sheet,Balance,-vat,03/03/2021,0153243,-255.71,Revenue,Arval UK Ltd,18240,,
Chorley Borough Council,http://statistics.data.gov.uk/id/local-authority/30UE,Central Support Services,1009,Policy & Governance,IT Software - Annual Licences,40101,Communication and Computing,5028,Extension of contract for 3 months,10/03/2021,0153312,750.00,Revenue,Attain Group Ltd,61771,,
Chorley Borough Council,http://statistics.data.gov.uk/id/local-authority/30UE,Public Transport,1067,Customer & Digital,Bus Shelters -Maintenance,20062,Grounds Maintenance Costs,5013,"As per Quotation from NAME REDACTED for 2 Bay Urban Metro with 1200mm Windbreaks @ Southport Road, Chorley.",26/03/2021,0154729,"3,500.00",Revenue,Autocross Euroshel Ltd,77509,,
Chorley Borough Council,http://statistics.data.gov.uk/id/local-authority/30UE,Service Management & Support,1009,Customer & Digital,Hire Of Vehicles and Plant,30028,Contrct Hire & Operating Lease,5018,"2 x John Deere 1580 with front mounted rotary cutting decks @ 24071.84 each, 1 x Wessex gang mower @ 32860",12/03/2021,0153891,"1,242.40",Revenue,Balmers Garden Machinery,17075,,
Chorley Borough Council,http://statistics.data.gov.uk/id/local-authority/30UE,Service Management & Support,1009,Customer & Digital,Tools & Equipment - Purchase,40003,"Equipment, Furniture & Materia",5023,2 x (new model) Husqvarna Klippo 553s e 53cm self-propelled pedestrian mulch mower,24/03/2021,0154093,"1,390.00",Revenue,Balmers Garden Machinery,17075,,
Chorley Borough Council,http://statistics.data.gov.uk/id/local-authority/30UE,Control Accounts,Control,Policy & Governance,General Balances,00100,Balance Sheet,Balance,28th feb,30/03/2021,0154948,"4,797.39",Revenue,Barclaycard Commercial,59848,,
Chorley Borough Council,http://statistics.data.gov.uk/id/local-authority/30UE,Control Accounts,Control,Policy & Governance,General Balances,00100,Balance Sheet,Balance,28th jan 21,30/03/2021,0154949,"2,955.85",Revenue,Barclaycard Commercial,59848,,
Chorley Borough Council,http://statistics.data.gov.uk/id/local-authority/30UE,Corporate Management,1008,Policy & Governance,Bank Charges,40151,Miscellaneous Expenses,5034,,30/03/2021,0154194,15.00,Revenue,Barclaycard Merchant Services,61601,,
Chorley Borough Council,http://statistics.data.gov.uk/id/local-authority/30UE,Corporate Management,1008,Policy & Governance,Bank Charges,40151,Miscellaneous Expenses,5034,,30/03/2021,0154194,"1,260.32",Revenue,Barclaycard Merchant Services,61601,,
Chorley Borough Council,http://statistics.data.gov.uk/id/local-authority/30UE,Corporate Management,1008,Policy & Governance,Bank Charges,40151,Miscellaneous Expenses,5034,28 feb 2021,30/03/2021,0154201,15.00,Revenue,Barclaycard Merchant Services,61601,,
Chorley Borough Council,http://statistics.data.gov.uk/id/local-authority/30UE,Corporate Management,1008,Policy & Governance,Bank Charges,40151,Miscellaneous Expenses,5034,,30/03/2021,0154201,359.28,Revenue,Barclaycard Merchant Services,61601,,
Chorley Borough Council,http://statistics.data.gov.uk/id/local-authority/30UE,Corporate Management,1008,Policy & Governance,Bank Charges,40151,Miscellaneous Expenses,5034,28 feb 2021,30/03/2021,0154204,15.00,Revenue,Barclaycard Merchant Services,61601,,
Chorley Borough Council,http://statistics.data.gov.uk/id/local-authority/30UE,Corporate Management,1008,Policy & Governance,Bank Charges,40151,Miscellaneous Expenses,5034,,30/03/2021,0154204,639.74,Revenue,Barclaycard Merchant Services,61601,,
Chorley Borough Council,http://statistics.data.gov.uk/id/local-authority/30UE,Open Spaces,1038,Early Intervention,Grounds Maintenance Contractor,20043,Grounds Maintenance Costs,5013,"Quote Ref 171000. Yarrow Valley Walk Trail Leaflets - 4 sorts 500 of each Reprint with no amendments, PDF PROOF",24/03/2021,0154508,341.00,Revenue,BHW Print Group,77459,,
Chorley Borough Council,http://statistics.data.gov.uk/id/local-authority/30UE,Capital,Capital,Commercial Services,Other Capital Related Fees,03024,Capital Expenditure,Capital,"29.11.20 - x2 joiners supplied to remove canopies from x2 units, 01.12.20 - x2 joiners supplied to remove canopies from x2 units",10/03/2021,0153845,680.00,Capital,Blackpool Industrial Roofing Limited,80997,,
Chorley Borough Council,http://statistics.data.gov.uk/id/local-authority/30UE,Capital,Capital,Commercial Services,Main Contractor,03007,Capital Expenditure,Capital, Town Hall Chamber chandelier works,03/03/2021,0152980,"2,152.00",Capital,Brotheridge Chandeliers,81464,,
Chorley Borough Council,http://statistics.data.gov.uk/id/local-authority/30UE,Capital,Capital,Commercial Services,Main Contractor,03007,Capital Expenditure,Capital,General building works across the leisure centres as per tender exercise to NAMES REDACTED. Email sent 2-11,10/03/2021,0154095,"25,828.64",Capital,Bryan Lee Building Contractors Ltd,78160,,
Chorley Borough Council,http://statistics.data.gov.uk/id/local-authority/30UE,Central Support Services,1009,Commercial Services,Planned Maintenance,20006,Repairs Maintenance & Alts,5005,Cotswold House Fire Integrity Works,19/03/2021,0154254,"8,412.16",Revenue,Bryan Lee Building Contractors Ltd,78160,,
Chorley Borough Council,http://statistics.data.gov.uk/id/local-authority/30UE,Central Support Services,1009,Customer & Digital,Telephones - Rentals,40083,Communication and Computing,5028,Annual Rental Charges,12/03/2021,0153556,"3,302.03",Revenue,BT Redcare,21115,,
Chorley Borough Council,http://statistics.data.gov.uk/id/local-authority/30UE,Service Management & Support,1009,Customer & Digital,Supplies-Grounds Maintenance,40025,"Equipment, Furniture & Materia",5023,Rowan Croft & High Meadow ponds 4 visits each at 150.00,12/03/2021,0153893,260.00,Revenue,C J Lyon,16579,,
Chorley Borough Council,http://statistics.data.gov.uk/id/local-authority/30UE,Service Management & Support,1009,Customer & Digital,Supplies-Grounds Maintenance,40025,"Equipment, Furniture & Materia",5023,"Bengal Street Depot, Chorley � Empty 3 interceptors and clear aco drains 12 visits at 450.00",12/03/2021,0153894,375.00,Revenue,C J Lyon,16579,,
Chorley Borough Council,http://statistics.data.gov.uk/id/local-authority/30UE,Control Accounts,Control,Commercial Services,Manual Control Account,00001,Balance Sheet,Balance,,10/03/2021,0153980,638.32,Revenue,C P Davidson & Sons Ltd,21093,,
Chorley Borough Council,http://statistics.data.gov.uk/id/local-authority/30UE,Unapportionable Central OHeads,1009,Customer & Digital,Emergency Call Out System,40096,Communication and Computing,5028,Out of Hours call charges 20/21,10/03/2021,0154098,137.80,Revenue,CallCare Ltd,20257,,
Chorley Borough Council,http://statistics.data.gov.uk/id/local-authority/30UE,Central Support Services,1009,Customer & Digital,Emergency Call Out System,40096,Communication and Computing,5028,Out of hours standing charge 20/21,10/03/2021,0154098,120.00,Revenue,CallCare Ltd,20257,,
Chorley Borough Council,http://statistics.data.gov.uk/id/local-authority/30UE,Central Support Services,1009,Customer & Digital,Computer - Support Services,40111,Communication and Computing,5028,End of Year Support End of Year Webinar - Business Rates,29/03/2021,0153488,400.00,Revenue,Capita Business Services Ltd,17151,,
Chorley Borough Council,http://statistics.data.gov.uk/id/local-authority/30UE,Unapportionable Central OHeads,1009,Customer & Digital,Computer - Support Services,40111,Communication and Computing,5028,End of Year Webinar - Joint Housing Benefits/Council Tax,29/03/2021,0153488,900.00,Revenue,Capita Business Services Ltd,17151,,
Chorley Borough Council,http://statistics.data.gov.uk/id/local-authority/30UE,Unapportionable Central OHeads,1009,Customer & Digital,Computer - Support Services,40111,Communication and Computing,5028,Subsidy Webinars,29/03/2021,0153488,450.00,Revenue,Capita Business Services Ltd,17151,,
Chorley Borough Council,http://statistics.data.gov.uk/id/local-authority/30UE,Central Support Services,1009,Customer & Digital,Computer - Support Services,40111,Communication and Computing,5028,End of Year Support Token,29/03/2021,0153488,"3,024.00",Revenue,Capita Business Services Ltd,17151,,
Chorley Borough Council,http://statistics.data.gov.uk/id/local-authority/30UE,Unapportionable Central OHeads,1009,Customer & Digital,Computer - Support Services,40111,Communication and Computing,5028,One Technical Consultancy,29/03/2021,0153488,"2,000.00",Revenue,Capita Business Services Ltd,17151,,
Chorley Borough Council,http://statistics.data.gov.uk/id/local-authority/30UE,Central Support Services,1009,Policy & Governance,Agency Staff,13000,Direct Employee Expenses,5001,Interim Deputy CFO - NAME REDACTED - Director of Finance 4 x Days per/week 3 x Months agency cover,03/03/2021,0153171,"2,200.00",Revenue,Castlefield Recruitment Limited,80454,,
Chorley Borough Council,http://statistics.data.gov.uk/id/local-authority/30UE,Central Support Services,1009,Policy & Governance,Agency Staff,13000,Direct Employee Expenses,5001,Interim Deputy CFO - NAME REDACTED - Director of Finance 4 x Days per/week 3 x Months agency cover,03/03/2021,0153303,"2,200.00",Revenue,Castlefield Recruitment Limited,80454,,
Chorley Borough Council,http://statistics.data.gov.uk/id/local-authority/30UE,Corporate Management,1008,Policy & Governance,Agency Staff,13000,Direct Employee Expenses,5001,Covid Grants Agency Staff NAME REDACTED,05/03/2021,0153513,962.50,Revenue,Castlefield Recruitment Limited,80454,,
Chorley Borough Council,http://statistics.data.gov.uk/id/local-authority/30UE,Unapportionable Central OHeads,1009,Policy & Governance,Agency Staff,13000,Direct Employee Expenses,5001,Interim Deputy CFO - NAME REDACTED - Director of Finance 4 x Days per/week 3 x Months agency cover,03/03/2021,0153553,"2,200.00",Revenue,Castlefield Recruitment Limited,80454,,
Chorley Borough Council,http://statistics.data.gov.uk/id/local-authority/30UE,Corporate Management,1008,Policy & Governance,Agency Staff,13000,Direct Employee Expenses,5001,Covid Grants Agency Staff NAME REDACTED,03/03/2021,0153754,950.00,Revenue,Castlefield Recruitment Limited,80454,,
Chorley Borough Council,http://statistics.data.gov.uk/id/local-authority/30UE,Central Support Services,1009,Policy & Governance,Agency Staff,13000,Direct Employee Expenses,5001,Interim Director CFO - NAME REDACTED 4 x days per week ( 5 weeks) to end of March 2021,05/03/2021,0153755,"2,200.00",Revenue,Castlefield Recruitment Limited,80454,,
Chorley Borough Council,http://statistics.data.gov.uk/id/local-authority/30UE,Corporate Management,1008,Policy & Governance,Agency Staff,13000,Direct Employee Expenses,5001,Covid Grants Agency Staff NAME REDACTED,12/03/2021,0153978,800.00,Revenue,Castlefield Recruitment Limited,80454,,
Chorley Borough Council,http://statistics.data.gov.uk/id/local-authority/30UE,Central Support Services,1009,Policy & Governance,Agency Staff,13000,Direct Employee Expenses,5001,Interim Director CFO - NAME REDACTED 4 x days per week ( 5 weeks) to end of March 2021,10/03/2021,0153998,"2,200.00",Revenue,Castlefield Recruitment Limited,80454,,
Chorley Borough Council,http://statistics.data.gov.uk/id/local-authority/30UE,Unapportionable Central OHeads,1009,Policy & Governance,Agency Staff,13000,Direct Employee Expenses,5001,Interim Director CFO - NAME REDACTED 4 x days per week ( 5 weeks) to end of March 2021,26/03/2021,0154720,"2,200.00",Revenue,Castlefield Recruitment Limited,80454,,
Chorley Borough Council,http://statistics.data.gov.uk/id/local-authority/30UE,Corporate Management,1008,Commercial Services,Miscellaneous Expenses,40200,Miscellaneous Expenses,5034,Covid spraying of council buildings,03/03/2021,0153398,"5,650.00",Revenue,Castus Solutions Limited,78812,,
Chorley Borough Council,http://statistics.data.gov.uk/id/local-authority/30UE,Corporate Management,1008,Commercial Services,Miscellaneous Expenses,40200,Miscellaneous Expenses,5034,Covid spraying of council buildings,03/03/2021,0153425,"1,935.00",Revenue,Castus Solutions Limited,78812,,
Chorley Borough Council,http://statistics.data.gov.uk/id/local-authority/30UE,Capital,Capital,Commercial Services,Main Contractor,03007,Capital Expenditure,Capital,"Deep cleaning of Leisure centre including all pools and poolside, tiles and grouting using DOFF Steam system with Acid/Alkali ",10/03/2021,0153902,"5,250.00",Capital,Castus Solutions Limited,78812,,
Chorley Borough Council,http://statistics.data.gov.uk/id/local-authority/30UE,Corporate Management,1008,Commercial Services,Miscellaneous Expenses,40200,Miscellaneous Expenses,5034,Covid spraying of council buildings and vans,26/03/2021,0154309,"5,650.00",Revenue,Castus Solutions Limited,78812,,
Chorley Borough Council,http://statistics.data.gov.uk/id/local-authority/30UE,Recreation & Sport,1037,Commercial Services,Planned Maintenance,20006,Repairs Maintenance & Alts,5005,repairs to both the main entrance inner and outer automatic sliding doors following the recent visit Clayton Brook Leisure Centre.,19/03/2021,0154324,970.00,Revenue,CC Door Systems Ltd,81624,,
Chorley Borough Council,http://statistics.data.gov.uk/id/local-authority/30UE,Business Support,1095,Commercial Services,Salting & Gritting,20059,Grounds Maintenance Costs,5013,"Seasonal Winter Gritting service for Market Walk Shopping Centre, service yards, public walkways and car park as discussed",19/03/2021,0154044,"1,760.10",Revenue,Chameleon Facilities Limited,78464,,
Chorley Borough Council,http://statistics.data.gov.uk/id/local-authority/30UE,Homelessness,1075,Commercial Services,Salting & Gritting,20059,Grounds Maintenance Costs,5013,"Seasonal Winter Gritting service for Cotswold House supported Living Accommodation, public walkways and car park ",19/03/2021,0154053,622.50,Revenue,Chameleon Facilities Limited,78464,,
Chorley Borough Council,http://statistics.data.gov.uk/id/local-authority/30UE,Recreation & Sport,1037,Commercial Services,Salting & Gritting,20059,Grounds Maintenance Costs,5013,"Seasonal Winter Gritting service for All Seasons Leisure Centre site Main carpark, access road and a front entrance to building",19/03/2021,0154054,614.50,Revenue,Chameleon Facilities Limited,78464,,
Chorley Borough Council,http://statistics.data.gov.uk/id/local-authority/30UE,Democratic Represent and  Mgnt,1007,Commercial Services,Salting & Gritting,20059,Grounds Maintenance Costs,5013,Seasonal Winter Gritting service for Brinscall Pool site Carpark and front entrance incl footpath from carpark to main entrance,19/03/2021,0154055,511.20,Revenue,Chameleon Facilities Limited,78464,,
Chorley Borough Council,http://statistics.data.gov.uk/id/local-authority/30UE,Recreation & Sport,1037,Commercial Services,Salting & Gritting,20059,Grounds Maintenance Costs,5013,Seasonal Winter Gritting service for Clayton Green Leisure centre.  Pathways to main entrance and around front entrance ,19/03/2021,0154056,532.00,Revenue,Chameleon Facilities Limited,78464,,
Chorley Borough Council,http://statistics.data.gov.uk/id/local-authority/30UE,Business Support,1095,Commercial Services,Salting & Gritting,20059,Grounds Maintenance Costs,5013,"Seasonal Winter Gritting service for Market Walk Shopping Centre, service yards, public walkways and car park ",19/03/2021,0154102,"2,992.17",Revenue,Chameleon Facilities Limited,78464,,
Chorley Borough Council,http://statistics.data.gov.uk/id/local-authority/30UE,Democratic Represent and  Mgnt,1007,Commercial Services,Salting & Gritting,20059,Grounds Maintenance Costs,5013,"Seasonal Winter Gritting service for All Seasons Leisure Centre site Main carpark, access road and a front entrance to building",19/03/2021,0154112,"1,044.65",Revenue,Chameleon Facilities Limited,78464,,
Chorley Borough Council,http://statistics.data.gov.uk/id/local-authority/30UE,Homelessness,1075,Commercial Services,Salting & Gritting,20059,Grounds Maintenance Costs,5013,"Seasonal Winter Gritting service for Cotswold House supported Living Accommodation, public walkways and car park ",19/03/2021,0154114,"1,058.25",Revenue,Chameleon Facilities Limited,78464,,
Chorley Borough Council,http://statistics.data.gov.uk/id/local-authority/30UE,Democratic Represent and  Mgnt,1007,Commercial Services,Salting & Gritting,20059,Grounds Maintenance Costs,5013,Seasonal Winter Gritting service for Clayton Green Leisure centre.  Pathways to main entrance and around front entrance,19/03/2021,0154115,904.40,Revenue,Chameleon Facilities Limited,78464,,
Chorley Borough Council,http://statistics.data.gov.uk/id/local-authority/30UE,Recreation & Sport,1037,Commercial Services,Salting & Gritting,20059,Grounds Maintenance Costs,5013,Seasonal Winter Gritting service for Brinscall Pool site Carpark and front entrance incl footpath from carpark to main entrance,19/03/2021,0154116,869.04,Revenue,Chameleon Facilities Limited,78464,,
Chorley Borough Council,http://statistics.data.gov.uk/id/local-authority/30UE,Parking Services,1066,Commercial Services,External Contractors,50008,Private Contractors,5042,Processing Services for period 01.04.2020-31.03.2021 Notice Processing Services Automated Telephone and Internet Payments,03/03/2021,0153820,401.13,Revenue,Chipside Ltd,22063,,
Chorley Borough Council,http://statistics.data.gov.uk/id/local-authority/30UE,Parking Services,1066,Commercial Services,External Contractors,50008,Private Contractors,5042,For annual Capital fixed costs distribution based on 1574 pcns.,05/03/2021,0153869,"1,195.94",Revenue,Chipside Ltd,22063,,
Chorley Borough Council,http://statistics.data.gov.uk/id/local-authority/30UE,Regulatory Services,1048,Customer & Digital,Taxi Testing & Vehicle Safety Report,40234,Services,5027,mot,24/03/2021,0154185,"1,645.50",Revenue,Chorley Autocare Ltd,17110,,
Chorley Borough Council,http://statistics.data.gov.uk/id/local-authority/30UE,Corporate Management,1008,Customer & Digital,Taxi Testing & Vehicle Safety Report,40234,Services,5027,taxi test,24/03/2021,0154185,256.50,Revenue,Chorley Autocare Ltd,17110,,
Chorley Borough Council,http://statistics.data.gov.uk/id/local-authority/30UE,Central Support Services,1009,Early Intervention,Children's Activities,40188,Miscellaneous Expenses,5034,Lancashire Breaktime Respite Care by Inspire Youth Zone April & May HT 2020 Total 3510.18,10/03/2021,0153756,"3,510.18",Revenue,Chorley Youth Zone,77339,,
Chorley Borough Council,http://statistics.data.gov.uk/id/local-authority/30UE,Central Support Services,1009,Early Intervention,Children's Activities,40188,Miscellaneous Expenses,5034,Lancashire Breaktime Respite Care by Inspire Youth Zone December Term Time 2020,10/03/2021,0153757,"1,064.00",Revenue,Chorley Youth Zone,77339,,
Chorley Borough Council,http://statistics.data.gov.uk/id/local-authority/30UE,Central Support Services,1009,Policy & Governance,Publications,40054,"Printing, Stationery & General",5026,Governance Update For Local Government - NAMES REDACTED,10/03/2021,0153870,390.00,Revenue,CIPFA Business Ltd,16247,,
Chorley Borough Council,http://statistics.data.gov.uk/id/local-authority/30UE,Central Support Services,1009,Policy & Governance,General Subscriptions,40146,Grants and Subscriptions,5031,Finance Advisory Network - 01 Apr 2021 - 31 Mar 2022,05/03/2021,0153881,"4,595.00",Revenue,CIPFA Business Ltd,16247,,
Chorley Borough Council,http://statistics.data.gov.uk/id/local-authority/30UE,Unapportionable Central OHeads,1009,Policy & Governance,General Subscriptions,40146,Grants and Subscriptions,5031,Finance Advisory Network - 01 Apr 2021 - 31 Mar 2022 - additional cost for Shared Service,05/03/2021,0153882,"1,635.00",Revenue,CIPFA Business Ltd,16247,,
Chorley Borough Council,http://statistics.data.gov.uk/id/local-authority/30UE,Central Support Services,1009,Policy & Governance,Publications,40054,"Printing, Stationery & General",5026,CIPFA Publications Subscription - 01 Apr 2021 - 31 Mar 2022,05/03/2021,0153896,"2,820.00",Revenue,CIPFA Business Ltd,16247,,
Chorley Borough Council,http://statistics.data.gov.uk/id/local-authority/30UE,Central Support Services,1009,Policy & Governance,General Subscriptions,40146,Grants and Subscriptions,5031,TISonline Full Subscription - 01 Apr 2021 - 31 Mar 2022,19/03/2021,0154311,"4,530.00",Revenue,CIPFA Business Ltd,16247,,
Chorley Borough Council,http://statistics.data.gov.uk/id/local-authority/30UE,Central Support Services,1009,Policy & Governance,IT Software - Annual Licences,40101,Communication and Computing,5028,"2021 - 2022 Licence, Support and Maintenance",26/03/2021,0153386,"53,717.44",Revenue,Civica UK Limited,17463,,
Chorley Borough Council,http://statistics.data.gov.uk/id/local-authority/30UE,Central Support Services,1009,Commercial Services,General Repairs - Reactive,20004,Repairs Maintenance & Alts,5005,Blanket reactive,10/03/2021,0153994,331.80,Revenue,Classic Lifts Limited,20897,,
Chorley Borough Council,http://statistics.data.gov.uk/id/local-authority/30UE,Central Support Services,1009,Early Intervention,Core Funding Grants,40133,Grants and Subscriptions,5031,Small community grant funding,26/03/2021,0152218,300.00,Revenue,Coppull Junior Bowling Club,18801,,
Chorley Borough Council,http://statistics.data.gov.uk/id/local-authority/30UE,Unapportionable Central OHeads,1009,Commercial Services,General Repairs - Reactive,20004,Repairs Maintenance & Alts,5005,Reactive Blanket,03/03/2021,0153717,362.00,Revenue,Corlett Electrical Eng Co Ltd,16271,,
Chorley Borough Council,http://statistics.data.gov.uk/id/local-authority/30UE,Capital,Capital,Commercial Services,Other Capital Related Fees,03024,Capital Expenditure,Capital,Chorley Market Remove all fittings to allow for cladding and then reinstated,03/03/2021,0153721,641.28,Capital,Corlett Electrical Eng Co Ltd,16271,,
Chorley Borough Council,http://statistics.data.gov.uk/id/local-authority/30UE,Economic Development,1096,Commercial Services,Fixtures & Fittings - Repair/Mtnce,20028,Fixtures and Fittings,5010,Chorley Market Replace boxes for sockets and defib unit,03/03/2021,0153722,546.03,Revenue,Corlett Electrical Eng Co Ltd,16271,,
Chorley Borough Council,http://statistics.data.gov.uk/id/local-authority/30UE,Central Support Services,1009,Commercial Services,General Repairs - Reactive,20004,Repairs Maintenance & Alts,5005,Reactive Blanket,03/03/2021,0153723,313.59,Revenue,Corlett Electrical Eng Co Ltd,16271,,
Chorley Borough Council,http://statistics.data.gov.uk/id/local-authority/30UE,Capital,Capital,Commercial Services,Main Contractor,03007,Capital Expenditure,Capital,Cabling for the new  barrier at the Bengal st depot entrance,03/03/2021,0153724,565.66,Capital,Corlett Electrical Eng Co Ltd,16271,,
Chorley Borough Council,http://statistics.data.gov.uk/id/local-authority/30UE,Corporate Management,1008,Commercial Services,Miscellaneous Expenses,40200,Miscellaneous Expenses,5034,Installation of additional power to new kitchen units due to covid 19 at the Town Hall,12/03/2021,0154120,309.00,Revenue,Corlett Electrical Eng Co Ltd,16271,,
Chorley Borough Council,http://statistics.data.gov.uk/id/local-authority/30UE,Democratic Represent and  Mgnt,1007,Commercial Services,General Repairs - Reactive,20004,Repairs Maintenance & Alts,5005,Brinscall Baths 3 lights not working in the cellar,12/03/2021,0154121,279.84,Revenue,Corlett Electrical Eng Co Ltd,16271,,
Chorley Borough Council,http://statistics.data.gov.uk/id/local-authority/30UE,Democratic Represent and  Mgnt,1007,Commercial Services,General Repairs - Reactive,20004,Repairs Maintenance & Alts,5005,All Seasons Pool plant balance tank lights,12/03/2021,0154159,269.43,Revenue,Corlett Electrical Eng Co Ltd,16271,,
Chorley Borough Council,http://statistics.data.gov.uk/id/local-authority/30UE,Democratic Represent and  Mgnt,1007,Commercial Services,General Repairs - Reactive,20004,Repairs Maintenance & Alts,5005,All Seasons Faulty IP rated sockets and switches,12/03/2021,0154161,315.00,Revenue,Corlett Electrical Eng Co Ltd,16271,,
Chorley Borough Council,http://statistics.data.gov.uk/id/local-authority/30UE,Capital,Capital,Commercial Services,Main Contractor,03007,Capital Expenditure,Capital,Leisure centre electrical works instructed by NAME REDACTED Approved by NAME REDACTED,12/03/2021,0154168,401.72,Capital,Corlett Electrical Eng Co Ltd,16271,,
Chorley Borough Council,http://statistics.data.gov.uk/id/local-authority/30UE,Central Support Services,1009,Commercial Services,General Repairs - Reactive,20004,Repairs Maintenance & Alts,5005,PO closed but was GRN`d back in dec 20 inv rec`d mar21,19/03/2021,0154179,492.00,Revenue,Corlett Electrical Eng Co Ltd,16271,,
Chorley Borough Council,http://statistics.data.gov.uk/id/local-authority/30UE,Unapportionable Central OHeads,1009,Commercial Services,Planned Maintenance,20006,Repairs Maintenance & Alts,5005,PPM blanket order,19/03/2021,0154182,311.20,Revenue,Corlett Electrical Eng Co Ltd,16271,,
Chorley Borough Council,http://statistics.data.gov.uk/id/local-authority/30UE,Capital,Capital,Commercial Services,Main Contractor,03007,Capital Expenditure,Capital,"Quote to NAME REDACTED All Seasons Disconnect 5 pool side uplighters Install new cabling, 5 Ansell ABEAMLED uplighters",19/03/2021,0154320,"1,996.50",Capital,Corlett Electrical Eng Co Ltd,16271,,
Chorley Borough Council,http://statistics.data.gov.uk/id/local-authority/30UE,Capital,Capital,Commercial Services,Main Contractor,03007,Capital Expenditure,Capital,Quote to NAME REDACTED Clayton Green Sports Centre replace floodlights - 2 100W & 8 50W and one photo cell unit,19/03/2021,0154320,"3,350.00",Capital,Corlett Electrical Eng Co Ltd,16271,,
Chorley Borough Council,http://statistics.data.gov.uk/id/local-authority/30UE,Democratic Represent and  Mgnt,1007,Commercial Services,General Repairs - Reactive,20004,Repairs Maintenance & Alts,5005,All Seasons Various lights not working as per logged help call,19/03/2021,0154334,397.50,Revenue,Corlett Electrical Eng Co Ltd,16271,,
Chorley Borough Council,http://statistics.data.gov.uk/id/local-authority/30UE,Business Support,1095,Commercial Services,Fixtures & Fittings - Repair/Mtnce,20028,Fixtures and Fittings,5010,MW unit 13 electrical condition report and remedials,26/03/2021,0154699,789.09,Revenue,Corlett Electrical Eng Co Ltd,16271,,
Chorley Borough Council,http://statistics.data.gov.uk/id/local-authority/30UE,Unapportionable Central OHeads,1009,Commercial Services,Planned Maintenance,20006,Repairs Maintenance & Alts,5005,PPM blanket order,26/03/2021,0154743,"1,684.50",Revenue,Corlett Electrical Eng Co Ltd,16271,,
Chorley Borough Council,http://statistics.data.gov.uk/id/local-authority/30UE,Business Support,1095,Commercial Services,Gas,20014,Energy Costs,5006,apr to may 2020,03/03/2021,0153571,"2,225.71",Revenue,Corona Energy Retail 2 Ltd,67249,,
Chorley Borough Council,http://statistics.data.gov.uk/id/local-authority/30UE,Business Support,1095,Commercial Services,Gas,20014,Energy Costs,5006,feb to apr 2020,03/03/2021,0153572,"3,064.07",Revenue,Corona Energy Retail 2 Ltd,67249,,
Chorley Borough Council,http://statistics.data.gov.uk/id/local-authority/30UE,Unapportionable Central OHeads,1009,Commercial Services,Gas,20014,Energy Costs,5006,jan-feb21,03/03/2021,0153672,971.24,Revenue,Corona Energy Retail 2 Ltd,67249,,
Chorley Borough Council,http://statistics.data.gov.uk/id/local-authority/30UE,Central Support Services,1009,Commercial Services,Gas,20014,Energy Costs,5006,jan to feb21,03/03/2021,0153801,"1,413.38",Revenue,Corona Energy Retail 2 Ltd,67249,,
Chorley Borough Council,http://statistics.data.gov.uk/id/local-authority/30UE,Recreation & Sport,1037,Commercial Services,Gas,20014,Energy Costs,5006,jan to feb 21,03/03/2021,0153802,"1,764.61",Revenue,Corona Energy Retail 2 Ltd,67249,,
Chorley Borough Council,http://statistics.data.gov.uk/id/local-authority/30UE,Unapportionable Central OHeads,1009,Commercial Services,Gas,20014,Energy Costs,5006,jan to feb 21,03/03/2021,0153804,279.99,Revenue,Corona Energy Retail 2 Ltd,67249,,
Chorley Borough Council,http://statistics.data.gov.uk/id/local-authority/30UE,Recreation & Sport,1037,Commercial Services,Gas,20014,Energy Costs,5006,jan to feb 21,03/03/2021,0153805,262.55,Revenue,Corona Energy Retail 2 Ltd,67249,,
Chorley Borough Council,http://statistics.data.gov.uk/id/local-authority/30UE,Business Support,1095,Commercial Services,Gas,20014,Energy Costs,5006,jan to feb 21,03/03/2021,0153807,"2,432.76",Revenue,Corona Energy Retail 2 Ltd,67249,,
Chorley Borough Council,http://statistics.data.gov.uk/id/local-authority/30UE,Business Support,1095,Commercial Services,Gas,20014,Energy Costs,5006,nov to dec 20,03/03/2021,0153808,"1,666.47",Revenue,Corona Energy Retail 2 Ltd,67249,,
Chorley Borough Council,http://statistics.data.gov.uk/id/local-authority/30UE,Business Support,1095,Commercial Services,Gas,20014,Energy Costs,5006,oct to nov20,03/03/2021,0153809,"1,885.30",Revenue,Corona Energy Retail 2 Ltd,67249,,
Chorley Borough Council,http://statistics.data.gov.uk/id/local-authority/30UE,Business Support,1095,Commercial Services,Gas,20014,Energy Costs,5006,sept to oct20,03/03/2021,0153810,"2,231.97",Revenue,Corona Energy Retail 2 Ltd,67249,,
Chorley Borough Council,http://statistics.data.gov.uk/id/local-authority/30UE,Business Support,1095,Commercial Services,Gas,20014,Energy Costs,5006,aug to sept 20,03/03/2021,0153811,"1,819.27",Revenue,Corona Energy Retail 2 Ltd,67249,,
Chorley Borough Council,http://statistics.data.gov.uk/id/local-authority/30UE,Business Support,1095,Commercial Services,Gas,20014,Energy Costs,5006,jul to aug 20,03/03/2021,0153812,"1,876.91",Revenue,Corona Energy Retail 2 Ltd,67249,,
Chorley Borough Council,http://statistics.data.gov.uk/id/local-authority/30UE,Culture & Heritage,1036,Commercial Services,Gas,20014,Energy Costs,5006,jan-feb21,03/03/2021,0153830,881.43,Revenue,Corona Energy Retail 2 Ltd,67249,,
Chorley Borough Council,http://statistics.data.gov.uk/id/local-authority/30UE,Homelessness,1075,Commercial Services,Gas,20014,Energy Costs,5006,jan to feb21,03/03/2021,0153831,"1,117.80",Revenue,Corona Energy Retail 2 Ltd,67249,,
Chorley Borough Council,http://statistics.data.gov.uk/id/local-authority/30UE,Business Support,1095,Commercial Services,Gas,20014,Energy Costs,5006,dec20 to jan21,03/03/2021,0153832,"2,189.53",Revenue,Corona Energy Retail 2 Ltd,67249,,
Chorley Borough Council,http://statistics.data.gov.uk/id/local-authority/30UE,Democratic Represent and  Mgnt,1007,Commercial Services,Gas,20014,Energy Costs,5006,jan feb 21,03/03/2021,0153833,"1,855.20",Revenue,Corona Energy Retail 2 Ltd,67249,,
Chorley Borough Council,http://statistics.data.gov.uk/id/local-authority/30UE,Business Support,1095,Commercial Services,Gas,20014,Energy Costs,5006,may to jun 20,03/03/2021,0153834,"2,723.77",Revenue,Corona Energy Retail 2 Ltd,67249,,
Chorley Borough Council,http://statistics.data.gov.uk/id/local-authority/30UE,Recreation & Sport,1037,Commercial Services,Gas,20014,Energy Costs,5006,jan feb 21,03/03/2021,0153835,"5,302.99",Revenue,Corona Energy Retail 2 Ltd,67249,,
Chorley Borough Council,http://statistics.data.gov.uk/id/local-authority/30UE,Democratic Represent and  Mgnt,1007,Commercial Services,Gas,20014,Energy Costs,5006,dec to jan21,03/03/2021,0153837,678.08,Revenue,Corona Energy Retail 2 Ltd,67249,,
Chorley Borough Council,http://statistics.data.gov.uk/id/local-authority/30UE,Democratic Represent and  Mgnt,1007,Commercial Services,Gas,20014,Energy Costs,5006,janto feb21,03/03/2021,0153838,"1,462.85",Revenue,Corona Energy Retail 2 Ltd,67249,,
Chorley Borough Council,http://statistics.data.gov.uk/id/local-authority/30UE,Democratic Represent and  Mgnt,1007,Commercial Services,Gas,20014,Energy Costs,5006,dec 20 to jan21,03/03/2021,0153840,"2,009.18",Revenue,Corona Energy Retail 2 Ltd,67249,,
Chorley Borough Council,http://statistics.data.gov.uk/id/local-authority/30UE,Business Support,1095,Commercial Services,Gas,20014,Energy Costs,5006,jun to jul 2020,03/03/2021,0153841,"2,052.94",Revenue,Corona Energy Retail 2 Ltd,67249,,
Chorley Borough Council,http://statistics.data.gov.uk/id/local-authority/30UE,Recreation & Sport,1037,Commercial Services,Gas,20014,Energy Costs,5006,dec20 to jan21,03/03/2021,0153842,"1,504.98",Revenue,Corona Energy Retail 2 Ltd,67249,,
Chorley Borough Council,http://statistics.data.gov.uk/id/local-authority/30UE,Central Support Services,1009,Commercial Services,Professional Fees,40063,Services,5027,"Feasibility study for shared footway/cycleway linking Euxton Lane, via Alker Lane, to Buckshaw Village to the north of the rail line",03/03/2021,0153728,"1,750.00",Revenue,Curtins Consulting Limited,20049,,
Chorley Borough Council,http://statistics.data.gov.uk/id/local-authority/30UE,Central Support Services,1009,Commercial Services,Professional Fees,40063,Services,5027,"Proof of Evidence, Allowance for Meetings x 4, Preparation for and Attendance at Inquiry, Total (excluding VAT/disbursements)",10/03/2021,0153934,"5,250.00",Revenue,Curtins Consulting Limited,20049,,
Chorley Borough Council,http://statistics.data.gov.uk/id/local-authority/30UE,Central Support Services,1009,Commercial Services,Professional Fees,40063,Services,5027,6 domestic condition surveys to properties @ Tatton development,10/03/2021,0153935,"1,500.00",Revenue,Curtins Consulting Limited,20049,,
Chorley Borough Council,http://statistics.data.gov.uk/id/local-authority/30UE,Capital,Capital,Early Intervention,Grants,03002,Capital Expenditure,Capital,ADDRESS REDACTED,10/03/2021,0153942,"3,981.50",Capital,D J Bathing,78482,,
Chorley Borough Council,http://statistics.data.gov.uk/id/local-authority/30UE,Development Control,1091,Early Intervention,Legal Fees,40171,Miscellaneous Expenses,5034,Eaves Green Inquiry Further work on SoCG and revisions to SoC 10.03.21 and telecon on viability costs 12.03.21,17/03/2021,0154289,825.00,Revenue,David Forsdick,81904,,
Chorley Borough Council,http://statistics.data.gov.uk/id/local-authority/30UE,Development Control,1091,Early Intervention,Legal Fees,40171,Miscellaneous Expenses,5034,"Eaves Green Inquiry Considering new material/drafting note and telecon 08.03.21 Draft letter, SoCG, emails and telecon 09.03.21",17/03/2021,0154290,"1,700.00",Revenue,David Forsdick,81904,,
Chorley Borough Council,http://statistics.data.gov.uk/id/local-authority/30UE,Development Control,1091,Early Intervention,Legal Fees,40171,Miscellaneous Expenses,5034,Advising in consultation 03.03.21,17/03/2021,0154291,"2,775.00",Revenue,David Forsdick,81904,,
Chorley Borough Council,http://statistics.data.gov.uk/id/local-authority/30UE,Development Control,1091,Customer & Digital,Other Income,60168,Customer & Client Receipts,5064,Refund for Pre-Application,12/03/2021,0154070,622.08,Revenue,NAME REDACTED,81805,,
Chorley Borough Council,http://statistics.data.gov.uk/id/local-authority/30UE,Building Control,1090,Customer & Digital,Agency Staff,13000,Direct Employee Expenses,5001,Agency Fees for NAME REDACTED Building Control Officer ends 02.04.2021 21.75hrs per week plus travel costs,24/03/2021,0153741,"1,198.65",Revenue,Deekay Technical Recruit Ltd,17160,,
Chorley Borough Council,http://statistics.data.gov.uk/id/local-authority/30UE,Building Control,1090,Customer & Digital,Agency Staff,13000,Direct Employee Expenses,5001,Agency Fees for NAME REDACTED Building Control Officer ends 02.04.2021 21.75hrs per week plus travel costs,24/03/2021,0153758,"1,160.85",Revenue,Deekay Technical Recruit Ltd,17160,,
Chorley Borough Council,http://statistics.data.gov.uk/id/local-authority/30UE,Building Control,1090,Customer & Digital,Agency Staff,13000,Direct Employee Expenses,5001,Agency fees for NAME REDACTED Building Control Officer 37.25 hrs plus travel costs wk ending 12.03.2021,29/03/2021,0154901,"1,829.40",Revenue,Deekay Technical Recruit Ltd,17160,,
Chorley Borough Council,http://statistics.data.gov.uk/id/local-authority/30UE,Building Control,1090,Customer & Digital,Agency Staff,13000,Direct Employee Expenses,5001,Agency Fees for NAME REDACTED Building Control Officer 36.25hrs plus travel costs wk ending 19.03.2021,29/03/2021,0154902,"1,786.35",Revenue,Deekay Technical Recruit Ltd,17160,,
Chorley Borough Council,http://statistics.data.gov.uk/id/local-authority/30UE,Control Accounts,Control,Policy & Governance,General Balances,00100,Balance Sheet,Balance,Child Maintenance Attachment of Earnings,26/03/2021,0154898,450.58,Revenue,Department for Work and Pensions,80469,,
Chorley Borough Council,http://statistics.data.gov.uk/id/local-authority/30UE,Central Support Services,1009,Early Intervention,Miscellaneous Expenses,40200,Miscellaneous Expenses,5034,GRT Clean up - All Seasons Leisure Centre Car Park,26/03/2021,0154303,315.00,Revenue,Direct Cleaning Services LTD,81180,,
Chorley Borough Council,http://statistics.data.gov.uk/id/local-authority/30UE,Business Support,1095,Commercial Services,Furniture - Purchase,40012,"Equipment, Furniture & Materia",5023,"2 x REM Colorado Styling Chair on 5 Star Base in A = Kirsche, B = Black @349.00, 2 x REM Protective Chair Back Cover ",10/03/2021,0153996,"1,789.50",Revenue,Direct Salon Supplies,78128,,
Chorley Borough Council,http://statistics.data.gov.uk/id/local-authority/30UE,Building Control,1090,Customer & Digital,General Subscriptions,40146,Grants and Subscriptions,5031,LABC Service Fee - 2021/22,24/03/2021,0154503,"2,110.54",Revenue,District Surveyors Association Limited t/a LABC,17538,,
Chorley Borough Council,http://statistics.data.gov.uk/id/local-authority/30UE,Central Support Services,1009,Commercial Services,General Repairs - Reactive,20004,Repairs Maintenance & Alts,5005,General building reactive repairs blanket,03/03/2021,0153732,780.00,Revenue,EFT Construction,78195,,
Chorley Borough Council,http://statistics.data.gov.uk/id/local-authority/30UE,Unapportionable Central OHeads,1009,Commercial Services,General Repairs - Reactive,20004,Repairs Maintenance & Alts,5005,General building reactive repairs blanket,03/03/2021,0153733,920.00,Revenue,EFT Construction,78195,,
Chorley Borough Council,http://statistics.data.gov.uk/id/local-authority/30UE,Service Management & Support,1009,Commercial Services,Grounds Maintenance Contractor,20043,Grounds Maintenance Costs,5013,Fencing works at the willows as asked by NAME REDACTED,03/03/2021,0153734,665.41,Revenue,EFT Construction,78195,,
Chorley Borough Council,http://statistics.data.gov.uk/id/local-authority/30UE,Capital,Capital,Commercial Services,Main Contractor,03007,Capital Expenditure,Capital,"All Seasons Remove, inspect and replace all rotten wooden panels/batons on rear of stainless steel transformer/other inspection",10/03/2021,0153901,"1,113.50",Capital,EFT Construction,78195,,
Chorley Borough Council,http://statistics.data.gov.uk/id/local-authority/30UE,Democratic Represent and  Mgnt,1007,Commercial Services,General Repairs - Reactive,20004,Repairs Maintenance & Alts,5005,All Seasons The external gate leading to the bin compound has dropped and will not close/lock,10/03/2021,0153910,320.79,Revenue,EFT Construction,78195,,
Chorley Borough Council,http://statistics.data.gov.uk/id/local-authority/30UE,Unapportionable Central OHeads,1009,Commercial Services,General Repairs - Reactive,20004,Repairs Maintenance & Alts,5005,General building reactive repairs blanket,10/03/2021,0154032,480.00,Revenue,EFT Construction,78195,,
Chorley Borough Council,http://statistics.data.gov.uk/id/local-authority/30UE,Democratic Represent and  Mgnt,1007,Commercial Services,General Repairs - Reactive,20004,Repairs Maintenance & Alts,5005,Brinscall Baths Quote SSQ21 Approved by NAME REDACTED Supply and fit internal cubicle door and screen to changing area,24/03/2021,0154532,"1,326.00",Revenue,EFT Construction,78195,,
Chorley Borough Council,http://statistics.data.gov.uk/id/local-authority/30UE,Unapportionable Central OHeads,1009,Commercial Services,General Repairs - Reactive,20004,Repairs Maintenance & Alts,5005,General building reactive repairs blanket,24/03/2021,0154611,384.03,Revenue,EFT Construction,78195,,
Chorley Borough Council,http://statistics.data.gov.uk/id/local-authority/30UE,Democratic Represent and  Mgnt,1007,Commercial Services,General Repairs - Reactive,20004,Repairs Maintenance & Alts,5005,"Repair, refit. replace faulty taps.3 WOMENS WETSIDE, 1 MENS WETSIDE, 2 FIRST FLOOR WOMENS TOILETS",24/03/2021,0154631,605.00,Revenue,EFT Construction,78195,,
Chorley Borough Council,http://statistics.data.gov.uk/id/local-authority/30UE,Business Support,1095,Commercial Services,Special Repairs,20007,Repairs Maintenance & Alts,5005,"the firestopping works to areas as detailed in attached report Our costs are inclusive of all materials, labour and access ",24/03/2021,0154632,"3,862.00",Revenue,EFT Construction,78195,,
Chorley Borough Council,http://statistics.data.gov.uk/id/local-authority/30UE,Corporate Management,1008,Commercial Services,Miscellaneous Expenses,40200,Miscellaneous Expenses,5034,"Manufacture, supply, fit and decorate window casements for union st Ground floor to enable windows to be opened - covid airflow",26/03/2021,0154753,"2,035.12",Revenue,EFT Construction,78195,,
Chorley Borough Council,http://statistics.data.gov.uk/id/local-authority/30UE,Unapportionable Central OHeads,1009,Commercial Services,Asset Maintenance Fund,20012,Repairs Maintenance & Alts,5005,Refugee Blanket reactive,26/03/2021,0154848,403.01,Revenue,EFT Construction,78195,,
Chorley Borough Council,http://statistics.data.gov.uk/id/local-authority/30UE,Capital,Capital,Commercial Services,Surveyors Fees,03021,Capital Expenditure,Capital,Updated Ecological Survey and Assessment of land at Alker Lane,03/03/2021,0153032,381.50,Capital,ERAP (Consultant Ecologists) Ltd,78559,,
Chorley Borough Council,http://statistics.data.gov.uk/id/local-authority/30UE,Capital,Capital,Commercial Services,Surveyors Fees,03021,Capital Expenditure,Capital,Updated Ecological Survey and Assessment of land at Alker Lane,03/03/2021,0153033,"2,997.60",Capital,ERAP (Consultant Ecologists) Ltd,78559,,
Chorley Borough Council,http://statistics.data.gov.uk/id/local-authority/30UE,Business Support,1095,Commercial Services,Internet Charges,40104,Communication and Computing,5028,"Connect Service Growth Edition: software charge, cloud primary circuit, cloud backup circuit, allocated inte",05/03/2021,0153822,"3,810.00",Revenue,Essensys Ltd,77836,,
Chorley Borough Council,http://statistics.data.gov.uk/id/local-authority/30UE,Corporate Management,1008,Customer & Digital,Items For Resale,40027,"Equipment, Furniture & Materia",5023,"Provision and delivery of spare parts for 1100L metal euro bins. 25 X Lid, Hinge sets and hinge bars.",10/03/2021,0153817,736.90,Revenue,Fairport Containers Ltd,17735,,
Chorley Borough Council,http://statistics.data.gov.uk/id/local-authority/30UE,Recreation & Sport,1037,Early Intervention,Miscellaneous Expenses,40200,Miscellaneous Expenses,5034,"Cap2 Integration Fee @750 2,000 Cap2 SMS Credit Bundle @132 Course Pro Setup @370 Online Training @1,020",19/03/2021,0153861,"2,272.00",Revenue,Fitronics Ltd T/A Cap2 Solutions,80937,,
Chorley Borough Council,http://statistics.data.gov.uk/id/local-authority/30UE,Democratic Represent and  Mgnt,1007,Commercial Services,Tools & Equipment - Hire,40004,"Equipment, Furniture & Materia",5023,All seasons hyproliser  rental monthly fee 420.14 12 months contract,03/03/2021,0153096,420.14,Revenue,Gaffey Technical Services Ltd,18844,,
Chorley Borough Council,http://statistics.data.gov.uk/id/local-authority/30UE,Recreation & Sport,1037,Commercial Services,Tools & Equipment - Hire,40004,"Equipment, Furniture & Materia",5023,All seasons hyproliser  rental monthly fee 420.14 12 months contract,10/03/2021,0153992,420.14,Revenue,Gaffey Technical Services Ltd,18844,,
Chorley Borough Council,http://statistics.data.gov.uk/id/local-authority/30UE,Service Management & Support,1009,Customer & Digital,Vehicles and Plant Maintenance,30045,Direct Transport Costs,5016,"Schmidt - x2- Plastic protection plate, x2-Gas Spring, Carriage, Johnstons 8x rear suction box water jet nozzles + Carriage",03/03/2021,0153227,311.23,Revenue,Go Plant Fleet Services Ltd,80857,,
Chorley Borough Council,http://statistics.data.gov.uk/id/local-authority/30UE,Service Management & Support,1009,Customer & Digital,Hire Of Vehicles and Plant,30028,Contrct Hire & Operating Lease,5018,3 Year Contract hire 1x Schmidt Swingo 200+ as per ITT including servicing and Maintenance,03/03/2021,0153502,"2,019.85",Revenue,Go Plant Fleet Services Ltd,80857,,
Chorley Borough Council,http://statistics.data.gov.uk/id/local-authority/30UE,Service Management & Support,1009,Customer & Digital,Hire Of Vehicles and Plant,30028,Contrct Hire & Operating Lease,5018,3 Year Contract hire 1x Schmidt Swingo 200+ as per ITT including servicing and Maintenance,03/03/2021,0153503,"2,019.85",Revenue,Go Plant Fleet Services Ltd,80857,,
Chorley Borough Council,http://statistics.data.gov.uk/id/local-authority/30UE,Service Management & Support,1009,Customer & Digital,Hire Of Vehicles and Plant,30028,Contrct Hire & Operating Lease,5018,3 Year Contract Hire Chassis mounted sweeper as per ITT. Including servicing and Maintenance. to be paid monthly in arrears,03/03/2021,0153506,"2,772.31",Revenue,Go Plant Fleet Services Ltd,80857,,
Chorley Borough Council,http://statistics.data.gov.uk/id/local-authority/30UE,Service Management & Support,1009,Customer & Digital,Hire Of Vehicles and Plant,30028,Contrct Hire & Operating Lease,5018,3 Year Contract hire 1x Johnston CN101 as per ITT including servicing and Maintenance,03/03/2021,0153507,"1,762.23",Revenue,Go Plant Fleet Services Ltd,80857,,
Chorley Borough Council,http://statistics.data.gov.uk/id/local-authority/30UE,Service Management & Support,1009,Customer & Digital,Hire Of Vehicles and Plant,30028,Contrct Hire & Operating Lease,5018,3 Year Contract hire 1x Johnston CN101 as per ITT including servicing and Maintenance,26/03/2021,0154733,"1,762.23",Revenue,Go Plant Fleet Services Ltd,80857,,
Chorley Borough Council,http://statistics.data.gov.uk/id/local-authority/30UE,Service Management & Support,1009,Customer & Digital,Hire Of Vehicles and Plant,30028,Contrct Hire & Operating Lease,5018,3 Year Contract Hire Chassis mounted sweeper as per ITT. Including servicing and Maintenance. to be paid monthly in arrears,26/03/2021,0154734,"2,772.31",Revenue,Go Plant Fleet Services Ltd,80857,,
Chorley Borough Council,http://statistics.data.gov.uk/id/local-authority/30UE,Service Management & Support,1009,Customer & Digital,Hire Of Vehicles and Plant,30028,Contrct Hire & Operating Lease,5018,3 Year Contract hire 1x Schmidt Swingo 200+ as per ITT including servicing and Maintenance,26/03/2021,0154735,"2,019.85",Revenue,Go Plant Fleet Services Ltd,80857,,
Chorley Borough Council,http://statistics.data.gov.uk/id/local-authority/30UE,Service Management & Support,1009,Customer & Digital,Hire Of Vehicles and Plant,30028,Contrct Hire & Operating Lease,5018,3 Year Contract hire 1x Schmidt Swingo 200+ as per ITT including servicing and Maintenance,26/03/2021,0154736,"2,019.85",Revenue,Go Plant Fleet Services Ltd,80857,,
Chorley Borough Council,http://statistics.data.gov.uk/id/local-authority/30UE,Economic Development,1096,Commercial Services,Professional Fees,40063,Services,5027,Covered Market Refurbishment & Upgrade Works to progress & complete delivery of the covered market improvements,10/03/2021,0153751,149.99,Revenue,Gosling Construction Services,78380,,
Chorley Borough Council,http://statistics.data.gov.uk/id/local-authority/30UE,Economic Development,1096,Commercial Services,Professional Fees,40063,Services,5027,"Procurement,  including Agreement of an appropriate procurement strategy for each element of the works Preparation of enquiry ",10/03/2021,0153751,"1,199.90",Revenue,Gosling Construction Services,78380,,
Chorley Borough Council,http://statistics.data.gov.uk/id/local-authority/30UE,Economic Development,1096,Commercial Services,Professional Fees,40063,Services,5027,Detailed Planning & Logistics Development of a detailed works programme including all necessary updates as works proceed,10/03/2021,0153751,599.95,Revenue,Gosling Construction Services,78380,,
Chorley Borough Council,http://statistics.data.gov.uk/id/local-authority/30UE,Economic Development,1096,Commercial Services,Professional Fees,40063,Services,5027,"Visiting Supervision Provision of qualified visiting supervision to: Check and respond to RAMS, Project Manage the co-ordination ",10/03/2021,0153751,"1,349.88",Revenue,Gosling Construction Services,78380,,
Chorley Borough Council,http://statistics.data.gov.uk/id/local-authority/30UE,Economic Development,1096,Commercial Services,Professional Fees,40063,Services,5027,Design Management Work with the design team to develop the design and meet the Client brief Support the Architect in the ,10/03/2021,0153751,299.98,Revenue,Gosling Construction Services,78380,,
Chorley Borough Council,http://statistics.data.gov.uk/id/local-authority/30UE,Central Support Services,1009,Commercial Services,Consultants` Fees,40077,Services,5027,"Staff support - Tatton, Alker and Buzz Bingo",10/03/2021,0153969,"3,818.75",Revenue,Gosling Construction Services,78380,,
Chorley Borough Council,http://statistics.data.gov.uk/id/local-authority/30UE,Central Support Services,1009,Commercial Services,Professional Fees,40063,Services,5027,cost plan update to for scorpion automotive scheme,17/03/2021,0154228,325.00,Revenue,Gosling Construction Services,78380,,
Chorley Borough Council,http://statistics.data.gov.uk/id/local-authority/30UE,Central Support Services,1009,Commercial Services,Consultants` Fees,40077,Services,5027,client support,17/03/2021,0154229,"3,575.00",Revenue,Gosling Construction Services,78380,,
Chorley Borough Council,http://statistics.data.gov.uk/id/local-authority/30UE,Central Support Services,1009,Customer & Digital,Vandalism Repairs,20005,Repairs Maintenance & Alts,5005,Graffiti removal contract December 2020 ongoing,10/03/2021,0153762,645.00,Revenue,Graffiti Away Ltd,78340,,
Chorley Borough Council,http://statistics.data.gov.uk/id/local-authority/30UE,Business Support,1095,Commercial Services,Stationery,40050,"Printing, Stationery & General",5026,BROTHER TN247BK BLACK TONER 3K HIGH PRINT CAPACITY X2,19/03/2021,0154271,63.99,Revenue,Grafton Projects Limited,76545,,
Chorley Borough Council,http://statistics.data.gov.uk/id/local-authority/30UE,Business Support,1095,Commercial Services,Stationery,40050,"Printing, Stationery & General",5026,BROTHER TN247Y YELLOW 2.3K HICH PRINT CAPACITY X2,19/03/2021,0154271,74.25,Revenue,Grafton Projects Limited,76545,,
Chorley Borough Council,http://statistics.data.gov.uk/id/local-authority/30UE,Business Support,1095,Commercial Services,Stationery,40050,"Printing, Stationery & General",5026,BROTHER TN247C CYAN TONER 2.3K HIGH PRINT CAPACITY X2,19/03/2021,0154271,74.25,Revenue,Grafton Projects Limited,76545,,
Chorley Borough Council,http://statistics.data.gov.uk/id/local-authority/30UE,Business Support,1095,Commercial Services,Stationery,40050,"Printing, Stationery & General",5026,BROTHER TN247M MAGENTA 2.3K HIGH PRINT CAPACITY X2,19/03/2021,0154271,74.25,Revenue,Grafton Projects Limited,76545,,
Chorley Borough Council,http://statistics.data.gov.uk/id/local-authority/30UE,Business Support,1095,Commercial Services,Stationery,40050,"Printing, Stationery & General",5026,BROTHER TN247BK BLACK TONER 3K HIGH PRINT CAPACITY X2,19/03/2021,0154273,63.99,Revenue,Grafton Projects Limited,76545,,
Chorley Borough Council,http://statistics.data.gov.uk/id/local-authority/30UE,Business Support,1095,Commercial Services,Stationery,40050,"Printing, Stationery & General",5026,BROTHER TN247Y YELLOW 2.3K HICH PRINT CAPACITY X2,19/03/2021,0154273,74.25,Revenue,Grafton Projects Limited,76545,,
Chorley Borough Council,http://statistics.data.gov.uk/id/local-authority/30UE,Business Support,1095,Commercial Services,Stationery,40050,"Printing, Stationery & General",5026,BROTHER TN247C CYAN TONER 2.3K HIGH PRINT CAPACITY X2,19/03/2021,0154273,74.25,Revenue,Grafton Projects Limited,76545,,
Chorley Borough Council,http://statistics.data.gov.uk/id/local-authority/30UE,Business Support,1095,Commercial Services,Stationery,40050,"Printing, Stationery & General",5026,BROTHER TN247M MAGENTA 2.3K HIGH PRINT CAPACITY X2,19/03/2021,0154273,74.25,Revenue,Grafton Projects Limited,76545,,
Chorley Borough Council,http://statistics.data.gov.uk/id/local-authority/30UE,Corporate Management,1008,Policy & Governance,External Audit,40064,Services,5027,Chorley Council Main Audit Fee 2020-21,05/03/2021,0153874,"8,711.50",Revenue,Grant Thornton UK LLP,57322,,
Chorley Borough Council,http://statistics.data.gov.uk/id/local-authority/30UE,Corporate Management,1008,Commercial Services,Publicity - Advertising,40157,Miscellaneous Expenses,5034,"Social Media for Market Walk, Chorley.  July 2020 - March 2021 @500 per month Total 4500 + VAT",10/03/2021,0153764,500.00,Revenue,Gravity,77837,,
Chorley Borough Council,http://statistics.data.gov.uk/id/local-authority/30UE,Corporate Management,1008,Policy & Governance,Miscellaneous Expenses,40200,Miscellaneous Expenses,5034,Hire of eight mobile hand wash stations from 1st to 28th February 2021.,05/03/2021,0153730,"1,440.00",Revenue,Hallmark Catering,78575,,
Chorley Borough Council,http://statistics.data.gov.uk/id/local-authority/30UE,Service Management & Support,1009,Customer & Digital,Supplies-Grounds Maintenance,40025,"Equipment, Furniture & Materia",5023,As per quotation from NAME REDACTED Chorley Borough Printed Sacks As Previous 60k - 88.89 Per 1000,24/03/2021,0153468,"5,377.85",Revenue,Harrisons Packaging Ltd,17555,,
Chorley Borough Council,http://statistics.data.gov.uk/id/local-authority/30UE,Culture & Heritage,1036,Policy & Governance,General Subscriptions,40146,Grants and Subscriptions,5031,Astley Hall Museum and Art Gallery Annual subscription to Harwell Restoration - Priority User Renewal @ 290 (plus vat),10/03/2021,0150436,290.00,Revenue,Harwell Technical Services Ltd,18416,,
Chorley Borough Council,http://statistics.data.gov.uk/id/local-authority/30UE,Central Support Services,1009,Commercial Services,General Repairs - Reactive,20004,Repairs Maintenance & Alts,5005,Blanket reactive,24/03/2021,0154573,289.00,Revenue,Henry Nightingale & Son,17923,,
Chorley Borough Council,http://statistics.data.gov.uk/id/local-authority/30UE,Business Support,1095,Policy & Governance,Legal Fees,40171,Miscellaneous Expenses,5034,Legal fees in connection to the lease of Units 2 and 3 Market walk Extensions to NAME REDACTED,05/03/2021,0153531,"5,000.00",Revenue,Hill Dickinson LLP,62638,,
Chorley Borough Council,http://statistics.data.gov.uk/id/local-authority/30UE,Business Support,1095,Policy & Governance,Legal Fees,40171,Miscellaneous Expenses,5034,fees land reg,05/03/2021,0153531,63.00,Revenue,Hill Dickinson LLP,62638,,
Chorley Borough Council,http://statistics.data.gov.uk/id/local-authority/30UE,Capital,Capital,Policy & Governance,Main Contractor,03007,Capital Expenditure,Capital,Stamp Duty ADDRESS REDACTED,29/03/2021,0154961,"4,110.00",Capital,HM Revenue & Customs,56499,,
Chorley Borough Council,http://statistics.data.gov.uk/id/local-authority/30UE,Capital,Capital,Policy & Governance,Main Contractor,03007,Capital Expenditure,Capital,Stamp Duty ADDRESS REDACTED,29/03/2021,0154962,"4,798.00",Capital,HM Revenue & Customs,56499,,
Chorley Borough Council,http://statistics.data.gov.uk/id/local-authority/30UE,Central Support Services,1009,Customer & Digital,Telephones - Other,40085,Communication and Computing,5028,Hybrit SIP charges Feb 21,12/03/2021,0153669,598.00,Revenue,Hybrit LLP,77925,,
Chorley Borough Council,http://statistics.data.gov.uk/id/local-authority/30UE,Central Support Services,1009,Customer & Digital,IT Software - Annual Licences,40101,Communication and Computing,5028,exclaimer cloud signature for o365 users 800 x 4.80,12/03/2021,0153765,"3,840.00",Revenue,Hybrit LLP,77925,,
Chorley Borough Council,http://statistics.data.gov.uk/id/local-authority/30UE,Central Support Services,1009,Customer & Digital,Telephones - Other,40085,Communication and Computing,5028,Hybrit SIP charges Jan 21,17/03/2021,0153892,598.00,Revenue,Hybrit LLP,77925,,
Chorley Borough Council,http://statistics.data.gov.uk/id/local-authority/30UE,Corporate Management,1008,Policy & Governance,Other Fees,40212,Miscellaneous Expenses,5034,Subsidy for the provision of a meals on wheels service in Chorley up to 31 Jan 21,03/03/2021,0153412,"2,246.19",Revenue,I Care GB Ltd,77247,,
Chorley Borough Council,http://statistics.data.gov.uk/id/local-authority/30UE,Corporate Management,1008,Policy & Governance,Other Fees,40212,Miscellaneous Expenses,5034,Subsidy for the provision of a meals on wheels service in Chorley to 28 February 2021,26/03/2021,0154232,"2,243.67",Revenue,I Care GB Ltd,77247,,
Chorley Borough Council,http://statistics.data.gov.uk/id/local-authority/30UE,Elections,1012,Policy & Governance,Computer Software-Maintenance,40107,Communication and Computing,5028,"Eros Scanning per user, PVC Auto network licence, PVC additional non-Auto client - Annual support & maintenance",17/03/2021,0154218,"8,715.10",Revenue,IDOX Software Limited,17542,,
Chorley Borough Council,http://statistics.data.gov.uk/id/local-authority/30UE,Central Support Services,1009,Customer & Digital,Clinical Waste Collection,50007,Private Contractors,5042,Provision of service for the collection and  disposal of Clinical Waste from domestic  properties in the Chorley. Jan to  March 2021,24/03/2021,0154250,"1,039.14",Revenue,Initial,78488,,
Chorley Borough Council,http://statistics.data.gov.uk/id/local-authority/30UE,Corporate Management,1008,Customer & Digital,Clinical Waste Collection,50007,Private Contractors,5042,Provision of service for the collection and disposal of Clinical Waste from domestic properties in the Chorley. Apr 20 to March 21,24/03/2021,0154268,"1,006.64",Revenue,Initial,78488,,
Chorley Borough Council,http://statistics.data.gov.uk/id/local-authority/30UE,Control Accounts,Control,System,Manual Control Account,00001,Balance Sheet,Balance,,17/03/2021,0153400,352.51,Revenue,Inland Revenue REDACTED,17445,,
Chorley Borough Council,http://statistics.data.gov.uk/id/local-authority/30UE,Control Accounts,Control,System,Manual Control Account,00001,Balance Sheet,Balance,,17/03/2021,0153446,966.65,Revenue,Inland Revenue REDACTED,17445,,
Chorley Borough Council,http://statistics.data.gov.uk/id/local-authority/30UE,Control Accounts,Control,System,Manual Control Account,00001,Balance Sheet,Balance,,17/03/2021,0153608,"2,407.12",Revenue,Inland Revenue REDACTED,17445,,
Chorley Borough Council,http://statistics.data.gov.uk/id/local-authority/30UE,Control Accounts,Control,System,Manual Control Account,00001,Balance Sheet,Balance,,17/03/2021,0153857,"10,062.00",Revenue,Inland Revenue REDACTED,17445,,
Chorley Borough Council,http://statistics.data.gov.uk/id/local-authority/30UE,Corporate Management,1008,Customer & Digital,Professional Fees,14011,Direct Employee Expenses,5001,Subscription fees 1 year 01.04.2021 - 31.03.2022,10/03/2021,0153889,740.00,Revenue,James Button and Co,77064,,
Chorley Borough Council,http://statistics.data.gov.uk/id/local-authority/30UE,Capital,Capital,Commercial Services,Other Capital Related Fees,03024,Capital Expenditure,Capital,"Bobcat Folding-Arm Awning, Ferrari 302-111 Grey/White. Hardware Col.: RAL 7016 - Anthracite Grey, Operation: Gear Operation",03/03/2021,0152714,"1,475.00",Capital,James Robertshaw & Sons (1954) Ltd,81520,,
Chorley Borough Council,http://statistics.data.gov.uk/id/local-authority/30UE,Capital,Capital,Commercial Services,Other Capital Related Fees,03024,Capital Expenditure,Capital,"37 x �JR A101: Bobcat� full-cassette sunblind systems, the strongest full-cassette entry-level awning manufactured in the UK",03/03/2021,0153743,"49,362.30",Capital,James Robertshaw & Sons (1954) Ltd,81520,,
Chorley Borough Council,http://statistics.data.gov.uk/id/local-authority/30UE,Planning Policy,1092,Early Intervention,Professional Fees,40063,Services,5027,Work undertaken by consultants for a Central Lancashire Strategic Flood Risk Assessment (SFRA).,10/03/2021,0153850,"3,085.82",Revenue,JBA Consulting,77859,,
Chorley Borough Council,http://statistics.data.gov.uk/id/local-authority/30UE,Planning Policy,1092,Early Intervention,Professional Fees,40063,Services,5027,Work undertaken by consultants for a Central Lancashire Strategic Flood Risk Assessment (SFRA).,26/03/2021,0154678,"4,000.00",Revenue,JBA Consulting,77859,,
Chorley Borough Council,http://statistics.data.gov.uk/id/local-authority/30UE,Business Support,1095,Commercial Services,Tools & Equipment - Purchase,40003,"Equipment, Furniture & Materia",5023,PO raised for washing machine equipment at Primrose  Gardens from 20.07.2020 - 31.03.2021,17/03/2021,0154129,311.00,Revenue,JLA Total Care LTD,78420,,
Chorley Borough Council,http://statistics.data.gov.uk/id/local-authority/30UE,Development Control,1091,Customer & Digital,Statutory Notices,40160,Miscellaneous Expenses,5034,Planning Public Notices to appear in the Chorley Guardian April 2020 to March 2021,05/03/2021,0153667,283.92,Revenue,JPI Media - Johnston Publishing Ltd,20072,,
Chorley Borough Council,http://statistics.data.gov.uk/id/local-authority/30UE,Central Support Services,1009,Early Intervention,Tools & Equipment - Purchase,40003,"Equipment, Furniture & Materia",5023,"Custom Printed Degradable Dog Poop Bags:  Vest (tie handle) HD Size: 180mm x 280mm x 380mm (7x11x15�) Red, 18 micron",03/03/2021,0153828,253.99,Revenue,JRB EnterpriseLtd,21819,,
Chorley Borough Council,http://statistics.data.gov.uk/id/local-authority/30UE,Service Management & Support,1009,Customer & Digital,Entry Fees,40237,Miscellaneous Expenses,5034,Yarrow Valley -  Green Flag Award application fee 2021,03/03/2021,0153481,379.00,Revenue,Keep Britain Tidy,22196,,
Chorley Borough Council,http://statistics.data.gov.uk/id/local-authority/30UE,Service Management & Support,1009,Customer & Digital,Entry Fees,40237,Miscellaneous Expenses,5034,Withnell LNR - Green Flag Award application fee 2021,03/03/2021,0153482,329.00,Revenue,Keep Britain Tidy,22196,,
Chorley Borough Council,http://statistics.data.gov.uk/id/local-authority/30UE,Service Management & Support,1009,Customer & Digital,Entry Fees,40237,Miscellaneous Expenses,5034,Coronation Recreation Ground - Green Flag Award application fee 2021,03/03/2021,0153483,329.00,Revenue,Keep Britain Tidy,22196,,
Chorley Borough Council,http://statistics.data.gov.uk/id/local-authority/30UE,Service Management & Support,1009,Customer & Digital,Entry Fees,40237,Miscellaneous Expenses,5034,Harpers Recreation Ground - Green Flag Award application fee 2021,03/03/2021,0153484,329.00,Revenue,Keep Britain Tidy,22196,,
Chorley Borough Council,http://statistics.data.gov.uk/id/local-authority/30UE,Service Management & Support,1009,Customer & Digital,Entry Fees,40237,Miscellaneous Expenses,5034,Astley Park Green Flag Award application fee 2021,03/03/2021,0153486,379.00,Revenue,Keep Britain Tidy,22196,,
Chorley Borough Council,http://statistics.data.gov.uk/id/local-authority/30UE,Business Support,1095,Commercial Services,Professional Fees,40063,Services,5027,Letting agent fees for the NAME REDACTED lease on ADDRESS REDACTED,12/03/2021,0154146,"2,512.50",Revenue,Knight Frank LLP,77571,,
Chorley Borough Council,http://statistics.data.gov.uk/id/local-authority/30UE,Control Accounts,Control,Policy & Governance,General Balances,00100,Balance Sheet,Balance,Monthly Deductions from Expenses,26/03/2021,0154896,"1,422.47",Revenue,Labour Councillors Association,17577,,
Chorley Borough Council,http://statistics.data.gov.uk/id/local-authority/30UE,Precepts and Collection Fund,Precepts,Policy & Governance,LCC Precept,02009,Precepts & Collection Fund,Precept,LCC CTAX PRECEPT,31/03/2021,0147959,"5,303,135.00",Revenue,Lancashire County Council,18386,,
Chorley Borough Council,http://statistics.data.gov.uk/id/local-authority/30UE,Collection Fund Revenue Accoun,,Policy & Governance,NNDR County Share,02036,Precepts & Collection Fund,Precept,LCC BUSINESS RATES PRECEPT,31/03/2021,0147959,"219,948.00",Revenue,Lancashire County Council,18386,,
Chorley Borough Council,http://statistics.data.gov.uk/id/local-authority/30UE,Precepts and Collection Fund,Precepts,Policy & Governance,LCC Precept,02009,Precepts & Collection Fund,Precept,LCC CTAX PRESCEPT,31/03/2021,0148499,"5,303,135.00",Revenue,Lancashire County Council,18386,,
Chorley Borough Council,http://statistics.data.gov.uk/id/local-authority/30UE,Collection Fund Revenue Accoun,,Policy & Governance,NNDR County Share,02036,Precepts & Collection Fund,Precept,LCC BUSINESS RATES PRECEPTS,31/03/2021,0148499,"219,948.00",Revenue,Lancashire County Council,18386,,
Chorley Borough Council,http://statistics.data.gov.uk/id/local-authority/30UE,Precepts and Collection Fund,Precepts,Policy & Governance,LCC Precept,02009,Precepts & Collection Fund,Precept,LCC council tax precepts,31/03/2021,0149167,"5,303,135.00",Revenue,Lancashire County Council,18386,,
Chorley Borough Council,http://statistics.data.gov.uk/id/local-authority/30UE,Collection Fund Revenue Accoun,,Policy & Governance,NNDR County Share,02036,Precepts & Collection Fund,Precept,LCC b-rates precepts,31/03/2021,0149167,"219,948.00",Revenue,Lancashire County Council,18386,,
Chorley Borough Council,http://statistics.data.gov.uk/id/local-authority/30UE,Precepts and Collection Fund,Precepts,Policy & Governance,LCC Precept,02009,Precepts & Collection Fund,Precept,lcc ctax precepts,31/03/2021,0150813,"5,303,135.00",Revenue,Lancashire County Council,18386,,
Chorley Borough Council,http://statistics.data.gov.uk/id/local-authority/30UE,Collection Fund Revenue Accoun,,Policy & Governance,NNDR County Share,02036,Precepts & Collection Fund,Precept,lcc brates precept,31/03/2021,0150813,"219,948.00",Revenue,Lancashire County Council,18386,,
Chorley Borough Council,http://statistics.data.gov.uk/id/local-authority/30UE,Precepts and Collection Fund,Precepts,Policy & Governance,LCC Precept,02009,Precepts & Collection Fund,Precept,LCC council tax precept,31/03/2021,0152884,"5,303,135.00",Revenue,Lancashire County Council,18386,,
Chorley Borough Council,http://statistics.data.gov.uk/id/local-authority/30UE,Collection Fund Revenue Accoun,,Policy & Governance,NNDR County Share,02036,Precepts & Collection Fund,Precept,LCC business rates precept,31/03/2021,0152884,"219,948.00",Revenue,Lancashire County Council,18386,,
Chorley Borough Council,http://statistics.data.gov.uk/id/local-authority/30UE,Precepts and Collection Fund,Precepts,Policy & Governance,LCC Precept,02009,Precepts & Collection Fund,Precept,LCC council tax precept,31/03/2021,0152923,"5,303,135.00",Revenue,Lancashire County Council,18386,,
Chorley Borough Council,http://statistics.data.gov.uk/id/local-authority/30UE,Collection Fund Revenue Accoun,,Policy & Governance,NNDR County Share,02036,Precepts & Collection Fund,Precept,LCC business rates precept,31/03/2021,0152923,"219,948.00",Revenue,Lancashire County Council,18386,,
Chorley Borough Council,http://statistics.data.gov.uk/id/local-authority/30UE,Precepts and Collection Fund,Precepts,Policy & Governance,LCC Precept,02009,Precepts & Collection Fund,Precept,LCC Council Tax Precept,31/03/2021,0153489,"5,303,135.00",Revenue,Lancashire County Council,18386,,
Chorley Borough Council,http://statistics.data.gov.uk/id/local-authority/30UE,Collection Fund Revenue Accoun,,Policy & Governance,NNDR County Share,02036,Precepts & Collection Fund,Precept,LCC Business Rates Precept,31/03/2021,0153489,"219,948.00",Revenue,Lancashire County Council,18386,,
Chorley Borough Council,http://statistics.data.gov.uk/id/local-authority/30UE,Precepts and Collection Fund,Precepts,Policy & Governance,LCC Precept,02009,Precepts & Collection Fund,Precept,LCC COUNCIL TAX PRECEPT,31/03/2021,0153508,"5,303,135.00",Revenue,Lancashire County Council,18386,,
Chorley Borough Council,http://statistics.data.gov.uk/id/local-authority/30UE,Collection Fund Revenue Accoun,,Policy & Governance,NNDR County Share,02036,Precepts & Collection Fund,Precept,LCC B-Rates PRECEPT,31/03/2021,0153508,"219,948.00",Revenue,Lancashire County Council,18386,,
Chorley Borough Council,http://statistics.data.gov.uk/id/local-authority/30UE,Parking Services,1066,Commercial Services,Car Park Lamps,20064,Grounds Maintenance Costs,5013,Queens road car park light repairs,10/03/2021,0153984,785.70,Revenue,Lancashire County Council,17758,,
Chorley Borough Council,http://statistics.data.gov.uk/id/local-authority/30UE,Planning Policy,1092,Early Intervention,Professional Fees,40063,Services,5027,Memorandum of Agreement 2020/21 - LERN Chorley Borough Council,12/03/2021,0154155,"3,387.00",Revenue,Lancashire County Council,17758,,
Chorley Borough Council,http://statistics.data.gov.uk/id/local-authority/30UE,Democratic Represent and  Mgnt,1007,Policy & Governance,Conservation Of Exhibits,40059,Services,5027,Astley Hall Museum and Art Gallery Two Girls painting to be conserved at the studio to consolidate the damaged paint area,26/03/2021,0154672,320.00,Revenue,Lancashire County Council,17758,,
Chorley Borough Council,http://statistics.data.gov.uk/id/local-authority/30UE,Central Support Services,1009,Commercial Services,General Repairs - Reactive,20004,Repairs Maintenance & Alts,5005,Primrose Gardens supply and replace one inverter to the circulation pump on the boilers at primrose gardens. Danfoss inverter ,03/03/2021,0153737,"1,952.00",Revenue,Lancashire Gas Services Ltd,78192,,
Chorley Borough Council,http://statistics.data.gov.uk/id/local-authority/30UE,Capital,Capital,Commercial Services,Main Contractor,03007,Capital Expenditure,Capital,As approved by NAMES REDACTED Boiler Works - Supply and install 4 x new 120kw Ideal Evomax 2 boilers on free standing ,03/03/2021,0153791,"48,300.00",Capital,Lancashire Gas Services Ltd,78192,,
Chorley Borough Council,http://statistics.data.gov.uk/id/local-authority/30UE,Unapportionable Central OHeads,1009,Commercial Services,General Repairs - Reactive,20004,Repairs Maintenance & Alts,5005,Reactive blanket,10/03/2021,0153793,565.60,Revenue,Lancashire Gas Services Ltd,78192,,
Chorley Borough Council,http://statistics.data.gov.uk/id/local-authority/30UE,Recreation & Sport,1037,Commercial Services,Planned Maintenance,20006,Repairs Maintenance & Alts,5005,Clayton Green Suspended air heater works following inspection repair the suspended air heaters following the recent inspection.,10/03/2021,0153903,"1,629.25",Revenue,Lancashire Gas Services Ltd,78192,,
Chorley Borough Council,http://statistics.data.gov.uk/id/local-authority/30UE,Democratic Represent and  Mgnt,1007,Commercial Services,Planned Maintenance,20006,Repairs Maintenance & Alts,5005,All Seasons Minor Service x 9 Boilers MinorServicex2DHW Minor Service of AHU x 6 Minor Service x 2 AO Smith DHW,10/03/2021,0153904,504.00,Revenue,Lancashire Gas Services Ltd,78192,,
Chorley Borough Council,http://statistics.data.gov.uk/id/local-authority/30UE,Democratic Represent and  Mgnt,1007,Commercial Services,Planned Maintenance,20006,Repairs Maintenance & Alts,5005,Clayton Green Air Con Work - Service inspection to all Air Con units. Carried out maintenance to 7 x AC units on site,10/03/2021,0153905,330.75,Revenue,Lancashire Gas Services Ltd,78192,,
Chorley Borough Council,http://statistics.data.gov.uk/id/local-authority/30UE,Democratic Represent and  Mgnt,1007,Commercial Services,General Repairs - Reactive,20004,Repairs Maintenance & Alts,5005,All Seasons Replace leaking mechanical seals to 3 main pool pumps following the recent inspection,10/03/2021,0153918,304.00,Revenue,Lancashire Gas Services Ltd,78192,,
Chorley Borough Council,http://statistics.data.gov.uk/id/local-authority/30UE,Unapportionable Central OHeads,1009,Commercial Services,Planned Maintenance,20006,Repairs Maintenance & Alts,5005,Small reactive ppm to end of march 2020,10/03/2021,0153928,396.90,Revenue,Lancashire Gas Services Ltd,78192,,
Chorley Borough Council,http://statistics.data.gov.uk/id/local-authority/30UE,Central Support Services,1009,Commercial Services,Planned Maintenance,20006,Repairs Maintenance & Alts,5005,Small reactive ppm to end of march 2020,19/03/2021,0154260,342.00,Revenue,Lancashire Gas Services Ltd,78192,,
Chorley Borough Council,http://statistics.data.gov.uk/id/local-authority/30UE,Democratic Represent and  Mgnt,1007,Commercial Services,Planned Maintenance,20006,Repairs Maintenance & Alts,5005,"Brinscall Swimming Pool, 10l potable expansion vessel, 150l expansion vessel, pipe works, new isolation valves, Fill and test",19/03/2021,0154262,"2,117.08",Revenue,Lancashire Gas Services Ltd,78192,,
Chorley Borough Council,http://statistics.data.gov.uk/id/local-authority/30UE,Recreation & Sport,1037,Commercial Services,General Repairs - Reactive,20004,Repairs Maintenance & Alts,5005,All Seasons Access pipes below air handling unit male dry side toilets on going leak investigations,19/03/2021,0154364,452.16,Revenue,Lancashire Gas Services Ltd,78192,,
Chorley Borough Council,http://statistics.data.gov.uk/id/local-authority/30UE,Business Support,1095,Commercial Services,General Repairs - Reactive,20004,Repairs Maintenance & Alts,5005,Supply and replace inverter to the circulation pump on the boilers,24/03/2021,0154565,"3,200.00",Revenue,Lancashire Gas Services Ltd,78192,,
Chorley Borough Council,http://statistics.data.gov.uk/id/local-authority/30UE,Unapportionable Central OHeads,1009,Commercial Services,Asset Maintenance Fund,20012,Repairs Maintenance & Alts,5005,1 x new Main Eco 30kw combi boiler following the recent call out that found the existing boiler to have failed on the expansion.,24/03/2021,0154567,"1,593.88",Revenue,Lancashire Gas Services Ltd,78192,,
Chorley Borough Council,http://statistics.data.gov.uk/id/local-authority/30UE,Central Support Services,1009,Commercial Services,Planned Maintenance,20006,Repairs Maintenance & Alts,5005,Air conditioning ppm and remedials,26/03/2021,0154704,"1,296.00",Revenue,Lancashire Gas Services Ltd,78192,,
Chorley Borough Council,http://statistics.data.gov.uk/id/local-authority/30UE,Unapportionable Central OHeads,1009,Commercial Services,Planned Maintenance,20006,Repairs Maintenance & Alts,5005,DOP air con  and mechanical vent service,26/03/2021,0154754,"4,158.00",Revenue,Lancashire Gas Services Ltd,78192,,
Chorley Borough Council,http://statistics.data.gov.uk/id/local-authority/30UE,Unapportionable Central OHeads,1009,Policy & Governance,Pensions Increase Act Payments,18005,Indirect Employee Expenses,5002,cay dec 19,30/03/2021,0146412,"17,429.28",Revenue,Lancashire Pensions Services DD ONLY,16696,,
Chorley Borough Council,http://statistics.data.gov.uk/id/local-authority/30UE,Unapportionable Central OHeads,1009,Policy & Governance,Pensions Increase Act Payments,18005,Indirect Employee Expenses,5002,cay march 20,30/03/2021,0146416,"17,191.27",Revenue,Lancashire Pensions Services DD ONLY,16696,,
Chorley Borough Council,http://statistics.data.gov.uk/id/local-authority/30UE,Unapportionable Central OHeads,1009,Policy & Governance,Pensions Increase Act Payments,18005,Indirect Employee Expenses,5002,cay jan 20,30/03/2021,0146417,"17,433.05",Revenue,Lancashire Pensions Services DD ONLY,16696,,
Chorley Borough Council,http://statistics.data.gov.uk/id/local-authority/30UE,Unapportionable Central OHeads,1009,Policy & Governance,Pensions Increase Act Payments,18005,Indirect Employee Expenses,5002,cay feb 2020,30/03/2021,0146418,"17,433.05",Revenue,Lancashire Pensions Services DD ONLY,16696,,
Chorley Borough Council,http://statistics.data.gov.uk/id/local-authority/30UE,Other Short Term Creditors,,Policy & Governance,General Balances,00100,Balance Sheet,Balance,EE`s contributions,30/03/2021,0146995,"48,123.73",Revenue,Lancashire Pensions Services DD ONLY,16696,,
Chorley Borough Council,http://statistics.data.gov.uk/id/local-authority/30UE,Other Short Term Creditors,,Policy & Governance,General Balances,00100,Balance Sheet,Balance,ER`s contributions,30/03/2021,0146995,"108,472.54",Revenue,Lancashire Pensions Services DD ONLY,16696,,
Chorley Borough Council,http://statistics.data.gov.uk/id/local-authority/30UE,Unapportionable Central OHeads,1009,Policy & Governance,Pensions Deficit Recovery Contributions,12003,Direct Employee Expenses,5001,deficit,30/03/2021,0146995,"80,525.00",Revenue,Lancashire Pensions Services DD ONLY,16696,,
Chorley Borough Council,http://statistics.data.gov.uk/id/local-authority/30UE,Unapportionable Central OHeads,1009,Policy & Governance,General Subscriptions,40146,Grants and Subscriptions,5031,Financial Intelligence Toolkit - 1 April 2021 to 31 March 2022 (Chorley Council),05/03/2021,0153872,"4,615.00",Revenue,LG Futures,22551,,
Chorley Borough Council,http://statistics.data.gov.uk/id/local-authority/30UE,Central Support Services,1009,Policy & Governance,General Subscriptions,40146,Grants and Subscriptions,5031,Financial Intelligence Toolkit - 1 April 2021 to 31 March 2022 (South Ribble Borough Council),05/03/2021,0153873,"4,615.00",Revenue,LG Futures,22551,,
Chorley Borough Council,http://statistics.data.gov.uk/id/local-authority/30UE,Capital,Capital,Commercial Services,Main Contractor,03007,Capital Expenditure,Capital,Project management services for Astley Hall Restoration project,19/03/2021,0154224,"2,875.00",Capital,Linchpin Ltd,80779,,
Chorley Borough Council,http://statistics.data.gov.uk/id/local-authority/30UE,Central Support Services,1009,Early Intervention,Miscellaneous Expenses,40200,Miscellaneous Expenses,5034,200 square metres of Wildflower turf � harvested in 0.6m x 1.0m slabs� delivered on wagon with tail lift offload facilities to Chorley.,17/03/2021,0154154,"1,500.00",Revenue,Lindum seeded Turf Ltd,80933,,
Chorley Borough Council,http://statistics.data.gov.uk/id/local-authority/30UE,Open Spaces,1038,Early Intervention,Supplies-Grounds Maintenance,40025,"Equipment, Furniture & Materia",5023,200 square metres of Wildflower turf � harvested in 0.6m x 1.0m slabs� delivered on wagon with tail lift offload facilities to Chorley.,17/03/2021,0154154,910.00,Revenue,Lindum seeded Turf Ltd,80933,,
Chorley Borough Council,http://statistics.data.gov.uk/id/local-authority/30UE,Corporate Management,1008,Policy & Governance,Treasury Management Service,40065,Services,5027,Treasury Management Services for period 01/10/2020 - 31/03/2021,05/03/2021,0153933,"7,625.00",Revenue,Link Treasury Services Limited,16428,,
Chorley Borough Council,http://statistics.data.gov.uk/id/local-authority/30UE,Community Development,1097,Policy & Governance,Grants To Other Organisations,40127,Grants and Subscriptions,5031,Support for the Living Waters storehouse food bank,26/03/2021,0154639,"7,500.00",Revenue,Living Waters Storehouse,60925,,
Chorley Borough Council,http://statistics.data.gov.uk/id/local-authority/30UE,Community Development,1097,Policy & Governance,Grants To Other Organisations,40127,Grants and Subscriptions,5031,Support for the Living Waters storehouse food bank,26/03/2021,0154640,"7,500.00",Revenue,Living Waters Storehouse,60925,,
Chorley Borough Council,http://statistics.data.gov.uk/id/local-authority/30UE,Service Management & Support,1009,Customer & Digital,Grounds Maintenance Contractor,20043,Grounds Maintenance Costs,5013,Walker Tree Services Invoice 55,24/03/2021,0154365,"4,295.00",Revenue,M J Walker,62044,,
Chorley Borough Council,http://statistics.data.gov.uk/id/local-authority/30UE,Capital,Capital,Policy & Governance,Main Contractor,03007,Capital Expenditure,Capital,ADDRESS REDACTED,26/03/2021,0154693,"150,000.00",Capital,NAME REDACTED,81950,,
Chorley Borough Council,http://statistics.data.gov.uk/id/local-authority/30UE,Central Support Services,1009,Policy & Governance,Agency Staff,13000,Direct Employee Expenses,5001,NAME REDACTED,03/03/2021,0153290,471.25,Revenue,Matrix SCM Ltd,22128,,
Chorley Borough Council,http://statistics.data.gov.uk/id/local-authority/30UE,Unapportionable Central OHeads,1009,Policy & Governance,Agency Staff,13000,Direct Employee Expenses,5001,NAME REDACTED,03/03/2021,0153290,454.89,Revenue,Matrix SCM Ltd,22128,,
Chorley Borough Council,http://statistics.data.gov.uk/id/local-authority/30UE,Central Support Services,1009,Policy & Governance,Agency Staff,13000,Direct Employee Expenses,5001,NAME REDACTED,03/03/2021,0153428,471.25,Revenue,Matrix SCM Ltd,22128,,
Chorley Borough Council,http://statistics.data.gov.uk/id/local-authority/30UE,Unapportionable Central OHeads,1009,Policy & Governance,Agency Staff,13000,Direct Employee Expenses,5001,NAME REDACTED,03/03/2021,0153428,457.92,Revenue,Matrix SCM Ltd,22128,,
Chorley Borough Council,http://statistics.data.gov.uk/id/local-authority/30UE,Central Support Services,1009,Policy & Governance,Agency Staff,13000,Direct Employee Expenses,5001,NAME REDACTED,03/03/2021,0153428,279.00,Revenue,Matrix SCM Ltd,22128,,
Chorley Borough Council,http://statistics.data.gov.uk/id/local-authority/30UE,Unapportionable Central OHeads,1009,Policy & Governance,Agency Staff,13000,Direct Employee Expenses,5001,NAME REDACTED,03/03/2021,0153788,471.25,Revenue,Matrix SCM Ltd,22128,,
Chorley Borough Council,http://statistics.data.gov.uk/id/local-authority/30UE,Unapportionable Central OHeads,1009,Policy & Governance,Agency Staff,13000,Direct Employee Expenses,5001,NAME REDACTED,03/03/2021,0153788,454.88,Revenue,Matrix SCM Ltd,22128,,
Chorley Borough Council,http://statistics.data.gov.uk/id/local-authority/30UE,Central Support Services,1009,Policy & Governance,Agency Staff,13000,Direct Employee Expenses,5001,NAME REDACTED,03/03/2021,0153788,439.71,Revenue,Matrix SCM Ltd,22128,,
Chorley Borough Council,http://statistics.data.gov.uk/id/local-authority/30UE,Central Support Services,1009,Commercial Services,Planned Maintenance,20006,Repairs Maintenance & Alts,5005,Statutory water testing through to end of March 2021,10/03/2021,0153899,791.24,Revenue,Maxigiene Environmental Services Ltd,67160,,
Chorley Borough Council,http://statistics.data.gov.uk/id/local-authority/30UE,Business Support,1095,Commercial Services,Planned Maintenance,20006,Repairs Maintenance & Alts,5005,Legionella Risk Assessment - Primrose Gardens,19/03/2021,0154150,400.00,Revenue,Maxigiene Environmental Services Ltd,67160,,
Chorley Borough Council,http://statistics.data.gov.uk/id/local-authority/30UE,Service Management & Support,1009,Customer & Digital,Supplies-Grounds Maintenance,40025,"Equipment, Furniture & Materia",5023,"20 tonnes Rock salt delivered to Bengal street Depot, Chorley @55 per tonne",24/03/2021,0154144,"1,076.90",Revenue,Mc & Ma Stewart (Haulage Ltd),16627,,
Chorley Borough Council,http://statistics.data.gov.uk/id/local-authority/30UE,Democratic Represent and  Mgnt,1007,Customer & Digital,Playground Equipment,40008,"Equipment, Furniture & Materia",5023,"Supply and deliver 90 cubic metres of play bark to Yarrow Depot, Bolton Road, Chorley",24/03/2021,0154145,"3,150.00",Revenue,Mc & Ma Stewart (Haulage Ltd),16627,,
Chorley Borough Council,http://statistics.data.gov.uk/id/local-authority/30UE,Unapportionable Central OHeads,1009,Commercial Services,General Repairs - Reactive,20004,Repairs Maintenance & Alts,5005,reactive blanket to end of march 2021,26/03/2021,0154718,280.00,Revenue,Michael Roe,78294,,
Chorley Borough Council,http://statistics.data.gov.uk/id/local-authority/30UE,Central Support Services,1009,Commercial Services,General Repairs - Reactive,20004,Repairs Maintenance & Alts,5005,reactive blanket to end of march 2021,26/03/2021,0154719,650.00,Revenue,Michael Roe,78294,,
Chorley Borough Council,http://statistics.data.gov.uk/id/local-authority/30UE,Central Support Services,1009,Commercial Services,Professional Fees,40063,Services,5027,Additional Party Wall Services,10/03/2021,0153848,"1,500.00",Revenue,Mike Scanlan,80412,,
Chorley Borough Council,http://statistics.data.gov.uk/id/local-authority/30UE,Capital,Capital,Early Intervention,Grants,03002,Capital Expenditure,Capital,ADDRESS REDACTED,10/03/2021,0153836,"4,755.94",Capital,Mint Northwest Ltd,65607,,
Chorley Borough Council,http://statistics.data.gov.uk/id/local-authority/30UE,Capital,Capital,Early Intervention,Grants,03002,Capital Expenditure,Capital,,10/03/2021,0154067,310.68,Capital,Mint Northwest Ltd,65607,,
Chorley Borough Council,http://statistics.data.gov.uk/id/local-authority/30UE,Capital,Capital,Early Intervention,Grants,03002,Capital Expenditure,Capital,20/00211/CAG,10/03/2021,0154068,"4,774.43",Capital,Mint Northwest Ltd,65607,,
Chorley Borough Council,http://statistics.data.gov.uk/id/local-authority/30UE,Capital,Capital,Early Intervention,Grants,03002,Capital Expenditure,Capital,20/00107/DFG,12/03/2021,0154069,"10,302.93",Capital,Mint Northwest Ltd,65607,,
Chorley Borough Council,http://statistics.data.gov.uk/id/local-authority/30UE,Planning Policy,1092,Commercial Services,Legal Fees,40171,Miscellaneous Expenses,5034,Barrister fees for Land at South Lodge as per NAME REDACTED instruction,03/03/2021,0153814,"2,500.00",Revenue,Miss Rebecca Cattermole,78532,,
Chorley Borough Council,http://statistics.data.gov.uk/id/local-authority/30UE,Capital,Capital,Early Intervention,Grants,03002,Capital Expenditure,Capital,ADDRESS REDACTED,03/03/2021,0153821,"1,670.00",Capital,Mobility Care Services,70841,,
Chorley Borough Council,http://statistics.data.gov.uk/id/local-authority/30UE,Private Sector HSG Renewal,1073,Early Intervention,External Contractor,40198,Miscellaneous Expenses,5034,Ref 4235,24/03/2021,0154192,256.00,Revenue,Mobility Care Services,70841,,
Chorley Borough Council,http://statistics.data.gov.uk/id/local-authority/30UE,Private Sector HSG Renewal,1073,Early Intervention,External Contractor,40198,Miscellaneous Expenses,5034,Ref 4234,24/03/2021,0154192,256.00,Revenue,Mobility Care Services,70841,,
Chorley Borough Council,http://statistics.data.gov.uk/id/local-authority/30UE,Private Sector HSG Renewal,1073,Early Intervention,External Contractor,40198,Miscellaneous Expenses,5034,Ref 4240,24/03/2021,0154192,49.50,Revenue,Mobility Care Services,70841,,
Chorley Borough Council,http://statistics.data.gov.uk/id/local-authority/30UE,Private Sector HSG Renewal,1073,Early Intervention,External Contractor,40198,Miscellaneous Expenses,5034,Ref 4241,24/03/2021,0154192,180.00,Revenue,Mobility Care Services,70841,,
Chorley Borough Council,http://statistics.data.gov.uk/id/local-authority/30UE,Private Sector HSG Renewal,1073,Early Intervention,External Contractor,40198,Miscellaneous Expenses,5034,Ref 4268,24/03/2021,0154192,66.00,Revenue,Mobility Care Services,70841,,
Chorley Borough Council,http://statistics.data.gov.uk/id/local-authority/30UE,Private Sector HSG Renewal,1073,Early Intervention,External Contractor,40198,Miscellaneous Expenses,5034,Ref 4267,24/03/2021,0154192,66.00,Revenue,Mobility Care Services,70841,,
Chorley Borough Council,http://statistics.data.gov.uk/id/local-authority/30UE,Private Sector HSG Renewal,1073,Early Intervention,External Contractor,40198,Miscellaneous Expenses,5034,Ref 4266,24/03/2021,0154192,72.50,Revenue,Mobility Care Services,70841,,
Chorley Borough Council,http://statistics.data.gov.uk/id/local-authority/30UE,Private Sector HSG Renewal,1073,Early Intervention,External Contractor,40198,Miscellaneous Expenses,5034,Ref 4263,24/03/2021,0154192,111.00,Revenue,Mobility Care Services,70841,,
Chorley Borough Council,http://statistics.data.gov.uk/id/local-authority/30UE,Private Sector HSG Renewal,1073,Early Intervention,External Contractor,40198,Miscellaneous Expenses,5034,Ref 4262,24/03/2021,0154192,111.00,Revenue,Mobility Care Services,70841,,
Chorley Borough Council,http://statistics.data.gov.uk/id/local-authority/30UE,Private Sector HSG Renewal,1073,Early Intervention,External Contractor,40198,Miscellaneous Expenses,5034,Ref 4261,24/03/2021,0154192,111.00,Revenue,Mobility Care Services,70841,,
Chorley Borough Council,http://statistics.data.gov.uk/id/local-authority/30UE,Private Sector HSG Renewal,1073,Early Intervention,External Contractor,40198,Miscellaneous Expenses,5034,Ref 4314,24/03/2021,0154192,128.00,Revenue,Mobility Care Services,70841,,
Chorley Borough Council,http://statistics.data.gov.uk/id/local-authority/30UE,Private Sector HSG Renewal,1073,Early Intervention,External Contractor,40198,Miscellaneous Expenses,5034,Ref 4281,24/03/2021,0154192,128.00,Revenue,Mobility Care Services,70841,,
Chorley Borough Council,http://statistics.data.gov.uk/id/local-authority/30UE,Private Sector HSG Renewal,1073,Early Intervention,External Contractor,40198,Miscellaneous Expenses,5034,Ref 4282,24/03/2021,0154192,128.00,Revenue,Mobility Care Services,70841,,
Chorley Borough Council,http://statistics.data.gov.uk/id/local-authority/30UE,Private Sector HSG Renewal,1073,Early Intervention,External Contractor,40198,Miscellaneous Expenses,5034,Ref 4283,24/03/2021,0154192,420.00,Revenue,Mobility Care Services,70841,,
Chorley Borough Council,http://statistics.data.gov.uk/id/local-authority/30UE,Private Sector HSG Renewal,1073,Early Intervention,External Contractor,40198,Miscellaneous Expenses,5034,Ref 4284,24/03/2021,0154192,260.00,Revenue,Mobility Care Services,70841,,
Chorley Borough Council,http://statistics.data.gov.uk/id/local-authority/30UE,Private Sector HSG Renewal,1073,Early Intervention,External Contractor,40198,Miscellaneous Expenses,5034,Ref 4285,24/03/2021,0154192,128.00,Revenue,Mobility Care Services,70841,,
Chorley Borough Council,http://statistics.data.gov.uk/id/local-authority/30UE,Private Sector HSG Renewal,1073,Early Intervention,External Contractor,40198,Miscellaneous Expenses,5034,Ref 4286,24/03/2021,0154192,128.00,Revenue,Mobility Care Services,70841,,
Chorley Borough Council,http://statistics.data.gov.uk/id/local-authority/30UE,Private Sector HSG Renewal,1073,Early Intervention,External Contractor,40198,Miscellaneous Expenses,5034,Ref 4287,24/03/2021,0154192,82.50,Revenue,Mobility Care Services,70841,,
Chorley Borough Council,http://statistics.data.gov.uk/id/local-authority/30UE,Private Sector HSG Renewal,1073,Early Intervention,External Contractor,40198,Miscellaneous Expenses,5034,Ref 4288,24/03/2021,0154192,128.00,Revenue,Mobility Care Services,70841,,
Chorley Borough Council,http://statistics.data.gov.uk/id/local-authority/30UE,Private Sector HSG Renewal,1073,Early Intervention,External Contractor,40198,Miscellaneous Expenses,5034,Ref 4289,24/03/2021,0154192,128.00,Revenue,Mobility Care Services,70841,,
Chorley Borough Council,http://statistics.data.gov.uk/id/local-authority/30UE,Private Sector HSG Renewal,1073,Early Intervention,External Contractor,40198,Miscellaneous Expenses,5034,Ref 4296,24/03/2021,0154192,82.50,Revenue,Mobility Care Services,70841,,
Chorley Borough Council,http://statistics.data.gov.uk/id/local-authority/30UE,Private Sector HSG Renewal,1073,Early Intervention,External Contractor,40198,Miscellaneous Expenses,5034,Ref 4297,24/03/2021,0154192,66.00,Revenue,Mobility Care Services,70841,,
Chorley Borough Council,http://statistics.data.gov.uk/id/local-authority/30UE,Private Sector HSG Renewal,1073,Early Intervention,External Contractor,40198,Miscellaneous Expenses,5034,Ref 4321,24/03/2021,0154192,"1,861.41",Revenue,Mobility Care Services,70841,,
Chorley Borough Council,http://statistics.data.gov.uk/id/local-authority/30UE,Private Sector HSG Renewal,1073,Early Intervention,External Contractor,40198,Miscellaneous Expenses,5034,Ref 4324,24/03/2021,0154192,165.00,Revenue,Mobility Care Services,70841,,
Chorley Borough Council,http://statistics.data.gov.uk/id/local-authority/30UE,Private Sector HSG Renewal,1073,Early Intervention,External Contractor,40198,Miscellaneous Expenses,5034,Ref 4333,24/03/2021,0154192,66.00,Revenue,Mobility Care Services,70841,,
Chorley Borough Council,http://statistics.data.gov.uk/id/local-authority/30UE,Capital,Capital,Commercial Services,Other Capital Related Fees,03024,Capital Expenditure,Capital,"Extraction of 2 existing canopies, works to be carried out on two consecutive evenings with use of a crane.  All waste and ",03/03/2021,0153749,"4,263.00",Capital,Morgan Brothers Metalwork Solutions,76663,,
Chorley Borough Council,http://statistics.data.gov.uk/id/local-authority/30UE,Homelessness,1075,Commercial Services,Rent Misc Properties,60182,Customer & Client Receipts,5064,refund of overpayment,08/03/2021,0152824,618.08,Revenue,NAME REDACTED,81407,,
Chorley Borough Council,http://statistics.data.gov.uk/id/local-authority/30UE,Open Spaces,1038,Early Intervention,Grounds Maintenance Contractor,20043,Grounds Maintenance Costs,5013,"Astley Trail leaflet printing  - Quote ref 39398. FAO NAME REDACTED.  10,000 A4 info leaflets. 6PP1/3 A4. full color",24/03/2021,0154641,519.00,Revenue,N B Colour Print Ltd,17917,,
Chorley Borough Council,http://statistics.data.gov.uk/id/local-authority/30UE,Business Support,1095,Commercial Services,Security Service,40062,Services,5027,To provide evening Site Security Services at Market Walk Shopping Centre from 5pm until midnight 7 days a week.,03/03/2021,0153554,526.75,Revenue,New Concept Security NW Ltd T/A New Concept Goup,80488,,
Chorley Borough Council,http://statistics.data.gov.uk/id/local-authority/30UE,Business Support,1095,Commercial Services,Security Service,40062,Services,5027,To provide evening Site Security Services at Market Walk Shopping Centre from 5pm until midnight 7 days a week. ,10/03/2021,0153776,526.75,Revenue,New Concept Security NW Ltd T/A New Concept Goup,80488,,
Chorley Borough Council,http://statistics.data.gov.uk/id/local-authority/30UE,Business Support,1095,Commercial Services,Security Service,40062,Services,5027,To provide evening Site Security Services at Market Walk Shopping Centre from 5pm until midnight 7 days a week. ,10/03/2021,0154057,526.75,Revenue,New Concept Security NW Ltd T/A New Concept Goup,80488,,
Chorley Borough Council,http://statistics.data.gov.uk/id/local-authority/30UE,Business Support,1095,Commercial Services,Security Service,40062,Services,5027,To provide evening Site Security Services at Market Walk Shopping Centre from 5pm until midnight 7 days a week. ,26/03/2021,0154659,526.75,Revenue,New Concept Security NW Ltd T/A New Concept Goup,80488,,
Chorley Borough Council,http://statistics.data.gov.uk/id/local-authority/30UE,Business Support,1095,Commercial Services,Refreshments,40036,Catering,5024,2 x NWT220 Yorkshire Tea (2 x 1040) @ 41.98 per unit,26/03/2021,0154692,83.96,Revenue,North West Tea FM Solutions,78255,,
Chorley Borough Council,http://statistics.data.gov.uk/id/local-authority/30UE,Business Support,1095,Commercial Services,Refreshments,40036,Catering,5024,4 x NWT084 Clipper Fair Trade Arabica Coffee (4x 500g) @ 59.96 per case,26/03/2021,0154692,239.84,Revenue,North West Tea FM Solutions,78255,,
Chorley Borough Council,http://statistics.data.gov.uk/id/local-authority/30UE,Business Support,1095,Commercial Services,Refreshments,40036,Catering,5024,Carriage charge 6.99,26/03/2021,0154692,6.99,Revenue,North West Tea FM Solutions,78255,,
Chorley Borough Council,http://statistics.data.gov.uk/id/local-authority/30UE,Community Development,1097,Commercial Services,Electricity,20013,Energy Costs,5006,FIRST FLOOR INFORMATION & ADVI,03/03/2021,0152888,264.74,Revenue,Npower Commercial Gas,16814,,
Chorley Borough Council,http://statistics.data.gov.uk/id/local-authority/30UE,Community Development,1097,Commercial Services,Electricity,20013,Energy Costs,5006,UNIT 2 MARKET WALK EXTENSION,03/03/2021,0152888,"2,213.14",Revenue,Npower Commercial Gas,16814,,
Chorley Borough Council,http://statistics.data.gov.uk/id/local-authority/30UE,Parking Services,1066,Commercial Services,Electricity,20013,Energy Costs,5006,UN-METERED CAR PARK LIGHTING,03/03/2021,0153381,4.02,Revenue,Npower Commercial Gas,16814,,
Chorley Borough Council,http://statistics.data.gov.uk/id/local-authority/30UE,Parking Services,1066,Commercial Services,Electricity,20013,Energy Costs,5006,UN-METERED - PAY &amp; DISPLAY MAC,03/03/2021,0153381,407.31,Revenue,Npower Commercial Gas,16814,,
Chorley Borough Council,http://statistics.data.gov.uk/id/local-authority/30UE,Central Support Services,1009,Commercial Services,Electricity,20013,Energy Costs,5006,UN-METERED CCTV CAMERAS,03/03/2021,0153381,"1,007.58",Revenue,Npower Commercial Gas,16814,,
Chorley Borough Council,http://statistics.data.gov.uk/id/local-authority/30UE,Open Spaces,1038,Commercial Services,Electricity,20013,Energy Costs,5006,HARPERS LANE RECREAT,03/03/2021,0153390,26.13,Revenue,Npower Commercial Gas,16814,,
Chorley Borough Council,http://statistics.data.gov.uk/id/local-authority/30UE,Service Management & Support,1009,Commercial Services,Electricity,20013,Energy Costs,5006,GILLETT PLAYING FIEL,03/03/2021,0153390,7.33,Revenue,Npower Commercial Gas,16814,,
Chorley Borough Council,http://statistics.data.gov.uk/id/local-authority/30UE,Open Spaces,1038,Commercial Services,Electricity,20013,Energy Costs,5006,KING GEORGE V PLAYING FIELDS,03/03/2021,0153390,7.33,Revenue,Npower Commercial Gas,16814,,
Chorley Borough Council,http://statistics.data.gov.uk/id/local-authority/30UE,Democratic Represent and  Mgnt,1007,Commercial Services,Electricity,20013,Energy Costs,5006,ASTLEY HALL FARM HOU,03/03/2021,0153390,128.50,Revenue,Npower Commercial Gas,16814,,
Chorley Borough Council,http://statistics.data.gov.uk/id/local-authority/30UE,Culture & Heritage,1036,Commercial Services,Electricity,20013,Energy Costs,5006,ASTLEY HALL,03/03/2021,0153390,-67.62,Revenue,Npower Commercial Gas,16814,,
Chorley Borough Council,http://statistics.data.gov.uk/id/local-authority/30UE,Democratic Represent and  Mgnt,1007,Commercial Services,Electricity,20013,Energy Costs,5006,ASTLEY HALL,03/03/2021,0153390,548.34,Revenue,Npower Commercial Gas,16814,,
Chorley Borough Council,http://statistics.data.gov.uk/id/local-authority/30UE,Recreation & Sport,1037,Commercial Services,Electricity,20013,Energy Costs,5006,EAVES GREEN COMMUNIT,03/03/2021,0153390,119.24,Revenue,Npower Commercial Gas,16814,,
Chorley Borough Council,http://statistics.data.gov.uk/id/local-authority/30UE,Community Development,1097,Commercial Services,Electricity,20013,Energy Costs,5006,FIRST FLOOR INFORMAT,03/03/2021,0153390,271.84,Revenue,Npower Commercial Gas,16814,,
Chorley Borough Council,http://statistics.data.gov.uk/id/local-authority/30UE,Community Development,1097,Commercial Services,Electricity,20013,Energy Costs,5006,TOP FLOOR INFORMATIO,03/03/2021,0153390,30.46,Revenue,Npower Commercial Gas,16814,,
Chorley Borough Council,http://statistics.data.gov.uk/id/local-authority/30UE,Community Development,1097,Commercial Services,Electricity,20013,Energy Costs,5006,GROUND FLOOR INFORMA,03/03/2021,0153390,20.49,Revenue,Npower Commercial Gas,16814,,
Chorley Borough Council,http://statistics.data.gov.uk/id/local-authority/30UE,Democratic Represent and  Mgnt,1007,Commercial Services,Electricity,20013,Energy Costs,5006,CORONATION RECREATIO,03/03/2021,0153390,26.42,Revenue,Npower Commercial Gas,16814,,
Chorley Borough Council,http://statistics.data.gov.uk/id/local-authority/30UE,Democratic Represent and  Mgnt,1007,Commercial Services,Electricity,20013,Energy Costs,5006,ASTLEY VILLAGE COMMU,03/03/2021,0153390,100.30,Revenue,Npower Commercial Gas,16814,,
Chorley Borough Council,http://statistics.data.gov.uk/id/local-authority/30UE,Democratic Represent and  Mgnt,1007,Commercial Services,Electricity,20013,Energy Costs,5006,ASTLEY HALL COACH HO,03/03/2021,0153390,"1,002.93",Revenue,Npower Commercial Gas,16814,,
Chorley Borough Council,http://statistics.data.gov.uk/id/local-authority/30UE,Culture & Heritage,1036,Commercial Services,Electricity,20013,Energy Costs,5006,ASTLEY HALL COTTAGE,03/03/2021,0153390,66.76,Revenue,Npower Commercial Gas,16814,,
Chorley Borough Council,http://statistics.data.gov.uk/id/local-authority/30UE,Cemetery Cremation & Mortuary,1041,Commercial Services,Electricity,20013,Energy Costs,5006,CEMETERIES OFFICE,03/03/2021,0153390,233.62,Revenue,Npower Commercial Gas,16814,,
Chorley Borough Council,http://statistics.data.gov.uk/id/local-authority/30UE,Democratic Represent and  Mgnt,1007,Commercial Services,Electricity,20013,Energy Costs,5006,ASTLEY PARK PAVILION/CHANGING,03/03/2021,0153390,389.23,Revenue,Npower Commercial Gas,16814,,
Chorley Borough Council,http://statistics.data.gov.uk/id/local-authority/30UE,Economic Development,1096,Commercial Services,Electricity,20013,Energy Costs,5006,MARKET COMPACTOR RE,03/03/2021,0153390,12.97,Revenue,Npower Commercial Gas,16814,,
Chorley Borough Council,http://statistics.data.gov.uk/id/local-authority/30UE,Open Spaces,1038,Commercial Services,Electricity,20013,Energy Costs,5006,KING GEORGE V CHANGING ROOMS,03/03/2021,0153390,7.33,Revenue,Npower Commercial Gas,16814,,
Chorley Borough Council,http://statistics.data.gov.uk/id/local-authority/30UE,Homelessness,1075,Commercial Services,Electricity,20013,Energy Costs,5006,COTSWOLD HOUSE COMMUNAL ROOMS,03/03/2021,0153390,582.24,Revenue,Npower Commercial Gas,16814,,
Chorley Borough Council,http://statistics.data.gov.uk/id/local-authority/30UE,Homelessness,1075,Commercial Services,Electricity,20013,Energy Costs,5006,COTSWOLD HOUSE TWO STORY WING,03/03/2021,0153390,288.14,Revenue,Npower Commercial Gas,16814,,
Chorley Borough Council,http://statistics.data.gov.uk/id/local-authority/30UE,Homelessness,1075,Commercial Services,Electricity,20013,Energy Costs,5006,COTSWOLD HOUSE SINGL,03/03/2021,0153390,89.17,Revenue,Npower Commercial Gas,16814,,
Chorley Borough Council,http://statistics.data.gov.uk/id/local-authority/30UE,Business Support,1095,Commercial Services,Electricity,20013,Energy Costs,5006,LANDLORDS COMMUNAL AREA,03/03/2021,0153390,"1,458.13",Revenue,Npower Commercial Gas,16814,,
Chorley Borough Council,http://statistics.data.gov.uk/id/local-authority/30UE,Recreation & Sport,1037,Commercial Services,Electricity,20013,Energy Costs,5006,BUTTERMERE COMMUNITY,03/03/2021,0153390,113.31,Revenue,Npower Commercial Gas,16814,,
Chorley Borough Council,http://statistics.data.gov.uk/id/local-authority/30UE,Recreation & Sport,1037,Commercial Services,Electricity,20013,Energy Costs,5006,LANCASTER WAY COMMUN,03/03/2021,0153390,81.94,Revenue,Npower Commercial Gas,16814,,
Chorley Borough Council,http://statistics.data.gov.uk/id/local-authority/30UE,Parking Services,1066,Commercial Services,Electricity,20013,Energy Costs,5006,CAR PARK UNION ST,03/03/2021,0153390,360.98,Revenue,Npower Commercial Gas,16814,,
Chorley Borough Council,http://statistics.data.gov.uk/id/local-authority/30UE,Parking Services,1066,Commercial Services,Electricity,20013,Energy Costs,5006,ARLEY STREET CAR PAR,03/03/2021,0153390,11.12,Revenue,Npower Commercial Gas,16814,,
Chorley Borough Council,http://statistics.data.gov.uk/id/local-authority/30UE,Parking Services,1066,Commercial Services,Electricity,20013,Energy Costs,5006,OAK HOUSE CAR PARK,03/03/2021,0153390,169.97,Revenue,Npower Commercial Gas,16814,,
Chorley Borough Council,http://statistics.data.gov.uk/id/local-authority/30UE,Parking Services,1066,Commercial Services,Electricity,20013,Energy Costs,5006,FRIDAY STREET,03/03/2021,0153390,333.37,Revenue,Npower Commercial Gas,16814,,
Chorley Borough Council,http://statistics.data.gov.uk/id/local-authority/30UE,Central Support Services,1009,Commercial Services,Electricity,20013,Energy Costs,5006,CCTV FEEDER PILLAR STEELEY LANE,03/03/2021,0153390,11.81,Revenue,Npower Commercial Gas,16814,,
Chorley Borough Council,http://statistics.data.gov.uk/id/local-authority/30UE,Open Spaces,1038,Commercial Services,Electricity,20013,Energy Costs,5006,RANGLETTS RECREATION,03/03/2021,0153390,25.11,Revenue,Npower Commercial Gas,16814,,
Chorley Borough Council,http://statistics.data.gov.uk/id/local-authority/30UE,Central Support Services,1009,Commercial Services,Electricity,20013,Energy Costs,5006,"CCTV SPENDMORE LANE, BAKER ST JNCT",03/03/2021,0153390,21.75,Revenue,Npower Commercial Gas,16814,,
Chorley Borough Council,http://statistics.data.gov.uk/id/local-authority/30UE,Culture & Heritage,1036,Commercial Services,Electricity,20013,Energy Costs,5006,ASTLEY HALL,24/03/2021,0154375,247.27,Revenue,Npower Commercial Gas,16814,,
Chorley Borough Council,http://statistics.data.gov.uk/id/local-authority/30UE,Recreation & Sport,1037,Commercial Services,Electricity,20013,Energy Costs,5006,EAVES GREEN COMMUNIT,24/03/2021,0154375,106.97,Revenue,Npower Commercial Gas,16814,,
Chorley Borough Council,http://statistics.data.gov.uk/id/local-authority/30UE,Community Development,1097,Commercial Services,Electricity,20013,Energy Costs,5006,FIRST FLOOR INFORMAT,24/03/2021,0154375,191.96,Revenue,Npower Commercial Gas,16814,,
Chorley Borough Council,http://statistics.data.gov.uk/id/local-authority/30UE,Community Development,1097,Commercial Services,Electricity,20013,Energy Costs,5006,TOP FLOOR INFORMATIO,24/03/2021,0154375,31.34,Revenue,Npower Commercial Gas,16814,,
Chorley Borough Council,http://statistics.data.gov.uk/id/local-authority/30UE,Community Development,1097,Commercial Services,Electricity,20013,Energy Costs,5006,GROUND FLOOR INFORMA,24/03/2021,0154375,18.62,Revenue,Npower Commercial Gas,16814,,
Chorley Borough Council,http://statistics.data.gov.uk/id/local-authority/30UE,Democratic Represent and  Mgnt,1007,Commercial Services,Electricity,20013,Energy Costs,5006,CORONATION RECREATIO,24/03/2021,0154375,24.12,Revenue,Npower Commercial Gas,16814,,
Chorley Borough Council,http://statistics.data.gov.uk/id/local-authority/30UE,Democratic Represent and  Mgnt,1007,Commercial Services,Electricity,20013,Energy Costs,5006,ASTLEY VILLAGE COMMU,24/03/2021,0154375,85.86,Revenue,Npower Commercial Gas,16814,,
Chorley Borough Council,http://statistics.data.gov.uk/id/local-authority/30UE,Democratic Represent and  Mgnt,1007,Commercial Services,Electricity,20013,Energy Costs,5006,ASTLEY HALL COACH HO,24/03/2021,0154375,875.32,Revenue,Npower Commercial Gas,16814,,
Chorley Borough Council,http://statistics.data.gov.uk/id/local-authority/30UE,Culture & Heritage,1036,Commercial Services,Electricity,20013,Energy Costs,5006,ASTLEY HALL COTTAGE,24/03/2021,0154375,55.93,Revenue,Npower Commercial Gas,16814,,
Chorley Borough Council,http://statistics.data.gov.uk/id/local-authority/30UE,Cemetery Cremation & Mortuary,1041,Commercial Services,Electricity,20013,Energy Costs,5006,CEMETERIES OFFICE,24/03/2021,0154375,138.92,Revenue,Npower Commercial Gas,16814,,
Chorley Borough Council,http://statistics.data.gov.uk/id/local-authority/30UE,Open Spaces,1038,Commercial Services,Electricity,20013,Energy Costs,5006,ASTLEY PARK PAVILION/CHANGING,24/03/2021,0154375,385.47,Revenue,Npower Commercial Gas,16814,,
Chorley Borough Council,http://statistics.data.gov.uk/id/local-authority/30UE,Economic Development,1096,Commercial Services,Electricity,20013,Energy Costs,5006,MARKET COMPACTOR RE,24/03/2021,0154375,11.83,Revenue,Npower Commercial Gas,16814,,
Chorley Borough Council,http://statistics.data.gov.uk/id/local-authority/30UE,Open Spaces,1038,Commercial Services,Electricity,20013,Energy Costs,5006,KING GEORGE V CHANGING ROOMS,24/03/2021,0154375,6.62,Revenue,Npower Commercial Gas,16814,,
Chorley Borough Council,http://statistics.data.gov.uk/id/local-authority/30UE,Homelessness,1075,Commercial Services,Electricity,20013,Energy Costs,5006,COTSWOLD HOUSE COMMUNAL ROOMS,24/03/2021,0154375,516.02,Revenue,Npower Commercial Gas,16814,,
Chorley Borough Council,http://statistics.data.gov.uk/id/local-authority/30UE,Homelessness,1075,Commercial Services,Electricity,20013,Energy Costs,5006,COTSWOLD HOUSE TWO STORY WING,24/03/2021,0154375,212.15,Revenue,Npower Commercial Gas,16814,,
Chorley Borough Council,http://statistics.data.gov.uk/id/local-authority/30UE,Homelessness,1075,Commercial Services,Electricity,20013,Energy Costs,5006,COTSWOLD HOUSE SINGL,24/03/2021,0154375,86.58,Revenue,Npower Commercial Gas,16814,,
Chorley Borough Council,http://statistics.data.gov.uk/id/local-authority/30UE,Business Support,1095,Commercial Services,Electricity,20013,Energy Costs,5006,LANDLORDS COMMUNAL AREA,24/03/2021,0154375,"1,070.48",Revenue,Npower Commercial Gas,16814,,
Chorley Borough Council,http://statistics.data.gov.uk/id/local-authority/30UE,Recreation & Sport,1037,Commercial Services,Electricity,20013,Energy Costs,5006,BUTTERMERE COMMUNITY,24/03/2021,0154375,102.19,Revenue,Npower Commercial Gas,16814,,
Chorley Borough Council,http://statistics.data.gov.uk/id/local-authority/30UE,Recreation & Sport,1037,Commercial Services,Electricity,20013,Energy Costs,5006,LANCASTER WAY COMMUN,24/03/2021,0154375,132.27,Revenue,Npower Commercial Gas,16814,,
Chorley Borough Council,http://statistics.data.gov.uk/id/local-authority/30UE,Parking Services,1066,Commercial Services,Electricity,20013,Energy Costs,5006,CAR PARK UNION ST,24/03/2021,0154375,344.54,Revenue,Npower Commercial Gas,16814,,
Chorley Borough Council,http://statistics.data.gov.uk/id/local-authority/30UE,Parking Services,1066,Commercial Services,Electricity,20013,Energy Costs,5006,ARLEY STREET CAR PAR,24/03/2021,0154375,8.55,Revenue,Npower Commercial Gas,16814,,
Chorley Borough Council,http://statistics.data.gov.uk/id/local-authority/30UE,Parking Services,1066,Commercial Services,Electricity,20013,Energy Costs,5006,OAK HOUSE CAR PARK,24/03/2021,0154375,193.67,Revenue,Npower Commercial Gas,16814,,
Chorley Borough Council,http://statistics.data.gov.uk/id/local-authority/30UE,Parking Services,1066,Commercial Services,Electricity,20013,Energy Costs,5006,FRIDAY STREET,24/03/2021,0154375,286.71,Revenue,Npower Commercial Gas,16814,,
Chorley Borough Council,http://statistics.data.gov.uk/id/local-authority/30UE,Central Support Services,1009,Commercial Services,Electricity,20013,Energy Costs,5006,CCTV FEEDER PILLAR STEELEY LANE,24/03/2021,0154375,10.66,Revenue,Npower Commercial Gas,16814,,
Chorley Borough Council,http://statistics.data.gov.uk/id/local-authority/30UE,Central Support Services,1009,Commercial Services,Electricity,20013,Energy Costs,5006,CCTV FEEDER PILLAR MOSS LANE,24/03/2021,0154375,21.27,Revenue,Npower Commercial Gas,16814,,
Chorley Borough Council,http://statistics.data.gov.uk/id/local-authority/30UE,Open Spaces,1038,Commercial Services,Electricity,20013,Energy Costs,5006,RANGLETTS RECREATION,24/03/2021,0154375,22.81,Revenue,Npower Commercial Gas,16814,,
Chorley Borough Council,http://statistics.data.gov.uk/id/local-authority/30UE,Open Spaces,1038,Commercial Services,Electricity,20013,Energy Costs,5006,HARPERS LANE RECREAT,24/03/2021,0154375,18.04,Revenue,Npower Commercial Gas,16814,,
Chorley Borough Council,http://statistics.data.gov.uk/id/local-authority/30UE,Open Spaces,1038,Commercial Services,Electricity,20013,Energy Costs,5006,TATTON RECREATION GR,24/03/2021,0154375,23.35,Revenue,Npower Commercial Gas,16814,,
Chorley Borough Council,http://statistics.data.gov.uk/id/local-authority/30UE,Service Management & Support,1009,Commercial Services,Electricity,20013,Energy Costs,5006,GILLETT PLAYING FIEL,24/03/2021,0154375,6.62,Revenue,Npower Commercial Gas,16814,,
Chorley Borough Council,http://statistics.data.gov.uk/id/local-authority/30UE,Democratic Represent and  Mgnt,1007,Commercial Services,Electricity,20013,Energy Costs,5006,KING GEORGE V PLAYING FIELDS,24/03/2021,0154375,6.91,Revenue,Npower Commercial Gas,16814,,
Chorley Borough Council,http://statistics.data.gov.uk/id/local-authority/30UE,Democratic Represent and  Mgnt,1007,Commercial Services,Electricity,20013,Energy Costs,5006,ASTLEY HALL FARM HOU,24/03/2021,0154375,131.40,Revenue,Npower Commercial Gas,16814,,
Chorley Borough Council,http://statistics.data.gov.uk/id/local-authority/30UE,Parking Services,1066,Commercial Services,External Contractors,50008,Private Contractors,5042,"Provision of off street car park enforcement, cash collection, cash counting facilities and third cash collections 01.11.20 - 31.03.21",10/03/2021,0153979,"4,755.18",Revenue,NSL Limited,67253,,
Chorley Borough Council,http://statistics.data.gov.uk/id/local-authority/30UE,Other Short Term Creditors,,Policy & Governance,General Balances,00100,Balance Sheet,Balance,people pension feb21,30/03/2021,0154214,"1,926.77",Revenue,Peoples Pension B&CE,81827,,
Chorley Borough Council,http://statistics.data.gov.uk/id/local-authority/30UE,Other Short Term Creditors,,Policy & Governance,General Balances,00100,Balance Sheet,Balance,peoples pension Oct,30/03/2021,0154215,"1,993.61",Revenue,Peoples Pension B&CE,81827,,
Chorley Borough Council,http://statistics.data.gov.uk/id/local-authority/30UE,Other Short Term Creditors,,Policy & Governance,General Balances,00100,Balance Sheet,Balance,peoples pension Nov,30/03/2021,0154215,"2,177.64",Revenue,Peoples Pension B&CE,81827,,
Chorley Borough Council,http://statistics.data.gov.uk/id/local-authority/30UE,Other Short Term Creditors,,Policy & Governance,General Balances,00100,Balance Sheet,Balance,peoples pension Dec,30/03/2021,0154215,"2,289.31",Revenue,Peoples Pension B&CE,81827,,
Chorley Borough Council,http://statistics.data.gov.uk/id/local-authority/30UE,Other Short Term Creditors,,Policy & Governance,General Balances,00100,Balance Sheet,Balance,peoples pension Jan,30/03/2021,0154215,"2,072.34",Revenue,Peoples Pension B&CE,81827,,
Chorley Borough Council,http://statistics.data.gov.uk/id/local-authority/30UE,Central Support Services,1009,Commercial Services,Professional Fees,40063,Services,5027,Extension to professional services,03/03/2021,0153727,"4,200.00",Revenue,Perfect Circle JV Ltd,76438,,
Chorley Borough Council,http://statistics.data.gov.uk/id/local-authority/30UE,Central Support Services,1009,Commercial Services,Professional Fees,40063,Services,5027,Extension to professional services,10/03/2021,0153888,"5,199.99",Revenue,Perfect Circle JV Ltd,76438,,
Chorley Borough Council,http://statistics.data.gov.uk/id/local-authority/30UE,Service Management & Support,1009,Customer & Digital,Diesel/Derv,30007,Direct Transport Costs,5016,as per quotation on The Chest for 7000L DERV @ 0.99p/L,10/03/2021,0153986,"6,930.00",Revenue,Pilkington Oils,18075,,
Chorley Borough Council,http://statistics.data.gov.uk/id/local-authority/30UE,Development Control,1091,Customer & Digital,Planning Application Fees,60149,Customer & Client Receipts,5064,refund plan app,05/03/2021,0153683,462.00,Revenue,Planning Portal Ltd,77808,,
Chorley Borough Council,http://statistics.data.gov.uk/id/local-authority/30UE,Central Support Services,1009,Early Intervention,Other Contributions,40145,Grants and Subscriptions,5031,Chorley Council`s Contribution to Lancs Victim Service 20-21,26/03/2021,0154689,"9,000.00",Revenue,Police & Crime Commissioner,17548,,
Chorley Borough Council,http://statistics.data.gov.uk/id/local-authority/30UE,Capital,Capital,Commercial Services,Main Contractor,03007,Capital Expenditure,Capital,Brinscall baths Approved by NAME REDACTED Supply and installation of: New auto top-up,03/03/2021,0153711,"1,240.00",Capital,Pool Technical Services Ltd,81000,,
Chorley Borough Council,http://statistics.data.gov.uk/id/local-authority/30UE,Capital,Capital,Commercial Services,Main Contractor,03007,Capital Expenditure,Capital,All Seasons Approved by NAME REDACTED Replacement of defective pool lights at All Seasons with new LED units,10/03/2021,0153990,"8,820.00",Capital,Pool Technical Services Ltd,81000,,
Chorley Borough Council,http://statistics.data.gov.uk/id/local-authority/30UE,Capital,Capital,Commercial Services,Main Contractor,03007,Capital Expenditure,Capital,All Seasons Approved by NAME REDACTED Replacement of 6 No butterfly critical path valves to pool system -4`` DI Body ,10/03/2021,0153991,"2,678.88",Capital,Pool Technical Services Ltd,81000,,
Chorley Borough Council,http://statistics.data.gov.uk/id/local-authority/30UE,Recreation & Sport,1037,Commercial Services,General Repairs - Reactive,20004,Repairs Maintenance & Alts,5005,"All Seasons  Approved by NAME REDACTED Supply of works to refurbish pool ladders: -Removal, SS polishing, Reaffixing",26/03/2021,0154750,"1,040.00",Revenue,Pool Technical Services Ltd,81000,,
Chorley Borough Council,http://statistics.data.gov.uk/id/local-authority/30UE,Central Support Services,1009,Chief Executive,Photocopier Consumables,40049,"Printing, Stationery & General",5026,"Evolution Everyday A4 80gsm, Box 2500",26/03/2021,0154369,580.00,Revenue,Premier Paper Group,54451,,
Chorley Borough Council,http://statistics.data.gov.uk/id/local-authority/30UE,Elections,1012,Policy & Governance,Postages,40082,Communication and Computing,5028,Poll card postage 2021,17/03/2021,0154096,"27,736.90",Revenue,Print Image Facilities LLP,57870,,
Chorley Borough Council,http://statistics.data.gov.uk/id/local-authority/30UE,Elections,1012,Policy & Governance,Postages,40082,Communication and Computing,5028,Balance of 1st issue poll cards,26/03/2021,0154680,"4,370.67",Revenue,Print Image Facilities LLP,57870,,
Chorley Borough Council,http://statistics.data.gov.uk/id/local-authority/30UE,Other Short Term Creditors,,Policy & Governance,General Balances,00100,Balance Sheet,Balance,sal deds,03/03/2021,0153780,"4,674.00",Revenue,PRUDENTIAL,18178,,
Chorley Borough Council,http://statistics.data.gov.uk/id/local-authority/30UE,Other Short Term Creditors,,Policy & Governance,General Balances,00100,Balance Sheet,Balance,Salary Deductions,26/03/2021,0154895,"4,674.00",Revenue,PRUDENTIAL,18178,,
Chorley Borough Council,http://statistics.data.gov.uk/id/local-authority/30UE,Interest Payable on Debt,1020,Policy & Governance,Interest Payable,09009,Interest Payments,5067,interest,30/03/2021,0154103,"81,746.70",Revenue,Public Works Loans Board,21480,,
Chorley Borough Council,http://statistics.data.gov.uk/id/local-authority/30UE,Capital,Capital,Commercial Services,Main Contractor,03007,Capital Expenditure,Capital,Construction of Whittle GP surgery,03/03/2021,0153234,"246,484.62",Capital,Rayner Rowen Construction Limited,80915,,
Chorley Borough Council,http://statistics.data.gov.uk/id/local-authority/30UE,Capital,Capital,Commercial Services,Main Contractor,03007,Capital Expenditure,Capital,Construction of Whittle GP surgery,19/03/2021,0154223,"255,877.41",Capital,Rayner Rowen Construction Limited,80915,,
Chorley Borough Council,http://statistics.data.gov.uk/id/local-authority/30UE,Business Support,1095,Commercial Services,Miscellaneous Expenses,40200,Miscellaneous Expenses,5034,"NAME REDACTED 8 Service Inspections for Mice, Rats including Call Outs, 2 Service Inspections for Pigeon Trapping ",03/03/2021,0153725,470.20,Revenue,Rentokil,76639,,
Chorley Borough Council,http://statistics.data.gov.uk/id/local-authority/30UE,Economic Development,1096,Commercial Services,Rent/Hire Of Premises,20017,Premises Rents,5007,Leasing of land on Steeley Lane for January 2021,03/03/2021,0153729,434.00,Revenue,Rex Campbell Properties Ltd,77444,,
Chorley Borough Council,http://statistics.data.gov.uk/id/local-authority/30UE,Planning Policy,1092,Commercial Services,Legal Fees,40171,Miscellaneous Expenses,5034,Council�s costs of mediation with Interlec Systems Ltd relating to the forfeiture of a lease of land near South Lodge Wigan Lane ,19/03/2021,0154329,750.00,Revenue,Richard Price,80767,,
Chorley Borough Council,http://statistics.data.gov.uk/id/local-authority/30UE,Central Support Services,1009,Commercial Services,Consultants` Fees,40077,Services,5027,Project Management & Quantity Surveying on the Tatton Regeneration scheme from Contractor appointment to RIBA Stage 7,03/03/2021,0153726,"10,710.00",Revenue,Rider Levett Bucknall,67527,,
Chorley Borough Council,http://statistics.data.gov.uk/id/local-authority/30UE,Service Management & Support,1009,Customer & Digital,Supplies-Grounds Maintenance,40025,"Equipment, Furniture & Materia",5023,"Supply 28kg Euroflor Rainbow Annuals, 2kg Euroflor Rainbow Perennials & 1kg Euroflor Poppies. Deliver to Bengal St",24/03/2021,0154156,"4,672.00",Revenue,Rigby Taylor Ltd,16299,,
Chorley Borough Council,http://statistics.data.gov.uk/id/local-authority/30UE,Central Support Services,1009,Commercial Services,Professional Fees,40063,Services,5027,Rightmove advertising for 12 months - 7-18 properties band 6 months at 235pm 6 months at 570pm,29/03/2021,0154911,285.00,Revenue,Rightmove Group Ltd,77717,,
Chorley Borough Council,http://statistics.data.gov.uk/id/local-authority/30UE,Capital,Capital,Commercial Services,Main Contractor,03007,Capital Expenditure,Capital,Delivery of the Tatton regeneration scheme All in accordance with the executed NEC Engineering & Construct Contract,19/03/2021,0154255,"592,882.12",Capital,Robertson CE Limited,81176,,
Chorley Borough Council,http://statistics.data.gov.uk/id/local-authority/30UE,Capital,Capital,Early Intervention,Consultants Fees,03025,Capital Expenditure,Capital,Westway Playing Fields - Stage 5 (construction),17/03/2021,0154143,717.30,Capital,Robinson Low Francis LLP,77155,,
Chorley Borough Council,http://statistics.data.gov.uk/id/local-authority/30UE,Capital,Capital,Early Intervention,Consultants Fees,03025,Capital Expenditure,Capital,Westway Playing Fields - Stage 5 (construction),17/03/2021,0154178,534.52,Capital,Robinson Low Francis LLP,77155,,
Chorley Borough Council,http://statistics.data.gov.uk/id/local-authority/30UE,Capital,Capital,Early Intervention,Consultants Fees,03025,Capital Expenditure,Capital,Westway Playing Fields - Stage 5 (construction),26/03/2021,0154675,819.50,Capital,Robinson Low Francis LLP,77155,,
Chorley Borough Council,http://statistics.data.gov.uk/id/local-authority/30UE,Elections,1012,Policy & Governance,Postages,40082,Communication and Computing,5028,business reply from 1 April 2020  - RRHA-KZGB-CAXA,17/03/2021,0154235,367.20,Revenue,Royal Mail Group Plc,17522,,
Chorley Borough Council,http://statistics.data.gov.uk/id/local-authority/30UE,Planning Policy,1092,Early Intervention,Professional Fees,40063,Services,5027,Prep and advising in conference 5 February 2021 regarding potential JR to challenge standard methodology,17/03/2021,0154220,675.00,Revenue,Ruth Stockley,20070,,
Chorley Borough Council,http://statistics.data.gov.uk/id/local-authority/30UE,Capital,Capital,Policy & Governance,Main Contractor,03007,Capital Expenditure,Capital,ADDRESS REDACTED,30/03/2021,0154371,"159,950.00",Capital,NAME REDACTED,81823,,
Chorley Borough Council,http://statistics.data.gov.uk/id/local-authority/30UE,Capital,Capital,Policy & Governance,Main Contractor,03007,Capital Expenditure,Capital,,05/03/2021,0153677,287.48,Capital,Sansco Services Limited t/a X-Press Legal Services,81566,,
Chorley Borough Council,http://statistics.data.gov.uk/id/local-authority/30UE,Capital,Capital,Policy & Governance,Main Contractor,03007,Capital Expenditure,Capital,,05/03/2021,0153677,23.48,Capital,Sansco Services Limited t/a X-Press Legal Services,81566,,
Chorley Borough Council,http://statistics.data.gov.uk/id/local-authority/30UE,Unapportionable Central OHeads,1009,Policy & Governance,HR Approved Occ Health Fees,15201,Indirect Employee Expenses,5002,Counselling Sessions for Staff in February 2021,10/03/2021,0154094,360.00,Revenue,Sarah Walsh,78412,,
Chorley Borough Council,http://statistics.data.gov.uk/id/local-authority/30UE,Service Management & Support,1009,Customer & Digital,Vehicle Trackers - Leasing,30046,Direct Transport Costs,5016,Subscription costs for 60 monitored devices from 1st April 2021- 31st March 2022,26/03/2021,0154677,"2,500.00",Revenue,Scorpion Automotive Ltd,76499,,
Chorley Borough Council,http://statistics.data.gov.uk/id/local-authority/30UE,Recreation & Sport,1037,Early Intervention,Miscellaneous Expenses,40200,Miscellaneous Expenses,5034,Monthly Service Charge - November 2020 - June 2021 8 x 1595.00 (not incl. of VAT),10/03/2021,0153467,"1,595.00",Revenue,Service Sport Ltd,65601,,
Chorley Borough Council,http://statistics.data.gov.uk/id/local-authority/30UE,Capital,Capital,Policy & Governance,Main Contractor,03007,Capital Expenditure,Capital,ADDRESS REDACTED,30/03/2021,0154372,"137,000.00",Capital,NAMES REDACTED,81824,,
Chorley Borough Council,http://statistics.data.gov.uk/id/local-authority/30UE,Elections,1012,Policy & Governance,Stationery,40050,"Printing, Stationery & General",5026,170 x LEAP Nomination packs,05/03/2021,0153871,763.30,Revenue,Shaw & Sons Ltd,18092,,
Chorley Borough Council,http://statistics.data.gov.uk/id/local-authority/30UE,Planning Policy,1092,Early Intervention,Professional Fees,40063,Services,5027,Gornall JR - advice relating to the signing of the Consent Order,03/03/2021,0153766,250.00,Revenue,Simon Pickles,77744,,
Chorley Borough Council,http://statistics.data.gov.uk/id/local-authority/30UE,Capital,Capital,Commercial Services,Main Contractor,03007,Capital Expenditure,Capital,"As approved by NAMES REDACTED For the supply, installation and commissioning only of the BMS control scheme Schedule",03/03/2021,0153071,"23,102.12",Capital,Smart Control Systems Ltd,81175,,
Chorley Borough Council,http://statistics.data.gov.uk/id/local-authority/30UE,Unapportionable Central OHeads,1009,Policy & Governance,Service Fees to other Local Authorities,40076,Services,5027,Provision of Shared Assurance Services 1 April 2019 - 31 March 2020,29/03/2021,0153860,"57,449.79",Revenue,South Ribble Borough Council,17889,,
Chorley Borough Council,http://statistics.data.gov.uk/id/local-authority/30UE,Business Support,1095,Commercial Services,Window Cleaning,20034,Cleaning and Domestic Supplies,5012,Quarterly window cleaning at Strawberry Fields Digital Office Hub 16/03/2021,26/03/2021,0154686,374.00,Revenue,Sparkle Window Cleaning (Michael Jennings),77989,,
Chorley Borough Council,http://statistics.data.gov.uk/id/local-authority/30UE,Control Accounts,Control,Policy & Governance,General Balances,00100,Balance Sheet,Balance,Monthly deductions,19/03/2021,0154384,425.32,Revenue,St Catherines Hospice Promotions,72375,,
Chorley Borough Council,http://statistics.data.gov.uk/id/local-authority/30UE,Central Support Services,1009,Customer & Digital,Computer Equipment-Purchase,40098,Communication and Computing,5028,10 x all in ones 10 x 490,29/03/2021,0152668,"4,900.00",Revenue,Starcom Technologies Limited,20541,,
Chorley Borough Council,http://statistics.data.gov.uk/id/local-authority/30UE,Central Support Services,1009,Customer & Digital,Computer Equipment-Purchase,40098,Communication and Computing,5028,2 x elections laptop,19/03/2021,0152669,"1,280.00",Revenue,Starcom Technologies Limited,20541,,
Chorley Borough Council,http://statistics.data.gov.uk/id/local-authority/30UE,Central Support Services,1009,Customer & Digital,Computer Equipment-Purchase,40098,Communication and Computing,5028,Wyse 5470: Celeron N4100,19/03/2021,0154238,"4,150.00",Revenue,Starcom Technologies Limited,20541,,
Chorley Borough Council,http://statistics.data.gov.uk/id/local-authority/30UE,Capital,Capital,Early Intervention,Consultants Fees,03025,Capital Expenditure,Capital,"Westway Pavilion Contract - Implementation Stage from Contract Let through to Practical Completion and Handover, and then ",03/03/2021,0153663,"5,000.00",Capital,Steve Wells Associates Ltd,77157,,
Chorley Borough Council,http://statistics.data.gov.uk/id/local-authority/30UE,Capital,Capital,Early Intervention,Consultants Fees,03025,Capital Expenditure,Capital,West Way Sports Hub Consultancy Support for Operator Procurement during2019/20 As set out in letter dated 26th Jan 21,26/03/2021,0154872,"8,000.00",Capital,Steve Wells Associates Ltd,77157,,
Chorley Borough Council,http://statistics.data.gov.uk/id/local-authority/30UE,Capital,Capital,Early Intervention,Consultants Fees,03025,Capital Expenditure,Capital,"Westway Pavilion Contract - Implementation Stage from Contract Let through to Practical Completion and Handover, and then",26/03/2021,0154873,"5,000.00",Capital,Steve Wells Associates Ltd,77157,,
Chorley Borough Council,http://statistics.data.gov.uk/id/local-authority/30UE,Central Support Services,1009,Commercial Services,Professional Fees,40063,Services,5027,Building Consultancy � M&E Design & Consultancy,03/03/2021,0152916,"1,214.69",Revenue,Steven A Hunt & Associates Ltd,80511,,
Chorley Borough Council,http://statistics.data.gov.uk/id/local-authority/30UE,Recreation & Sport,1037,Policy & Governance,Legal Fees,40171,Miscellaneous Expenses,5034,14/09/2020 - Draft Letter - Active Nation Dispute,05/03/2021,0153851,875.00,Revenue,Steven Flynn,80486,,
Chorley Borough Council,http://statistics.data.gov.uk/id/local-authority/30UE,Parking Services,1066,Commercial Services,Consultants` Fees,40077,Services,5027,additional costs,03/03/2021,0153844,"3,394.31",Revenue,Street Civil Engineering Limited,76750,,
Chorley Borough Council,http://statistics.data.gov.uk/id/local-authority/30UE,Capital,Capital,Early Intervention,Grants,03002,Capital Expenditure,Capital,20/00021/DFG,10/03/2021,0154072,"6,330.00",Capital,Stringfellow Bldg Cntrctrs Ltd,17893,,
Chorley Borough Council,http://statistics.data.gov.uk/id/local-authority/30UE,Capital,Capital,Early Intervention,Grants,03002,Capital Expenditure,Capital,20/00122/CAG,10/03/2021,0154073,"5,071.25",Capital,Stringfellow Bldg Cntrctrs Ltd,17893,,
Chorley Borough Council,http://statistics.data.gov.uk/id/local-authority/30UE,Unapportionable Central OHeads,1009,Customer & Digital,Refuse Collection,20037,Cleaning and Domestic Supplies,5012,Trade waste collection & disposal from Chorley Council Buildings (1 April 2020 - 31 March 2021)   Civic Offices Union Street ,10/03/2021,0151247,163.47,Revenue,SUEZ R&R UK LTD,17615,,
Chorley Borough Council,http://statistics.data.gov.uk/id/local-authority/30UE,Central Support Services,1009,Customer & Digital,Refuse Collection,20037,Cleaning and Domestic Supplies,5012,Trade waste collection & disposal from Chorley Council Buildings (1 April 2020 - 31 March 2021)   Civic Offices Union Street ,10/03/2021,0151247,149.16,Revenue,SUEZ R&R UK LTD,17615,,
Chorley Borough Council,http://statistics.data.gov.uk/id/local-authority/30UE,Democratic Represent and  Mgnt,1007,Customer & Digital,Refuse Collection,20037,Cleaning and Domestic Supplies,5012,Trade waste collection & disposal from Chorley Council Buildings (1 April 2020 - 31 March 2021) Tatton CC Silverdale Road ,10/03/2021,0151247,22.71,Revenue,SUEZ R&R UK LTD,17615,,
Chorley Borough Council,http://statistics.data.gov.uk/id/local-authority/30UE,Business Support,1095,Commercial Services,Refuse Collection,20037,Cleaning and Domestic Supplies,5012,"Market Walk Extension  - General Waste, 8 x 1100L bins, (65kg weight allowance and 14p per kilo thereafter)  9.83 +VAT ",03/03/2021,0152334,140.44,Revenue,SUEZ R&R UK LTD,17615,,
Chorley Borough Council,http://statistics.data.gov.uk/id/local-authority/30UE,Business Support,1095,Commercial Services,Refuse Collection,20037,Cleaning and Domestic Supplies,5012,"Market Walk Extension - Mixed Recycling,  8 x 1100L bins, . (35kg weight allowance and 10p per kilo thereafter) 8.09 +VAT ",03/03/2021,0152334,170.65,Revenue,SUEZ R&R UK LTD,17615,,
Chorley Borough Council,http://statistics.data.gov.uk/id/local-authority/30UE,Business Support,1095,Commercial Services,Refuse Collection,20037,Cleaning and Domestic Supplies,5012,"Market Walk Extension - Glass Waste, 6 x 240L bins, 3.84 +VAT per bin per lift x 52 weeks � Total 1198.08",03/03/2021,0152334,97.88,Revenue,SUEZ R&R UK LTD,17615,,
Chorley Borough Council,http://statistics.data.gov.uk/id/local-authority/30UE,Central Support Services,1009,Customer & Digital,Refuse Collection,20037,Cleaning and Domestic Supplies,5012,Trade waste collection & disposal from Chorley Council Buildings (1 April 2020 - 31 March 2021)   Civic Offices Union Street ,03/03/2021,0152335,256.56,Revenue,SUEZ R&R UK LTD,17615,,
Chorley Borough Council,http://statistics.data.gov.uk/id/local-authority/30UE,Unapportionable Central OHeads,1009,Customer & Digital,Refuse Collection,20037,Cleaning and Domestic Supplies,5012,Trade waste collection & disposal from Chorley Council Buildings (1 April 2020 - 31 March 2021)   Civic Offices Union Street ,03/03/2021,0152335,35.19,Revenue,SUEZ R&R UK LTD,17615,,
Chorley Borough Council,http://statistics.data.gov.uk/id/local-authority/30UE,Central Support Services,1009,Customer & Digital,Refuse Collection,20037,Cleaning and Domestic Supplies,5012,Trade waste collection & disposal from Chorley Council Buildings (1 April 2020 - 31 March 2021)  Town Hall GENERAL WASTE,03/03/2021,0152335,128.28,Revenue,SUEZ R&R UK LTD,17615,,
Chorley Borough Council,http://statistics.data.gov.uk/id/local-authority/30UE,Unapportionable Central OHeads,1009,Customer & Digital,Refuse Collection,20037,Cleaning and Domestic Supplies,5012,Trade waste collection & disposal from Chorley Council Buildings (1 April 2020 - 31 March 2021) Town Hall RECYCLING ,03/03/2021,0152335,35.19,Revenue,SUEZ R&R UK LTD,17615,,
Chorley Borough Council,http://statistics.data.gov.uk/id/local-authority/30UE,Business Support,1095,Customer & Digital,Refuse Collection,20037,Cleaning and Domestic Supplies,5012,Trade waste collection & disposal from Chorley Council Buildings (1 April 2020 - 31 March 2021) Strawberry fields Digital Park ,03/03/2021,0152335,150.99,Revenue,SUEZ R&R UK LTD,17615,,
Chorley Borough Council,http://statistics.data.gov.uk/id/local-authority/30UE,Business Support,1095,Customer & Digital,Refuse Collection,20037,Cleaning and Domestic Supplies,5012,Trade waste collection & disposal from Chorley Council Buildings (1 April 2020 - 31 March 2021) Strawberry Fields digital park ,03/03/2021,0152335,82.86,Revenue,SUEZ R&R UK LTD,17615,,
Chorley Borough Council,http://statistics.data.gov.uk/id/local-authority/30UE,Community Development,1097,Customer & Digital,Refuse Collection,20037,Cleaning and Domestic Supplies,5012,Trade waste collection & disposal from Chorley Council Buildings (1 April 2020 - 31 March 2021) MP`s Office (35-39) Market St,03/03/2021,0152335,42.76,Revenue,SUEZ R&R UK LTD,17615,,
Chorley Borough Council,http://statistics.data.gov.uk/id/local-authority/30UE,Democratic Represent and  Mgnt,1007,Customer & Digital,Refuse Collection,20037,Cleaning and Domestic Supplies,5012,Trade waste collection & disposal from Chorley Council Buildings (1 April 2020 - 31 March 2021) Tatton CC Silverdale Road,03/03/2021,0152335,21.33,Revenue,SUEZ R&R UK LTD,17615,,
Chorley Borough Council,http://statistics.data.gov.uk/id/local-authority/30UE,Recreation & Sport,1037,Customer & Digital,Refuse Collection,20037,Cleaning and Domestic Supplies,5012,Trade waste collection & disposal from Chorley Council Buildings (1 April 2020 - 31 March 2021) Eaves Green CC  1  X 360L bin ,03/03/2021,0152335,29.49,Revenue,SUEZ R&R UK LTD,17615,,
Chorley Borough Council,http://statistics.data.gov.uk/id/local-authority/30UE,Democratic Represent and  Mgnt,1007,Customer & Digital,Refuse Collection,20037,Cleaning and Domestic Supplies,5012,Trade waste collection & disposal from Chorley Council Buildings (1 April 2020 - 31 March 2021) Astley Hall 1 X 1100L bin,03/03/2021,0152335,42.76,Revenue,SUEZ R&R UK LTD,17615,,
Chorley Borough Council,http://statistics.data.gov.uk/id/local-authority/30UE,Recreation & Sport,1037,Customer & Digital,Miscellaneous Expenses,40200,Miscellaneous Expenses,5034,Trade waste collection & disposal from Chorley Council Buildings (1 April 2020 - 31 March 2021) Lancaster Way CC at Buckshaw ,03/03/2021,0152335,29.49,Revenue,SUEZ R&R UK LTD,17615,,
Chorley Borough Council,http://statistics.data.gov.uk/id/local-authority/30UE,Recreation & Sport,1037,Customer & Digital,Miscellaneous Expenses,40200,Miscellaneous Expenses,5034,Trade waste collection & disposal from Chorley Council Buildings (1 April 2020 - 31 March 2021) Buttermere Green CC 1 X 360L ,03/03/2021,0152335,29.49,Revenue,SUEZ R&R UK LTD,17615,,
Chorley Borough Council,http://statistics.data.gov.uk/id/local-authority/30UE,Democratic Represent and  Mgnt,1007,Customer & Digital,Refuse Collection,20037,Cleaning and Domestic Supplies,5012,Trade waste collection & disposal from Chorley Council Buildings (1 April 2020 - 31 March 2021) Clayton Brook Village Hall ,03/03/2021,0152335,22.71,Revenue,SUEZ R&R UK LTD,17615,,
Chorley Borough Council,http://statistics.data.gov.uk/id/local-authority/30UE,Recreation & Sport,1037,Customer & Digital,Refuse Collection,20037,Cleaning and Domestic Supplies,5012,Trade waste collection & disposal from Chorley Council Buildings (1 April 2020 - 31 March 2021) Astley Village CC 1 x 360L bin,03/03/2021,0152335,29.49,Revenue,SUEZ R&R UK LTD,17615,,
Chorley Borough Council,http://statistics.data.gov.uk/id/local-authority/30UE,Business Support,1095,Customer & Digital,Refuse Collection,20037,Cleaning and Domestic Supplies,5012,"Market Walk Extension  - General Waste, 8 x 1100L bins, (65kg weight allowance and 14p per kilo thereafter) 9.83 +VAT per bin ",03/03/2021,0152335,105.57,Revenue,SUEZ R&R UK LTD,17615,,
Chorley Borough Council,http://statistics.data.gov.uk/id/local-authority/30UE,Business Support,1095,Commercial Services,Refuse Collection,20037,Cleaning and Domestic Supplies,5012,2020/21 - Market Walk Yard 3 - 2 x 8 yard FEL general waste @49.27 per lift (per FEL) - Total 5124.08,03/03/2021,0152369,428.65,Revenue,SUEZ R&R UK LTD,17615,,
Chorley Borough Council,http://statistics.data.gov.uk/id/local-authority/30UE,Business Support,1095,Commercial Services,Refuse Collection,20037,Cleaning and Domestic Supplies,5012,Any excess weight charges for Market Walk Skips and FEL`s 3000,03/03/2021,0152369,30.00,Revenue,SUEZ R&R UK LTD,17615,,
Chorley Borough Council,http://statistics.data.gov.uk/id/local-authority/30UE,Business Support,1095,Commercial Services,Refuse Collection,20037,Cleaning and Domestic Supplies,5012,"2020/21- To provide a bakkie cage for cardboard in Service Yard 3 @ Market Walk Shopping Centre, Chorley. From April 2020 ",03/03/2021,0153247,12.00,Revenue,SUEZ R&R UK LTD,17615,,
Chorley Borough Council,http://statistics.data.gov.uk/id/local-authority/30UE,Business Support,1095,Commercial Services,Refuse Collection,20037,Cleaning and Domestic Supplies,5012,2020/21 - Market Walk Yard 1 - General Waste compacted - 35 yard roll on/roll off skip from compactor 88.1 per exchange,03/03/2021,0153247,176.20,Revenue,SUEZ R&R UK LTD,17615,,
Chorley Borough Council,http://statistics.data.gov.uk/id/local-authority/30UE,Business Support,1095,Commercial Services,Refuse Collection,20037,Cleaning and Domestic Supplies,5012,2020/21 - Market Walk Yard 1 - General Waste compacted - 35 yard roll on/roll off skip from compactor disposal costs per tonne,03/03/2021,0153247,"2,082.51",Revenue,SUEZ R&R UK LTD,17615,,
Chorley Borough Council,http://statistics.data.gov.uk/id/local-authority/30UE,Business Support,1095,Commercial Services,Refuse Collection,20037,Cleaning and Domestic Supplies,5012,2020/21 - Market Walk Yard 1 - 35 yard roll on/roll off cardboard skip @25 rental per month - no haulage or disposal costs ,03/03/2021,0153247,25.00,Revenue,SUEZ R&R UK LTD,17615,,
Chorley Borough Council,http://statistics.data.gov.uk/id/local-authority/30UE,Business Support,1095,Commercial Services,Refuse Collection,20037,Cleaning and Domestic Supplies,5012,2020/21 - Market Walk Yard 2 - 35 yard roll on/roll off cardboard skip @25 rental per month - no haulage or disposal costs,03/03/2021,0153247,25.00,Revenue,SUEZ R&R UK LTD,17615,,
Chorley Borough Council,http://statistics.data.gov.uk/id/local-authority/30UE,Business Support,1095,Commercial Services,Refuse Collection,20037,Cleaning and Domestic Supplies,5012,2020/21 - Market Walk Yard 3 - 35 yard roll on/roll off cardboard skip @25 rental per month - no haulage or disposal costs,03/03/2021,0153247,25.00,Revenue,SUEZ R&R UK LTD,17615,,
Chorley Borough Council,http://statistics.data.gov.uk/id/local-authority/30UE,Business Support,1095,Commercial Services,Refuse Collection,20037,Cleaning and Domestic Supplies,5012,2020/21 - Market Walk Yard 3 - 35 yard roll on/roll off plastic skip @25 rental per month - no haulage or disposal costs,03/03/2021,0153247,25.00,Revenue,SUEZ R&R UK LTD,17615,,
Chorley Borough Council,http://statistics.data.gov.uk/id/local-authority/30UE,Business Support,1095,Commercial Services,Refuse Collection,20037,Cleaning and Domestic Supplies,5012,2020/21 - Market Walk Yard 3 - 2 x 8 yard FEL general waste @49.27 per lift (per FEL) - Total 5124.08,03/03/2021,0153247,270.85,Revenue,SUEZ R&R UK LTD,17615,,
Chorley Borough Council,http://statistics.data.gov.uk/id/local-authority/30UE,Business Support,1095,Commercial Services,Refuse Collection,20037,Cleaning and Domestic Supplies,5012,Any excess weight charges for Market Walk Skips and FEL`s 3000,03/03/2021,0153247,132.00,Revenue,SUEZ R&R UK LTD,17615,,
Chorley Borough Council,http://statistics.data.gov.uk/id/local-authority/30UE,Business Support,1095,Commercial Services,Refuse Collection,20037,Cleaning and Domestic Supplies,5012,"Market Walk Extension  - General Waste, 8 x 1100L bins, (65kg weight allowance and 14p per kilo thereafter)  9.83 +VAT ",10/03/2021,0153248,125.14,Revenue,SUEZ R&R UK LTD,17615,,
Chorley Borough Council,http://statistics.data.gov.uk/id/local-authority/30UE,Business Support,1095,Commercial Services,Refuse Collection,20037,Cleaning and Domestic Supplies,5012,"Market Walk Extension - Mixed Recycling,  8 x 1100L bins, . (35kg weight allowance and 10p per kilo thereafter) 8.09 +VAT ",10/03/2021,0153248,102.99,Revenue,SUEZ R&R UK LTD,17615,,
Chorley Borough Council,http://statistics.data.gov.uk/id/local-authority/30UE,Business Support,1095,Commercial Services,Refuse Collection,20037,Cleaning and Domestic Supplies,5012,"Market Walk Extension - Glass Waste, 6 x 240L bins, 3.84 +VAT per bin per lift x 52 weeks � Total 1198.08",10/03/2021,0153248,117.12,Revenue,SUEZ R&R UK LTD,17615,,
Chorley Borough Council,http://statistics.data.gov.uk/id/local-authority/30UE,Business Support,1095,Commercial Services,Refuse Collection,20037,Cleaning and Domestic Supplies,5012,"Market Walk Extension  - General Waste, 8 x 1100L bins, (65kg weight allowance and 14p per kilo thereafter)  9.83 +VAT ",10/03/2021,0153248,16.31,Revenue,SUEZ R&R UK LTD,17615,,
Chorley Borough Council,http://statistics.data.gov.uk/id/local-authority/30UE,Business Support,1095,Commercial Services,Refuse Collection,20037,Cleaning and Domestic Supplies,5012,"Calico Lounge - General Waste, 3 x 1100L bins, (65kg weight allowance and 14p per kilo thereafter)  9.83 +VAT ",10/03/2021,0153248,128.28,Revenue,SUEZ R&R UK LTD,17615,,
Chorley Borough Council,http://statistics.data.gov.uk/id/local-authority/30UE,Business Support,1095,Commercial Services,Refuse Collection,20037,Cleaning and Domestic Supplies,5012,"Calico Lounge - Mixed Recycling,  3 x 1100L bins, . (35kg weight allowance and 10p per kilo thereafter) 8.09 +VAT ",10/03/2021,0153248,70.38,Revenue,SUEZ R&R UK LTD,17615,,
Chorley Borough Council,http://statistics.data.gov.uk/id/local-authority/30UE,Business Support,1095,Commercial Services,Refuse Collection,20037,Cleaning and Domestic Supplies,5012,"Calico Lounge - Food Waste, 2 x 240L bins, 9.43 +VAT per bin per lift x 52 lifts � Total 980.72",10/03/2021,0153248,2.67,Revenue,SUEZ R&R UK LTD,17615,,
Chorley Borough Council,http://statistics.data.gov.uk/id/local-authority/30UE,Business Support,1095,Commercial Services,Refuse Collection,20037,Cleaning and Domestic Supplies,5012,"Calico Lounge - Glass Waste, 4 x 240L bins, 3.84 +VAT per bin per lift x 52 weeks � Total 798.72",10/03/2021,0153248,77.37,Revenue,SUEZ R&R UK LTD,17615,,
Chorley Borough Council,http://statistics.data.gov.uk/id/local-authority/30UE,Business Support,1095,Commercial Services,Refuse Collection,20037,Cleaning and Domestic Supplies,5012,Any Excess Weight Charges from Market Walk Extension and Calico Lounge bins 5000,10/03/2021,0153248,4.06,Revenue,SUEZ R&R UK LTD,17615,,
Chorley Borough Council,http://statistics.data.gov.uk/id/local-authority/30UE,Central Support Services,1009,Customer & Digital,Refuse Collection,20037,Cleaning and Domestic Supplies,5012,Trade waste collection & disposal from Chorley Council Buildings (1 April 2020 - 31 March 2021)   Civic Offices Union Street ,03/03/2021,0153258,256.56,Revenue,SUEZ R&R UK LTD,17615,,
Chorley Borough Council,http://statistics.data.gov.uk/id/local-authority/30UE,Unapportionable Central OHeads,1009,Customer & Digital,Refuse Collection,20037,Cleaning and Domestic Supplies,5012,Trade waste collection & disposal from Chorley Council Buildings (1 April 2020 - 31 March 2021)   Civic Offices Union Street ,03/03/2021,0153258,43.29,Revenue,SUEZ R&R UK LTD,17615,,
Chorley Borough Council,http://statistics.data.gov.uk/id/local-authority/30UE,Central Support Services,1009,Customer & Digital,Refuse Collection,20037,Cleaning and Domestic Supplies,5012,Trade waste collection & disposal from Chorley Council Buildings (1 April 2020 - 31 March 2021)  Town Hall GENERAL WASTE ,03/03/2021,0153258,128.28,Revenue,SUEZ R&R UK LTD,17615,,
Chorley Borough Council,http://statistics.data.gov.uk/id/local-authority/30UE,Central Support Services,1009,Customer & Digital,Refuse Collection,20037,Cleaning and Domestic Supplies,5012,Trade waste collection & disposal from Chorley Council Buildings (1 April 2020 - 31 March 2021) Town Hall RECYCLING ,03/03/2021,0153258,35.19,Revenue,SUEZ R&R UK LTD,17615,,
Chorley Borough Council,http://statistics.data.gov.uk/id/local-authority/30UE,Business Support,1095,Customer & Digital,Refuse Collection,20037,Cleaning and Domestic Supplies,5012,Trade waste collection & disposal from Chorley Council Buildings (1 April 2020 - 31 March 2021) Strawberry fields Digital Park ,03/03/2021,0153258,105.57,Revenue,SUEZ R&R UK LTD,17615,,
Chorley Borough Council,http://statistics.data.gov.uk/id/local-authority/30UE,Business Support,1095,Customer & Digital,Refuse Collection,20037,Cleaning and Domestic Supplies,5012,Trade waste collection & disposal from Chorley Council Buildings (1 April 2020 - 31 March 2021) Strawberry Fields digital park ,03/03/2021,0153258,128.28,Revenue,SUEZ R&R UK LTD,17615,,
Chorley Borough Council,http://statistics.data.gov.uk/id/local-authority/30UE,Community Development,1097,Customer & Digital,Refuse Collection,20037,Cleaning and Domestic Supplies,5012,Trade waste collection & disposal from Chorley Council Buildings (1 April 2020 - 31 March 2021) MP`s Office (35-39) Market St,03/03/2021,0153258,42.76,Revenue,SUEZ R&R UK LTD,17615,,
Chorley Borough Council,http://statistics.data.gov.uk/id/local-authority/30UE,Democratic Represent and  Mgnt,1007,Customer & Digital,Refuse Collection,20037,Cleaning and Domestic Supplies,5012,Trade waste collection & disposal from Chorley Council Buildings (1 April 2020 - 31 March 2021) Tatton CC Silverdale Road ,03/03/2021,0153258,21.33,Revenue,SUEZ R&R UK LTD,17615,,
Chorley Borough Council,http://statistics.data.gov.uk/id/local-authority/30UE,Recreation & Sport,1037,Customer & Digital,Refuse Collection,20037,Cleaning and Domestic Supplies,5012,Trade waste collection & disposal from Chorley Council Buildings (1 April 2020 - 31 March 2021) Eaves Green CC  1  X 360L bin ,03/03/2021,0153258,29.49,Revenue,SUEZ R&R UK LTD,17615,,
Chorley Borough Council,http://statistics.data.gov.uk/id/local-authority/30UE,Democratic Represent and  Mgnt,1007,Customer & Digital,Refuse Collection,20037,Cleaning and Domestic Supplies,5012,Trade waste collection & disposal from Chorley Council Buildings (1 April 2020 - 31 March 2021) Astley Hall 1 X 1100L bin 1/week,03/03/2021,0153258,42.76,Revenue,SUEZ R&R UK LTD,17615,,
Chorley Borough Council,http://statistics.data.gov.uk/id/local-authority/30UE,Recreation & Sport,1037,Customer & Digital,Miscellaneous Expenses,40200,Miscellaneous Expenses,5034,Trade waste collection & disposal from Chorley Council Buildings (1 April 2020 - 31 March 2021) Lancaster Way CC at Buckshaw,03/03/2021,0153258,29.49,Revenue,SUEZ R&R UK LTD,17615,,
Chorley Borough Council,http://statistics.data.gov.uk/id/local-authority/30UE,Recreation & Sport,1037,Customer & Digital,Miscellaneous Expenses,40200,Miscellaneous Expenses,5034,Trade waste collection & disposal from Chorley Council Buildings (1 April 2020 - 31 March 2021) Buttermere Green CC 1 X 360L ,03/03/2021,0153258,31.87,Revenue,SUEZ R&R UK LTD,17615,,
Chorley Borough Council,http://statistics.data.gov.uk/id/local-authority/30UE,Democratic Represent and  Mgnt,1007,Customer & Digital,Refuse Collection,20037,Cleaning and Domestic Supplies,5012,Trade waste collection & disposal from Chorley Council Buildings (1 April 2020 - 31 March 2021) Clayton Brook Village Hall ,03/03/2021,0153258,22.71,Revenue,SUEZ R&R UK LTD,17615,,
Chorley Borough Council,http://statistics.data.gov.uk/id/local-authority/30UE,Recreation & Sport,1037,Customer & Digital,Refuse Collection,20037,Cleaning and Domestic Supplies,5012,Trade waste collection & disposal from Chorley Council Buildings (1 April 2020 - 31 March 2021) Astley Village CC 1 x 360L ,03/03/2021,0153258,29.49,Revenue,SUEZ R&R UK LTD,17615,,
Chorley Borough Council,http://statistics.data.gov.uk/id/local-authority/30UE,Business Support,1095,Commercial Services,Refuse Collection,20037,Cleaning and Domestic Supplies,5012,"Market Walk Extension  - General Waste, 8 x 1100L bins, (65kg weight allowance and 14p per kilo thereafter)  9.83 +VAT ",03/03/2021,0153327,140.44,Revenue,SUEZ R&R UK LTD,17615,,
Chorley Borough Council,http://statistics.data.gov.uk/id/local-authority/30UE,Business Support,1095,Commercial Services,Refuse Collection,20037,Cleaning and Domestic Supplies,5012,"Market Walk Extension - Mixed Recycling,  8 x 1100L bins, . (35kg weight allowance and 10p per kilo thereafter) 8.09 +VAT ",03/03/2021,0153327,170.65,Revenue,SUEZ R&R UK LTD,17615,,
Chorley Borough Council,http://statistics.data.gov.uk/id/local-authority/30UE,Business Support,1095,Commercial Services,Refuse Collection,20037,Cleaning and Domestic Supplies,5012,"Market Walk Extension - Glass Waste, 6 x 240L bins, 3.84 +VAT per bin per lift x 52 weeks � Total 1198.08",03/03/2021,0153327,97.88,Revenue,SUEZ R&R UK LTD,17615,,
Chorley Borough Council,http://statistics.data.gov.uk/id/local-authority/30UE,Business Support,1095,Commercial Services,Refuse Collection,20037,Cleaning and Domestic Supplies,5012,2020/21 - Market Walk Yard 2 - 8 yard FEL for general waste @49.27 per lift - Total 2562.04,03/03/2021,0153328,214.32,Revenue,SUEZ R&R UK LTD,17615,,
Chorley Borough Council,http://statistics.data.gov.uk/id/local-authority/30UE,Business Support,1095,Commercial Services,Refuse Collection,20037,Cleaning and Domestic Supplies,5012,Any excess weight charges for Market Walk Skips and FEL`s 3000,03/03/2021,0153328,39.00,Revenue,SUEZ R&R UK LTD,17615,,
Chorley Borough Council,http://statistics.data.gov.uk/id/local-authority/30UE,Business Support,1095,Commercial Services,Refuse Collection,20037,Cleaning and Domestic Supplies,5012,2020/21 - Market Walk Yard 2 - 8 yard FEL for general waste @49.27 per lift - Total 2562.04,03/03/2021,0153329,428.65,Revenue,SUEZ R&R UK LTD,17615,,
Chorley Borough Council,http://statistics.data.gov.uk/id/local-authority/30UE,Business Support,1095,Commercial Services,Refuse Collection,20037,Cleaning and Domestic Supplies,5012,"2020/21- To provide a bakkie cage for cardboard in Service Yard 3 @ Market Walk Shopping Centre, Chorley. From April 2020 ",03/03/2021,0153330,12.00,Revenue,SUEZ R&R UK LTD,17615,,
Chorley Borough Council,http://statistics.data.gov.uk/id/local-authority/30UE,Business Support,1095,Commercial Services,Refuse Collection,20037,Cleaning and Domestic Supplies,5012,2020/21 - Market Walk Yard 1 - 35 yard roll on/roll off cardboard skip @25 rental per month - no haulage or disposal costs ,03/03/2021,0153330,25.00,Revenue,SUEZ R&R UK LTD,17615,,
Chorley Borough Council,http://statistics.data.gov.uk/id/local-authority/30UE,Business Support,1095,Commercial Services,Refuse Collection,20037,Cleaning and Domestic Supplies,5012,2020/21 - Market Walk Yard 2 - 35 yard roll on/roll off cardboard skip @25 rental per month - no haulage or disposal costs ,03/03/2021,0153330,25.00,Revenue,SUEZ R&R UK LTD,17615,,
Chorley Borough Council,http://statistics.data.gov.uk/id/local-authority/30UE,Business Support,1095,Commercial Services,Refuse Collection,20037,Cleaning and Domestic Supplies,5012,2020/21 - Market Walk Yard 3 - 35 yard roll on/roll off cardboard skip @25 rental per month - no haulage or disposal costs,03/03/2021,0153330,25.00,Revenue,SUEZ R&R UK LTD,17615,,
Chorley Borough Council,http://statistics.data.gov.uk/id/local-authority/30UE,Business Support,1095,Commercial Services,Refuse Collection,20037,Cleaning and Domestic Supplies,5012,2020/21 - Market Walk Yard 3 - 35 yard roll on/roll off plastic skip @25 rental per month - no haulage or disposal costs,03/03/2021,0153330,25.00,Revenue,SUEZ R&R UK LTD,17615,,
Chorley Borough Council,http://statistics.data.gov.uk/id/local-authority/30UE,Business Support,1095,Commercial Services,Refuse Collection,20037,Cleaning and Domestic Supplies,5012,"To provide the following waste removal arrangements for Service Yard 1, Market Walk, Chorley FEL waste removal once per week",03/03/2021,0153330,304.72,Revenue,SUEZ R&R UK LTD,17615,,
Chorley Borough Council,http://statistics.data.gov.uk/id/local-authority/30UE,Economic Development,1096,Commercial Services,Refuse Collection,20037,Cleaning and Domestic Supplies,5012,60 x 1100L bins per week (20 bins emptied 3 times a week Mon/Weds/Fri) @ 9.83 per bin. Weekly costs 589.80. For period ,03/03/2021,0153330,"2,565.63",Revenue,SUEZ R&R UK LTD,17615,,
Chorley Borough Council,http://statistics.data.gov.uk/id/local-authority/30UE,Capital,Capital,Commercial Services,Main Contractor,03007,Capital Expenditure,Capital,Clayton Green Fencing repairs to left All Weather Pitch as agreed with NAME REDACTED and approved by NAME REDACTED,05/03/2021,0152981,"1,778.00",Capital,Technical Surfaces Ltd,80955,,
Chorley Borough Council,http://statistics.data.gov.uk/id/local-authority/30UE,Central Support Services,1009,Customer & Digital,ICT Software Implementation,40114,Communication and Computing,5028,"CCTV - Tech Sol, ongoing repairs and maintenance",29/03/2021,0151174,"1,140.00",Revenue,Technology Solutions,72376,,
Chorley Borough Council,http://statistics.data.gov.uk/id/local-authority/30UE,Central Support Services,1009,Customer & Digital,ICT Software Implementation,40114,Communication and Computing,5028,"CCTV - Tech Sol, ongoing repairs and maintenance",17/03/2021,0154132,360.00,Revenue,Technology Solutions,72376,,
Chorley Borough Council,http://statistics.data.gov.uk/id/local-authority/30UE,Capital,Capital,Customer & Digital,Main Contractor,03007,Capital Expenditure,Capital,Disconnect the connection box over the Entrance Pull back the cable and leave coiled up at high level Disconnect ,29/03/2021,0154147,292.50,Capital,Technology Solutions,72376,,
Chorley Borough Council,http://statistics.data.gov.uk/id/local-authority/30UE,Capital,Capital,Customer & Digital,Main Contractor,03007,Capital Expenditure,Capital,Astley Park PTZ Camera Repair,29/03/2021,0154165,881.50,Capital,Technology Solutions,72376,,
Chorley Borough Council,http://statistics.data.gov.uk/id/local-authority/30UE,Central Support Services,1009,Commercial Services,Professional Fees,40063,Services,5027,"Production of a full colour Landscape Masterplan, a detailed planting plan, a habitat creation plan incl proposed ponds etc",03/03/2021,0153744,"4,090.00",Revenue,The Environment Partnership (TEP) Ltd,77359,,
Chorley Borough Council,http://statistics.data.gov.uk/id/local-authority/30UE,Business Support,1095,Commercial Services,Security Service,40062,Services,5027,Security cover at DOP February 2021,05/03/2021,0153859,"6,113.10",Revenue,The ExcluSec Group Ltd,78056,,
Chorley Borough Council,http://statistics.data.gov.uk/id/local-authority/30UE,Capital,Capital,Commercial Services,Main Contractor,03007,Capital Expenditure,Capital,Chorley Market To SUPPLY AND FIT 5 . FASCIAS AND CHECK OUT FIXINGS TO 37 FASCIAS AS PER QUOTATION 32875,12/03/2021,0154149,"1,180.00",Capital,The Guardian Shutter Co LTD,21769,,
Chorley Borough Council,http://statistics.data.gov.uk/id/local-authority/30UE,Service Management & Support,1009,Customer & Digital,Tools & Equipment - Purchase,40003,"Equipment, Furniture & Materia",5023,Quantity x 30 LP1137  37� Litter picker pro  @13.18 per unit,26/03/2021,0154764,395.40,Revenue,The Helping Hand Company,17779,,
Chorley Borough Council,http://statistics.data.gov.uk/id/local-authority/30UE,Central Support Services,1009,Customer & Digital,Computer - Support Services,40111,Communication and Computing,5028,"Engineering assistance to upgrade Cisco WLC, ISE and FirePower firmware",12/03/2021,0153634,"1,300.00",Revenue,The Networking People (NorthWest) Ltd T/a TNP Ltd,73446,,
Chorley Borough Council,http://statistics.data.gov.uk/id/local-authority/30UE,Central Support Services,1009,Commercial Services,Agency Staff,13000,Direct Employee Expenses,5001,NAME REDACTED - estates surveyor fees,10/03/2021,0153930,"1,684.38",Revenue,The Oyster Partnership Ltd,81409,,
Chorley Borough Council,http://statistics.data.gov.uk/id/local-authority/30UE,Central Support Services,1009,Commercial Services,Agency Staff,13000,Direct Employee Expenses,5001,NAME REDACTED - estates surveyor fees,10/03/2021,0153995,"2,417.85",Revenue,The Oyster Partnership Ltd,81409,,
Chorley Borough Council,http://statistics.data.gov.uk/id/local-authority/30UE,Central Support Services,1009,Commercial Services,Agency Staff,13000,Direct Employee Expenses,5001,NAME REDACTED - estates surveyor fees,19/03/2021,0154325,"1,837.50",Revenue,The Oyster Partnership Ltd,81409,,
Chorley Borough Council,http://statistics.data.gov.uk/id/local-authority/30UE,Central Support Services,1009,Commercial Services,Agency Staff,13000,Direct Employee Expenses,5001,NAME REDACTED - estates surveyor fees,26/03/2021,0154667,"1,849.10",Revenue,The Oyster Partnership Ltd,81409,,
Chorley Borough Council,http://statistics.data.gov.uk/id/local-authority/30UE,Capital,Capital,Commercial Services,Main Contractor,03007,Capital Expenditure,Capital,"searchpoint 183400, ADDRESS REDACTED",10/03/2021,0153988,161.11,Capital,The Vesey Partnership Limited,77491,,
Chorley Borough Council,http://statistics.data.gov.uk/id/local-authority/30UE,Capital,Capital,Commercial Services,Main Contractor,03007,Capital Expenditure,Capital,"searchpoint 183124, ADDRESS REDACTED",10/03/2021,0153988,153.94,Capital,The Vesey Partnership Limited,77491,,
Chorley Borough Council,http://statistics.data.gov.uk/id/local-authority/30UE,Corporate Management,1008,Commercial Services,Miscellaneous Expenses,40200,Miscellaneous Expenses,5034,11 `Townscape EPS/0001 Counter terror sentry block finished in high visibility yellow & black banding complete with fork lifting ,10/03/2021,0153962,"7,415.21",Revenue,Townscape products ltd,78064,,
Chorley Borough Council,http://statistics.data.gov.uk/id/local-authority/30UE,Corporate Management,1008,Commercial Services,Miscellaneous Expenses,40200,Miscellaneous Expenses,5034,"20`Townscape PLT/C125 City planter 1250 x 450 x 600mm smooth prestige white finish` including TM, at 14,880.00 total as",26/03/2021,0154858,"5,456.00",Revenue,Townscape products ltd,78064,,
Chorley Borough Council,http://statistics.data.gov.uk/id/local-authority/30UE,Capital,Capital,Commercial Services,Main Contractor,03007,Capital Expenditure,Capital,"ADDRESS REDACTED Appraisal: 	Inception meeting with Client, Review of all information pertaining to the subject site",26/03/2021,0154648,"1,500.00",Capital,Trebbi Continuum,77723,,
Chorley Borough Council,http://statistics.data.gov.uk/id/local-authority/30UE,Service Management & Support,1009,Customer & Digital,Grounds Maintenance Contractor,20043,Grounds Maintenance Costs,5013,Three mature Ash trees on Birkacre Brow.,10/03/2021,0153884,"2,460.00",Revenue,Treescape North West Ltd,17688,,
Chorley Borough Council,http://statistics.data.gov.uk/id/local-authority/30UE,Central Support Services,1009,Commercial Services,Professional Fees,40063,Services,5027,"For the felling and removal of all trees identified in tree plan, Trees to be cut to ground level. Timber to be removed from site.",10/03/2021,0153929,"6,800.00",Revenue,Treescape North West Ltd,17688,,
Chorley Borough Council,http://statistics.data.gov.uk/id/local-authority/30UE,Service Management & Support,1009,Customer & Digital,Grounds Maintenance Contractor,20043,Grounds Maintenance Costs,5013,Reduction of mature Beech tree adjacent to 438 Preston Road.,10/03/2021,0153974,820.00,Revenue,Treescape North West Ltd,17688,,
Chorley Borough Council,http://statistics.data.gov.uk/id/local-authority/30UE,Unapportionable Central OHeads,1009,Policy & Governance,Miscellaneous Expenses,40200,Miscellaneous Expenses,5034,healthcare,10/03/2021,0153961,"1,614.33",Revenue,UK Healthcare (BDHSC),17241,,
Chorley Borough Council,http://statistics.data.gov.uk/id/local-authority/30UE,Unapportionable Central OHeads,1009,Customer & Digital,Service Fees,40056,Services,5027,Daily Hybrid Mail & Annual Billing,17/03/2021,0153453,784.35,Revenue,UKMAIL Ltd (Mail),57758,,
Chorley Borough Council,http://statistics.data.gov.uk/id/local-authority/30UE,Central Support Services,1009,Customer & Digital,Service Fees,40056,Services,5027,Daily Hybrid Mail & Annual Billing,17/03/2021,0153661,500.35,Revenue,UKMAIL Ltd (Mail),57758,,
Chorley Borough Council,http://statistics.data.gov.uk/id/local-authority/30UE,Central Support Services,1009,Customer & Digital,Service Fees,40056,Services,5027,Daily Hybrid Mail & Annual Billing,24/03/2021,0153959,"4,719.10",Revenue,UKMAIL Ltd (Mail),57758,,
Chorley Borough Council,http://statistics.data.gov.uk/id/local-authority/30UE,Control Accounts,Control,Policy & Governance,General Balances,00100,Balance Sheet,Balance,Monthly Deductions from payroll,19/03/2021,0154383,"1,793.70",Revenue,Unify Credit Union Ltd,55509,,
Chorley Borough Council,http://statistics.data.gov.uk/id/local-authority/30UE,Capital,Capital,Early Intervention,Grants,03002,Capital Expenditure,Capital,ADDRESS REDACTED,12/03/2021,0154188,"5,128.85",Capital,UPS Building and Maintenance Ltd,76235,,
Chorley Borough Council,http://statistics.data.gov.uk/id/local-authority/30UE,Capital,Capital,Early Intervention,Grants,03002,Capital Expenditure,Capital,ADDRESS REDACTED,12/03/2021,0154189,"4,646.25",Capital,UPS Building and Maintenance Ltd,76235,,
Chorley Borough Council,http://statistics.data.gov.uk/id/local-authority/30UE,Capital,Capital,Early Intervention,Grants,03002,Capital Expenditure,Capital,ADDRESS REDACTED,12/03/2021,0154190,"4,500.50",Capital,UPS Building and Maintenance Ltd,76235,,
Chorley Borough Council,http://statistics.data.gov.uk/id/local-authority/30UE,Corporate Management,1008,Customer & Digital,"Hackney Badges, Plates Etc.",40023,"Equipment, Furniture & Materia",5023,"platform, Universal, Size 4, Kit (Black plastic plate holder) x 2 packs @ 154.07 each",26/03/2021,0154682,308.14,Revenue,VIP-SYSTEM LIMITED,69902,,
Chorley Borough Council,http://statistics.data.gov.uk/id/local-authority/30UE,Open Spaces,1038,Customer & Digital,Miscellaneous Expenses,40200,Miscellaneous Expenses,5034,Two excavators with operators to desilt the river bed and pull spoil back up the bankings and level within River Chor at Ackhurst,12/03/2021,0153479,980.00,Revenue,W A Scott,81576,,
Chorley Borough Council,http://statistics.data.gov.uk/id/local-authority/30UE,Capital,Capital,Early Intervention,Main Contractor,03007,Capital Expenditure,Capital,Construction of new sports pavilion and changing facility at Westway Playing Fields,10/03/2021,0153127,"242,676.73",Capital,Walter Carefoot Construction (Ltd),80601,,
Chorley Borough Council,http://statistics.data.gov.uk/id/local-authority/30UE,Capital,Capital,Early Intervention,Main Contractor,03007,Capital Expenditure,Capital,Construction of new sports pavilion and changing facility at Westway Playing Fields,24/03/2021,0154139,"154,879.86",Capital,Walter Carefoot Construction (Ltd),80601,,
Chorley Borough Council,http://statistics.data.gov.uk/id/local-authority/30UE,Homelessness,1075,Commercial Services,Water - Metered Supplies,20022,Water Services,5009,10/12/20 to 19/2/21,03/03/2021,0153769,"1,468.03",Revenue,Water-plus,17926,,
Chorley Borough Council,http://statistics.data.gov.uk/id/local-authority/30UE,Homelessness,1075,Commercial Services,Water - Metered Supplies,20022,Water Services,5009,20/8/20 to 9/12/20,03/03/2021,0153771,"2,271.19",Revenue,Water-plus,17926,,
Chorley Borough Council,http://statistics.data.gov.uk/id/local-authority/30UE,Democratic Represent and  Mgnt,1007,Commercial Services,Water - Metered Supplies,20022,Water Services,5009,5/6/20 to 19/2/21,10/03/2021,0153955,463.28,Revenue,Water-plus,17926,,
Chorley Borough Council,http://statistics.data.gov.uk/id/local-authority/30UE,Recreation & Sport,1037,Commercial Services,Water - Metered Supplies,20022,Water Services,5009,12/1220 - 11/01/21,19/03/2021,0154231,"1,505.30",Revenue,Water-plus,17926,,
Chorley Borough Council,http://statistics.data.gov.uk/id/local-authority/30UE,Democratic Represent and  Mgnt,1007,Commercial Services,Water - Metered Supplies,20022,Water Services,5009,12/12/20 - 11/02/21,19/03/2021,0154233,"5,685.86",Revenue,Water-plus,17926,,
Chorley Borough Council,http://statistics.data.gov.uk/id/local-authority/30UE,Recreation & Sport,1037,Commercial Services,Water - Metered Supplies,20022,Water Services,5009,12/12/20 - 11/01/21,19/03/2021,0154234,"2,842.93",Revenue,Water-plus,17926,,
Chorley Borough Council,http://statistics.data.gov.uk/id/local-authority/30UE,Recreation & Sport,1037,Commercial Services,Water - Metered Supplies,20022,Water Services,5009,12/12/20 - 11/01/21,19/03/2021,0154234,"1,505.30",Revenue,Water-plus,17926,,
Chorley Borough Council,http://statistics.data.gov.uk/id/local-authority/30UE,Recreation & Sport,1037,Commercial Services,Water - Metered Supplies,20022,Water Services,5009,12/01/21 - 11/02/21,19/03/2021,0154236,"2,842.93",Revenue,Water-plus,17926,,
Chorley Borough Council,http://statistics.data.gov.uk/id/local-authority/30UE,Democratic Represent and  Mgnt,1007,Commercial Services,Water - Metered Supplies,20022,Water Services,5009,12/01/21 - 11/02/21,19/03/2021,0154236,"1,505.30",Revenue,Water-plus,17926,,
Chorley Borough Council,http://statistics.data.gov.uk/id/local-authority/30UE,Recreation & Sport,1037,Commercial Services,Water - Metered Supplies,20022,Water Services,5009,01/10/20 - 11/12/20,19/03/2021,0154237,"6,605.61",Revenue,Water-plus,17926,,
Chorley Borough Council,http://statistics.data.gov.uk/id/local-authority/30UE,Democratic Represent and  Mgnt,1007,Commercial Services,Water - Metered Supplies,20022,Water Services,5009,01/10/20 - 11/12/20,19/03/2021,0154237,"3,497.27",Revenue,Water-plus,17926,,
Chorley Borough Council,http://statistics.data.gov.uk/id/local-authority/30UE,Recreation & Sport,1037,Commercial Services,Water - Metered Supplies,20022,Water Services,5009,12/01/21 - 11/02/21,19/03/2021,0154239,"1,505.30",Revenue,Water-plus,17926,,
Chorley Borough Council,http://statistics.data.gov.uk/id/local-authority/30UE,Democratic Represent and  Mgnt,1007,Commercial Services,Water - Metered Supplies,20022,Water Services,5009,15/01/21 - 14/02/21,19/03/2021,0154245,513.17,Revenue,Water-plus,17926,,
Chorley Borough Council,http://statistics.data.gov.uk/id/local-authority/30UE,Recreation & Sport,1037,Commercial Services,Water - Metered Supplies,20022,Water Services,5009,15/01/21 - 14/02/21,19/03/2021,0154245,235.37,Revenue,Water-plus,17926,,
Chorley Borough Council,http://statistics.data.gov.uk/id/local-authority/30UE,Democratic Represent and  Mgnt,1007,Commercial Services,Water - Metered Supplies,20022,Water Services,5009,14/12/20 - 14/01/21,19/03/2021,0154246,513.17,Revenue,Water-plus,17926,,
Chorley Borough Council,http://statistics.data.gov.uk/id/local-authority/30UE,Recreation & Sport,1037,Commercial Services,Water - Metered Supplies,20022,Water Services,5009,14/12/20 - 14/01/21,19/03/2021,0154246,235.37,Revenue,Water-plus,17926,,
Chorley Borough Council,http://statistics.data.gov.uk/id/local-authority/30UE,Democratic Represent and  Mgnt,1007,Commercial Services,Water - Metered Supplies,20022,Water Services,5009,01/10/20 - 14/12/20,19/03/2021,0154247,"1,695.66",Revenue,Water-plus,17926,,
Chorley Borough Council,http://statistics.data.gov.uk/id/local-authority/30UE,Recreation & Sport,1037,Commercial Services,Water - Metered Supplies,20022,Water Services,5009,01/10/20 - 14/12/20,19/03/2021,0154247,777.39,Revenue,Water-plus,17926,,
Chorley Borough Council,http://statistics.data.gov.uk/id/local-authority/30UE,Recreation & Sport,1037,Commercial Services,Water - Metered Supplies,20022,Water Services,5009,15/01/21 - 14/02/21,19/03/2021,0154249,513.17,Revenue,Water-plus,17926,,
Chorley Borough Council,http://statistics.data.gov.uk/id/local-authority/30UE,Recreation & Sport,1037,Early Intervention,Miscellaneous Expenses,40200,Miscellaneous Expenses,5034,1 x Wattbke Nucleus,10/03/2021,0153748,"2,174.17",Revenue,WattBike UK Ltd,81413,,
Chorley Borough Council,http://statistics.data.gov.uk/id/local-authority/30UE,Central Support Services,1009,Chief Executive,Postages,40082,Communication and Computing,5028,"Mail collections for Town Hall and Union Street, April 20 to March 21",10/03/2021,0153752,"1,190.81",Revenue,Whistl North Limited,67256,,
Chorley Borough Council,http://statistics.data.gov.uk/id/local-authority/30UE,Unapportionable Central OHeads,1009,Chief Executive,Postages,40082,Communication and Computing,5028,non vat,10/03/2021,0153752,2.00,Revenue,Whistl North Limited,67256,,
Chorley Borough Council,http://statistics.data.gov.uk/id/local-authority/30UE,Central Support Services,1009,Chief Executive,Postages,40082,Communication and Computing,5028,"Mail collections for Town Hall and Union Street, April 20 to March 21",10/03/2021,0154060,536.40,Revenue,Whistl North Limited,67256,,
Chorley Borough Council,http://statistics.data.gov.uk/id/local-authority/30UE,Unapportionable Central OHeads,1009,Chief Executive,Postages,40082,Communication and Computing,5028,,10/03/2021,0154060,1.60,Revenue,Whistl North Limited,67256,,
Chorley Borough Council,http://statistics.data.gov.uk/id/local-authority/30UE,Democratic Represent and  Mgnt,1007,Policy & Governance,Grants To Other Organisations,40127,Grants and Subscriptions,5031,GRANT,19/03/2021,0154376,300.00,Revenue,White Coppice Cricket Club,81905,,
